Capital or Revenue,Directorate,Transaction Number,Date,Service Area,Expenses Type,Amount,Supplier Name
Revenue,Community Wellbeing & Social Care,5105621329,23.08.2013,Leaseholds by LA,Accommodation Costs - Leaseholder Payments,695.89,REDACTED PERSONAL DATA
Revenue,Community Wellbeing & Social Care,5105621329,23.08.2013,Leaseholds by LA,Accommodation Costs - Leaseholder Payments,695.89,REDACTED PERSONAL DATA
Revenue,Community Wellbeing & Social Care,5105621329,23.08.2013,Leaseholds by LA,Accommodation Costs - Leaseholder Payments,695.89,REDACTED PERSONAL DATA
Revenue,Community Wellbeing & Social Care,5105621329,23.08.2013,Leaseholds by LA,Accommodation Costs - Leaseholder Payments,695.89,REDACTED PERSONAL DATA
Revenue,Community Wellbeing & Social Care,5105621329,23.08.2013,Leaseholds by LA,Accommodation Costs - Leaseholder Payments,695.89,REDACTED PERSONAL DATA
Revenue,Childrens Services,5105617400,09.08.2013,LSCB (Local Safeguarding Childrens Board),Professional Service,"5,000.00",REDACTED PERSONAL DATA
Revenue,Childrens Services,5105617400,09.08.2013,LSCB (Local Safeguarding Childrens Board),Professional Service,500.30,REDACTED PERSONAL DATA
Revenue,Community Wellbeing & Social Care,5105620715,21.08.2013,Overbrook,Grounds Maintenance,140.00,REDACTED PERSONAL DATA
Revenue,Community Wellbeing & Social Care,5105620715,21.08.2013,Seagulls,Grounds Maintenance,140.00,REDACTED PERSONAL DATA
Revenue,Community Wellbeing & Social Care,5105620715,21.08.2013,Plean Dene,Grounds Maintenance,160.00,REDACTED PERSONAL DATA
Revenue,Community Wellbeing & Social Care,5105620715,21.08.2013,Saxonbury,Grounds Maintenance,140.00,REDACTED PERSONAL DATA
Revenue,Community Wellbeing & Social Care,5105620715,21.08.2013,40 Venner Avenue,Grounds Maintenance,140.00,REDACTED PERSONAL DATA
Revenue,Community Wellbeing & Social Care,5105620715,21.08.2013,Highmead,Grounds Maintenance,140.00,REDACTED PERSONAL DATA
Revenue,Community Wellbeing & Social Care,5105620715,21.08.2013,The Laurels,Grounds Maintenance,140.00,REDACTED PERSONAL DATA
Revenue,Childrens Services,5105622784,30.08.2013,Duty and Assessment 2,Professional Service,160.00,REDACTED PERSONAL DATA
Revenue,Childrens Services,5105622784,30.08.2013,Duty and Assessment 2,Professional Service,56.90,REDACTED PERSONAL DATA
Revenue,Childrens Services,5105622823,30.08.2013,Duty and Assessment 2,Professional Service,160.00,REDACTED PERSONAL DATA
Revenue,Childrens Services,5105622823,30.08.2013,Duty and Assessment 2,Professional Service,56.90,REDACTED PERSONAL DATA
Capital,Resources,5105620522,16.08.2013,Capital Receipts,Capital Contractor Payments,70.00,REDACTED PERSONAL DATA
Capital,Resources,5105620522,16.08.2013,Capital Receipts,Capital Contractor Payments,150.00,REDACTED PERSONAL DATA
Capital,Resources,5105620522,16.08.2013,Capital Receipts,Capital Contractor Payments,370.00,REDACTED PERSONAL DATA
Revenue,Resources,5105620522,16.08.2013,"Church View Flat, Ventnor",Security of Buildings,50.00,REDACTED PERSONAL DATA
Revenue,Childrens Services,5105620522,16.08.2013,Youth- Shorwell,Security of Buildings,120.00,REDACTED PERSONAL DATA
Revenue,Resources,5105620522,16.08.2013,Oak House - Assessment of Children with Disabilities,Security of Buildings,100.00,REDACTED PERSONAL DATA
Revenue,Economy & Environment,5105622360,30.08.2013,Bembridge Primary School Disposal,Security of Buildings,90.00,REDACTED PERSONAL DATA
Revenue,Economy & Environment,5105622360,30.08.2013,East Cowes Primary School Disposal,Security of Buildings,310.00,REDACTED PERSONAL DATA
Revenue,Economy & Environment,5105620522,16.08.2013,Gurnard Primary School Disposal,Security of Buildings,200.00,REDACTED PERSONAL DATA
Revenue,Economy & Environment,5105622360,30.08.2013,Hunnyhill Primary School Disposal,Security of Buildings,180.00,REDACTED PERSONAL DATA
Revenue,Economy & Environment,5105622360,30.08.2013,St Boniface  Primary School Disposal,Security of Buildings,180.00,REDACTED PERSONAL DATA
Revenue,Economy & Environment,5105622360,30.08.2013,West Wight Middle School Disposal,Security of Buildings,60.00,REDACTED PERSONAL DATA
Revenue,Economy & Environment,5105622360,30.08.2013,Haylands Primary School Playstreet Lane,Security of Buildings,645.00,REDACTED PERSONAL DATA
Revenue,Economy & Environment,5105622360,30.08.2013,Haylands Primary School Playstreet Lane,Security of Buildings,220.00,REDACTED PERSONAL DATA
Revenue,Economy & Environment,5105622360,30.08.2013,Love Lane Primary School PO31 7ET,Security of Buildings,310.00,REDACTED PERSONAL DATA
Revenue,Economy & Environment,5105622360,30.08.2013,Love Lane Primary School PO31 7ET,Security of Buildings,20.00,REDACTED PERSONAL DATA
Revenue,Economy & Environment,5105622360,30.08.2013,Love Lane Primary School PO31 7ET,Security of Buildings,15.00,REDACTED PERSONAL DATA
Revenue,Corporate,5105620522,16.08.2013,Business Systems Improvement Project Savings,Capital Contractor Payments,100.00,REDACTED PERSONAL DATA
Revenue,Corporate,5105620522,16.08.2013,Business Systems Improvement Project Savings,Capital Contractor Payments,200.00,REDACTED PERSONAL DATA
Revenue,Community Wellbeing & Social Care,5105620502,16.08.2013,Core Programmes,Training,"6,161.00",*CD & CD ARIS (TRAINING ERA)
Revenue,Community Wellbeing & Social Care,5105620518,16.08.2013,Drug Misuse - Adults,Charges from Independent Providers,120.00,REDACTED PERSONAL DATA
Revenue,Community Wellbeing & Social Care,5105622592,30.08.2013,Drug Misuse - Adults,Charges from Independent Providers,120.00,REDACTED PERSONAL DATA
Revenue,Childrens Services,5105620327,16.08.2013,Short Breaks,Payments to Voluntary and Other Associations,500.00,REDACTED PERSONAL DATA
Revenue,Economy & Environment,5105617236,02.08.2013,West Wight Landscape Partnership,Payment to Private Contractors,"2,500.00",REDACTED PERSONAL DATA
Revenue,Childrens Services,5105621086,21.08.2013,Central & West Provision,Operational Equipment,15.00,REDACTED PERSONAL DATA
Revenue,Community Wellbeing & Social Care,5105617484,07.08.2013,Drug Misuse - Adults,Payment to Private Contractors,75.00,REDACTED PERSONAL DATA
Revenue,Community Wellbeing & Social Care,5105619607,16.08.2013,Drug Misuse - Adults,Payment to Private Contractors,210.00,REDACTED PERSONAL DATA
Revenue,Economy & Environment,5105622663,30.08.2013,Highways PFI Project,Professional Service,152.60,*ISLANDWIDE WINDSCREENS
Revenue,Community Wellbeing & Social Care,5105621082,21.08.2013,Drug Misuse - Adults,Payment to Private Contractors,135.00,REDACTED PERSONAL DATA
Revenue,Community Wellbeing & Social Care,5105621078,21.08.2013,DAT Team - Adult Treatment,Charges from Independent Providers,210.00,REDACTED PERSONAL DATA
Revenue,Community Wellbeing & Social Care,5105621081,21.08.2013,DAT Team - Adult Treatment,Charges from Independent Providers,195.00,REDACTED PERSONAL DATA
Revenue,Resources,5105619819,16.08.2013,ICT Contracts,Computer Maintenance,200.00,REDACTED PERSONAL DATA
Revenue,Economy & Environment,5105621659,23.08.2013,West Wight Landscape Partnership,Payment to Private Contractors,687.50,REDACTED PERSONAL DATA
Revenue,Community Wellbeing & Social Care,5105622796,30.08.2013,Workforce Development - Early Years,Training,"1,000.00",REDACTED PERSONAL DATA
Revenue,Childrens Services,5105622200,28.08.2013,Support for Looked After Children,Support Children,450.00,*LUCY MUNDY T/A ISLAND EQUUS
Revenue,Childrens Services,5105622205,28.08.2013,Support for Looked After Children,Support Children,292.50,*LUCY MUNDY T/A ISLAND EQUUS
Revenue,Childrens Services,5105622023,23.08.2013,Duty and Assessment 2,Agency staff,112.50,*M.EL.H LIMITED
Revenue,Childrens Services,5105621979,23.08.2013,Duty and Assessment 2,Agency staff,393.75,*M.EL.H LIMITED
Revenue,Childrens Services,5105621979,23.08.2013,Duty and Assessment 1,Agency staff,393.75,*M.EL.H LIMITED
Revenue,Childrens Services,5105622023,23.08.2013,Duty and Assessment 1,Agency staff,112.50,*M.EL.H LIMITED
Revenue,Childrens Services,5105622218,28.08.2013,Duty and Assessment 1,Agency staff,225.00,*M.EL.H LIMITED
Revenue,Childrens Services,5105622219,28.08.2013,Duty and Assessment 1,Agency staff,832.50,*M.EL.H LIMITED
Revenue,Childrens Services,5105622220,28.08.2013,Duty and Assessment 1,Agency staff,405.00,*M.EL.H LIMITED
Revenue,Childrens Services,5105621130,21.08.2013,Education Participation Team,Cleaning Contracts,8.00,REDACTED PERSONAL DATA
Revenue,Childrens Services,5105617425,07.08.2013,LSCB (Local Safeguarding Childrens Board),Consultants Fees,70.00,*ONE HOLYROOD
Revenue,Childrens Services,5105617424,07.08.2013,LSCB (Local Safeguarding Childrens Board),Professional Service,70.00,*ONE HOLYROOD
Revenue,Childrens Services,5105617424,07.08.2013,Post Inspection Improvement cost,Consultants Fees,70.00,*ONE HOLYROOD
Revenue,Childrens Services,5105618097,14.08.2013,Short Breaks,Payments to Voluntary and Other Associations,50.00,*P MARTIN T/A HAVEN FALCONRY
Revenue,Community Wellbeing & Social Care,5105620469,16.08.2013,Community & Wellbeing Directorate,Training,"2,100.00",REDACTED PERSONAL DATA
Revenue,Childrens Services,5105620472,16.08.2013,Short Breaks,Payments to Voluntary and Other Associations,200.00,*RYDE EXTREME PERFORMERS
Revenue,Community Wellbeing & Social Care,5105622629,30.08.2013,Drug Misuse - Adults,Payment to Private Contractors,120.00,REDACTED PERSONAL DATA
Revenue,Community Wellbeing & Social Care,5105617602,07.08.2013,Drug Misuse - Adults,Payment to Private Contractors,120.00,REDACTED PERSONAL DATA
Revenue,Resources,5105618022,09.08.2013,Director of Corporate Services,Training,99.00,11KBW LTD
Revenue,Resources,5105617647,07.08.2013,Legal Services,Training,99.00,11KBW LTD
Revenue,Childrens Services,5105618331,21.08.2013,Section 17: Children Young Adults Disabilities,Transport of Clients,91.80,24-7 TAXIS
Revenue,Community Wellbeing & Social Care,5105621349,23.08.2013,Leaseholds by LA,Accommodation Costs - Leaseholder Payments,866.67,2K PROPERTY
Revenue,Community Wellbeing & Social Care,5105617414,07.08.2013,Adelaide Resource Centre,Catering Purchases,414.70,3663 (BFS GROUP LTD)
Revenue,Community Wellbeing & Social Care,5105617414,07.08.2013,Adelaide Resource Centre,Catering Purchases,101.68,3663 (BFS GROUP LTD)
Revenue,Community Wellbeing & Social Care,5105617415,07.08.2013,Adelaide Resource Centre,Catering Purchases,53.48,3663 (BFS GROUP LTD)
Revenue,Community Wellbeing & Social Care,5105617318,02.08.2013,Adelaide Resource Centre,Catering Purchases,26.55,3663 (BFS GROUP LTD)
Revenue,Community Wellbeing & Social Care,5105617347,07.08.2013,Adelaide Resource Centre,Catering Purchases,7.26,3663 (BFS GROUP LTD)
Revenue,Community Wellbeing & Social Care,5105617352,07.08.2013,Adelaide Resource Centre,Catering Purchases,6.66,3663 (BFS GROUP LTD)
Revenue,Community Wellbeing & Social Care,5105620820,21.08.2013,Adelaide Resource Centre,Catering Purchases,254.60,3663 (BFS GROUP LTD)
Revenue,Community Wellbeing & Social Care,5105620820,21.08.2013,Adelaide Resource Centre,Catering Purchases,23.71,3663 (BFS GROUP LTD)
Revenue,Community Wellbeing & Social Care,5105620621,21.08.2013,Adelaide Resource Centre,Catering Purchases,94.80,3663 (BFS GROUP LTD)
Revenue,Community Wellbeing & Social Care,5105620621,21.08.2013,Adelaide Resource Centre,Catering Purchases,24.47,3663 (BFS GROUP LTD)
Revenue,Community Wellbeing & Social Care,5105620622,21.08.2013,Adelaide Resource Centre,Catering Purchases,402.49,3663 (BFS GROUP LTD)
Revenue,Community Wellbeing & Social Care,5105620623,21.08.2013,Adelaide Resource Centre,Catering Purchases,91.72,3663 (BFS GROUP LTD)
Revenue,Community Wellbeing & Social Care,5105620623,21.08.2013,Adelaide Resource Centre,Catering Purchases,9.68,3663 (BFS GROUP LTD)
Revenue,Community Wellbeing & Social Care,5105622065,28.08.2013,Adelaide Resource Centre,Catering Purchases,265.71,3663 (BFS GROUP LTD)
Revenue,Community Wellbeing & Social Care,5105622066,28.08.2013,Adelaide Resource Centre,Catering Purchases,80.69,3663 (BFS GROUP LTD)
Revenue,Community Wellbeing & Social Care,5105622066,28.08.2013,Adelaide Resource Centre,Catering Purchases,2.42,3663 (BFS GROUP LTD)
Revenue,Community Wellbeing & Social Care,5105622065,28.08.2013,Adelaide Resource Centre,Catering Purchases,23.71,3663 (BFS GROUP LTD)
Revenue,Community Wellbeing & Social Care,5105617352,07.08.2013,Adelaide Resource Centre,Catering Purchases,234.09,3663 (BFS GROUP LTD)
Revenue,Community Wellbeing & Social Care,5105617347,07.08.2013,Adelaide Resource Centre,Catering Purchases,153.52,3663 (BFS GROUP LTD)
Revenue,Community Wellbeing & Social Care,5105617318,02.08.2013,Adelaide Resource Centre,Catering Purchases,71.90,3663 (BFS GROUP LTD)
Revenue,Community Wellbeing & Social Care,5105617415,07.08.2013,Adelaide Resource Centre,Catering Purchases,337.85,3663 (BFS GROUP LTD)
Revenue,Community Wellbeing & Social Care,5105622571,30.08.2013,Gouldings Resource Centre,Catering Purchases,276.37,3663 (BFS GROUP LTD)
Revenue,Community Wellbeing & Social Care,5105622571,30.08.2013,Gouldings Resource Centre,Catering Purchases,51.88,3663 (BFS GROUP LTD)
Revenue,Community Wellbeing & Social Care,5105621999,23.08.2013,Gouldings Resource Centre,Catering Purchases,142.30,3663 (BFS GROUP LTD)
Revenue,Community Wellbeing & Social Care,5105622000,23.08.2013,Gouldings Resource Centre,Catering Purchases,10.28,3663 (BFS GROUP LTD)
Revenue,Community Wellbeing & Social Care,5105622062,28.08.2013,Gouldings Resource Centre,Catering Purchases,218.41,3663 (BFS GROUP LTD)
Revenue,Community Wellbeing & Social Care,5105620767,21.08.2013,Gouldings Resource Centre,Catering Purchases,220.40,3663 (BFS GROUP LTD)
Revenue,Community Wellbeing & Social Care,5105619847,16.08.2013,Gouldings Resource Centre,Catering Purchases,140.80,3663 (BFS GROUP LTD)
Revenue,Community Wellbeing & Social Care,5105619847,16.08.2013,Gouldings Resource Centre,Catering Purchases,14.06,3663 (BFS GROUP LTD)
Revenue,Community Wellbeing & Social Care,5105617930,09.08.2013,Gouldings Resource Centre,Catering Purchases,141.94,3663 (BFS GROUP LTD)
Revenue,Community Wellbeing & Social Care,5105617930,09.08.2013,Gouldings Resource Centre,Catering Purchases,82.52,3663 (BFS GROUP LTD)
Revenue,Community Wellbeing & Social Care,5105619881,16.08.2013,Westminster House,Catering Purchases,159.62,3663 (BFS GROUP LTD)
Revenue,Community Wellbeing & Social Care,5105619882,16.08.2013,Westminster House,Catering Purchases,25.61,3663 (BFS GROUP LTD)
Revenue,Community Wellbeing & Social Care,5105619883,16.08.2013,Westminster House,Catering Purchases,67.86,3663 (BFS GROUP LTD)
Revenue,Community Wellbeing & Social Care,5105622057,28.08.2013,Westminster House,Catering Purchases,123.62,3663 (BFS GROUP LTD)
Revenue,Community Wellbeing & Social Care,5105622059,28.08.2013,Westminster House,Catering Purchases,16.33,3663 (BFS GROUP LTD)
Revenue,Community Wellbeing & Social Care,5105622061,28.08.2013,Westminster House,Catering Purchases,73.43,3663 (BFS GROUP LTD)
Revenue,Economy & Environment,5105617720,09.08.2013,Ryde Sports Centre,Catering Purchases,162.44,3663 (BFS GROUP LTD)
Revenue,Economy & Environment,5105617721,09.08.2013,Ryde Sports Centre,Catering Purchases,81.16,3663 (BFS GROUP LTD)
Revenue,Economy & Environment,5105620822,21.08.2013,Ryde Sports Centre,Catering Purchases,172.57,3663 (BFS GROUP LTD)
Revenue,Economy & Environment,5105617931,09.08.2013,Fairway Sports Complex,Operational Equipment,76.56,3663 (BFS GROUP LTD)
Revenue,Economy & Environment,5105620558,21.08.2013,Westridge Squash Courts,Operational Equipment,66.43,3663 (BFS GROUP LTD)
Revenue,Economy & Environment,5105620845,21.08.2013,Westridge Squash Courts,Operational Equipment,80.23,3663 (BFS GROUP LTD)
Revenue,Economy & Environment,5105622614,30.08.2013,Medina Cafe Stock,Order Settlement,87.82,3663 (BFS GROUP LTD)
Revenue,Economy & Environment,5105617717,09.08.2013,Medina Vending Machine Stock,Order Settlement,240.99,3663 (BFS GROUP LTD)
Revenue,Economy & Environment,5105617718,09.08.2013,Medina Vending Machine Stock,Order Settlement,236.98,3663 (BFS GROUP LTD)
Revenue,Economy & Environment,5105621211,23.08.2013,Medina Vending Machine Stock,Order Settlement,830.36,3663 (BFS GROUP LTD)
Revenue,Economy & Environment,5105621211,23.08.2013,Medina Vending Machine Stock,Order Settlement,35.22,3663 (BFS GROUP LTD)
Revenue,Economy & Environment,5105620557,21.08.2013,Heights Cafe Stock,Order Settlement,240.05,3663 (BFS GROUP LTD)
Revenue,Economy & Environment,5105620557,21.08.2013,Heights Cafe Stock,Order Settlement,18.33,3663 (BFS GROUP LTD)
Revenue,Economy & Environment,5105620843,21.08.2013,Heights Cafe Stock,Order Settlement,286.93,3663 (BFS GROUP LTD)
Revenue,Economy & Environment,5105620937,21.08.2013,Heights Cafe Stock,Order Settlement,251.75,3663 (BFS GROUP LTD)
Revenue,Economy & Environment,5105620937,21.08.2013,Heights Cafe Stock,Order Settlement,52.82,3663 (BFS GROUP LTD)
Revenue,Economy & Environment,5105620843,21.08.2013,Heights Cafe Stock,Order Settlement,21.83,3663 (BFS GROUP LTD)
Revenue,Economy & Environment,5105621065,21.08.2013,Heights Vending Stock,Order Settlement,411.85,3663 (BFS GROUP LTD)
Revenue,Economy & Environment,5105621065,21.08.2013,Heights Vending Stock,Order Settlement,16.95,3663 (BFS GROUP LTD)
Revenue,Economy & Environment,5105619246,14.08.2013,Heights Vending Stock,Order Settlement,217.94,3663 (BFS GROUP LTD)
Revenue,Economy & Environment,5105620844,21.08.2013,Heights Vending Stock,Order Settlement,307.59,3663 (BFS GROUP LTD)
Revenue,Economy & Environment,5105620844,21.08.2013,Heights Vending Stock,Order Settlement,16.95,3663 (BFS GROUP LTD)
Revenue,Economy & Environment,5105620555,21.08.2013,Heights Vending Stock,Order Settlement,479.14,3663 (BFS GROUP LTD)
Revenue,Economy & Environment,5105620555,21.08.2013,Heights Vending Stock,Order Settlement,16.95,3663 (BFS GROUP LTD)
Revenue,Economy & Environment,5105615313,21.08.2013,Project Manager Waste Strategy,Consultants Fees,461.25,4 PROJECTS LIMITED
Revenue,Community Wellbeing & Social Care,5105619543,21.08.2013,Adelaide Resource Centre,Consumable Cleaning Materials,261.00,A & M APPLIANCE CARE
Revenue,Community Wellbeing & Social Care,5105622834,30.08.2013,Gouldings Resource Centre,Operational Equipment,109.60,A & M APPLIANCE CARE
Revenue,Community Wellbeing & Social Care,5105622831,30.08.2013,Gouldings Resource Centre,Operational Equipment,155.02,A & M APPLIANCE CARE
Revenue,Community Wellbeing & Social Care,5105617190,02.08.2013,Gouldings Resource Centre,Consumable Cleaning Materials,180.00,A & M APPLIANCE CARE
Revenue,Community Wellbeing & Social Care,5105622833,30.08.2013,Gouldings Resource Centre,Consumable Cleaning Materials,120.00,A & M APPLIANCE CARE
Revenue,Community Wellbeing & Social Care,5105622832,30.08.2013,Westminster House,Maintenance of Operational Equipment,75.00,A & M APPLIANCE CARE
Revenue,Childrens Services,5105617407,07.08.2013,Beaulieu House,Minor Works,55.00,A & M APPLIANCE CARE
Revenue,Childrens Services,5105620789,21.08.2013,Head of Childrens - Safeguarding,Advertising & Publicity,"4,350.00",A & N MEDIA FINANCE SERVICES LTD
Revenue,Childrens Services,5105620790,21.08.2013,Head of Childrens - Safeguarding,Advertising & Publicity,500.00,A & N MEDIA FINANCE SERVICES LTD
Revenue,Childrens Services,5105621879,23.08.2013,Branstone Farm Studies Centre,General Materials,"1,550.00",REDACTED PERSONAL DATA
Revenue,Community Wellbeing & Social Care,5105617688,09.08.2013,Adult Social Care - Care Management Training,Training,362.50,REDACTED PERSONAL DATA
Revenue,Community Wellbeing & Social Care,5105617688,09.08.2013,Independent Sector Training,Training,362.50,REDACTED PERSONAL DATA
Revenue,Economy & Environment,5105622572,30.08.2013,Medina Theatre,Operational Equipment,132.50,A C LIGHTING LTD
Revenue,Community Wellbeing & Social Care,5105621335,23.08.2013,Leaseholds by LA,Accommodation Costs - Leaseholder Payments,780.00,REDACTED PERSONAL DATA
Revenue,Childrens Services,5105622425,30.08.2013,Fostering services,Boarding Out Allowances,146.09,REDACTED PERSONAL DATA
Revenue,Childrens Services,5105622425,30.08.2013,Fostering services,Boarding Out Allowances,181.79,REDACTED PERSONAL DATA
Revenue,Childrens Services,5105622425,30.08.2013,Fostering services,Boarding Out Allowances,10.00,REDACTED PERSONAL DATA
Revenue,Childrens Services,5105621458,23.08.2013,Fostering services,Boarding Out Allowances,146.09,REDACTED PERSONAL DATA
Revenue,Childrens Services,5105621458,23.08.2013,Fostering services,Boarding Out Allowances,181.79,REDACTED PERSONAL DATA
Revenue,Childrens Services,5105621458,23.08.2013,Fostering services,Boarding Out Allowances,10.00,REDACTED PERSONAL DATA
Revenue,Childrens Services,5105619949,16.08.2013,Fostering services,Boarding Out Allowances,146.09,REDACTED PERSONAL DATA
Revenue,Childrens Services,5105619949,16.08.2013,Fostering services,Boarding Out Allowances,181.79,REDACTED PERSONAL DATA
Revenue,Childrens Services,5105619949,16.08.2013,Fostering services,Boarding Out Allowances,10.00,REDACTED PERSONAL DATA
Revenue,Childrens Services,5105616977,02.08.2013,Fostering services,Boarding Out Allowances,146.09,REDACTED PERSONAL DATA
Revenue,Childrens Services,5105616977,02.08.2013,Fostering services,Boarding Out Allowances,181.79,REDACTED PERSONAL DATA
Revenue,Childrens Services,5105616977,02.08.2013,Fostering services,Boarding Out Allowances,10.00,REDACTED PERSONAL DATA
Revenue,Childrens Services,5105617793,09.08.2013,Fostering services,Boarding Out Allowances,146.09,REDACTED PERSONAL DATA
Revenue,Childrens Services,5105617793,09.08.2013,Fostering services,Boarding Out Allowances,181.79,REDACTED PERSONAL DATA
Revenue,Childrens Services,5105617793,09.08.2013,Fostering services,Boarding Out Allowances,10.00,REDACTED PERSONAL DATA
Revenue,Childrens Services,5105622511,30.08.2013,Leaving Care Costs,Accommodation Costs - Service Users,57.50,REDACTED PERSONAL DATA
Revenue,Childrens Services,5105621546,23.08.2013,Leaving Care Costs,Accommodation Costs - Service Users,57.50,REDACTED PERSONAL DATA
Revenue,Childrens Services,5105617881,16.08.2013,Leaving Care Costs,Accommodation Costs - Service Users,73.89,REDACTED PERSONAL DATA
Revenue,Childrens Services,5105620036,16.08.2013,Leaving Care Costs,Accommodation Costs - Service Users,57.50,REDACTED PERSONAL DATA
Revenue,Childrens Services,5105621546,23.08.2013,Leaving Care Costs,Support Children,120.89,REDACTED PERSONAL DATA
Revenue,Childrens Services,5105622511,30.08.2013,Leaving Care Costs,Support Children,120.89,REDACTED PERSONAL DATA
Revenue,Childrens Services,5105617881,16.08.2013,Leaving Care Costs,Support Children,155.43,REDACTED PERSONAL DATA
Revenue,Childrens Services,5105620036,16.08.2013,Leaving Care Costs,Support Children,120.89,REDACTED PERSONAL DATA
Revenue,Community Wellbeing & Social Care,5105621344,23.08.2013,Leaseholds by LA,Accommodation Costs - Leaseholder Payments,510.25,REDACTED PERSONAL DATA
Revenue,Community Wellbeing & Social Care,5105621344,23.08.2013,Leaseholds by LA,Accommodation Costs - Leaseholder Payments,510.25,REDACTED PERSONAL DATA
Revenue,Community Wellbeing & Social Care,5105621344,23.08.2013,Leaseholds by LA,Accommodation Costs - Leaseholder Payments,510.25,REDACTED PERSONAL DATA
Revenue,Community Wellbeing & Social Care,5105621344,23.08.2013,Leaseholds by LA,Accommodation Costs - Leaseholder Payments,510.25,REDACTED PERSONAL DATA
Revenue,Community Wellbeing & Social Care,5105621344,23.08.2013,Leaseholds by LA,Accommodation Costs - Leaseholder Payments,510.25,REDACTED PERSONAL DATA
Revenue,Community Wellbeing & Social Care,5105621344,23.08.2013,Leaseholds by LA,Accommodation Costs - Leaseholder Payments,510.25,REDACTED PERSONAL DATA
Revenue,Childrens Services,5105619921,16.08.2013,Adoption Costs,Support Children,186.49,REDACTED PERSONAL DATA
Revenue,Childrens Services,5105621430,23.08.2013,Adoption Costs,Support Children,186.49,REDACTED PERSONAL DATA
Revenue,Childrens Services,5105622397,30.08.2013,Adoption Costs,Support Children,186.49,REDACTED PERSONAL DATA
Revenue,Childrens Services,5105616949,02.08.2013,Adoption Costs,Support Children,186.49,REDACTED PERSONAL DATA
Revenue,Childrens Services,5105617765,09.08.2013,Adoption Costs,Support Children,186.49,REDACTED PERSONAL DATA
Revenue,Childrens Services,5105622467,30.08.2013,Fostering services,Boarding Out Allowances,221.13,REDACTED PERSONAL DATA
Revenue,Childrens Services,5105621501,23.08.2013,Fostering services,Boarding Out Allowances,221.13,REDACTED PERSONAL DATA
Revenue,Childrens Services,5105619992,16.08.2013,Fostering services,Boarding Out Allowances,221.13,REDACTED PERSONAL DATA
Revenue,Childrens Services,5105617020,02.08.2013,Fostering services,Boarding Out Allowances,221.13,REDACTED PERSONAL DATA
Revenue,Childrens Services,5105617836,09.08.2013,Fostering services,Boarding Out Allowances,221.13,REDACTED PERSONAL DATA
Revenue,Community Wellbeing & Social Care,5105621346,23.08.2013,Leaseholds by LA,Accommodation Costs - Leaseholder Payments,780.00,REDACTED PERSONAL DATA
Revenue,Community Wellbeing & Social Care,5105621333,23.08.2013,Leaseholds by LA,Accommodation Costs - Leaseholder Payments,649.83,REDACTED PERSONAL DATA
Revenue,Community Wellbeing & Social Care,5105621333,23.08.2013,Leaseholds by LA,Accommodation Costs - Leaseholder Payments,789.01,REDACTED PERSONAL DATA
Revenue,Community Wellbeing & Social Care,5105621333,23.08.2013,Leaseholds by LA,Accommodation Costs - Leaseholder Payments,835.08,REDACTED PERSONAL DATA
Revenue,Childrens Services,5105621426,23.08.2013,Adoption Costs,Support Children,87.15,REDACTED PERSONAL DATA
Revenue,Childrens Services,5105622393,30.08.2013,Adoption Costs,Support Children,87.15,REDACTED PERSONAL DATA
Revenue,Childrens Services,5105617760,09.08.2013,Adoption Costs,Support Children,87.15,REDACTED PERSONAL DATA
Revenue,Childrens Services,5105619917,16.08.2013,Adoption Costs,Support Children,87.15,REDACTED PERSONAL DATA
Revenue,Childrens Services,5105616944,02.08.2013,Adoption Costs,Support Children,87.15,REDACTED PERSONAL DATA
Revenue,Community Wellbeing & Social Care,5105619278,14.08.2013,Ryde Library,Publications,68.70,AB NEWS
Revenue,Community Wellbeing & Social Care,5105622745,30.08.2013,Supporting People Older Persons,Payment to Private Contractors,924.60,ABBEYFIELD WEST WIGHT SOCIETY
Revenue,Community Wellbeing & Social Care,5105617274,02.08.2013,Supporting People Older Persons,Payment to Private Contractors,667.20,ABBEYFIELD WEST WIGHT SOCIETY
Revenue,Community Wellbeing & Social Care,5105618645,14.08.2013,Elderly Residential Daycare,Charges from Independent Providers,"1,622.60",ACACIA CARE HOME
Revenue,Community Wellbeing & Social Care,5105618645,14.08.2013,Elderly Residential Daycare,Charges from Independent Providers,"1,622.60",ACACIA CARE HOME
Revenue,Economy & Environment,5105620631,21.08.2013,Media,Professional Subscriptions,"4,480.00",ACCESS INTELLIGENCE MEDIA & COMMUNICATIONS LTD
Revenue,Resources,5105620485,16.08.2013,Legal Services,Interview & Recruitment Expenses,6.00,ACCESS PERSONAL CHECKING
Revenue,Resources,5105620485,16.08.2013,Legal Services,Interview & Recruitment Expenses,44.00,ACCESS PERSONAL CHECKING
Revenue,Community Wellbeing & Social Care,5105620485,16.08.2013,The Laurels,Interview & Recruitment Expenses,44.00,ACCESS PERSONAL CHECKING
Revenue,Community Wellbeing & Social Care,5105620485,16.08.2013,The Laurels,Interview & Recruitment Expenses,44.00,ACCESS PERSONAL CHECKING
Revenue,Community Wellbeing & Social Care,5105620485,16.08.2013,The Laurels,Interview & Recruitment Expenses,6.00,ACCESS PERSONAL CHECKING
Revenue,Community Wellbeing & Social Care,5105620485,16.08.2013,The Laurels,Interview & Recruitment Expenses,6.00,ACCESS PERSONAL CHECKING
Revenue,Community Wellbeing & Social Care,5105620485,16.08.2013,Adelaide Resource Centre,Interview & Recruitment Expenses,44.00,ACCESS PERSONAL CHECKING
Revenue,Community Wellbeing & Social Care,5105620485,16.08.2013,Adelaide Resource Centre,Interview & Recruitment Expenses,6.00,ACCESS PERSONAL CHECKING
Revenue,Community Wellbeing & Social Care,5105620485,16.08.2013,Adelaide Resource Centre,Interview & Recruitment Expenses,12.00,ACCESS PERSONAL CHECKING
Revenue,Community Wellbeing & Social Care,5105620485,16.08.2013,Adelaide Resource Centre,Interview & Recruitment Expenses,88.00,ACCESS PERSONAL CHECKING
Revenue,Community Wellbeing & Social Care,5105620485,16.08.2013,Gouldings Resource Centre,Interview & Recruitment Expenses,12.00,ACCESS PERSONAL CHECKING
Revenue,Community Wellbeing & Social Care,5105620485,16.08.2013,Gouldings Resource Centre,Interview & Recruitment Expenses,88.00,ACCESS PERSONAL CHECKING
Revenue,Community Wellbeing & Social Care,5105620485,16.08.2013,No-Barriers,Interview & Recruitment Expenses,6.00,ACCESS PERSONAL CHECKING
Revenue,Community Wellbeing & Social Care,5105620485,16.08.2013,No-Barriers,Interview & Recruitment Expenses,44.00,ACCESS PERSONAL CHECKING
Revenue,Community Wellbeing & Social Care,5105620485,16.08.2013,Adult Community Learning,Interview & Recruitment Expenses,44.00,ACCESS PERSONAL CHECKING
Revenue,Community Wellbeing & Social Care,5105620485,16.08.2013,Adult Community Learning,Interview & Recruitment Expenses,6.00,ACCESS PERSONAL CHECKING
Revenue,Community Wellbeing & Social Care,5105620485,16.08.2013,Adult Community Learning,Interview & Recruitment Expenses,44.00,ACCESS PERSONAL CHECKING
Revenue,Community Wellbeing & Social Care,5105620485,16.08.2013,Adult Community Learning,Interview & Recruitment Expenses,6.00,ACCESS PERSONAL CHECKING
Revenue,Economy & Environment,5105620485,16.08.2013,Medina Leisure Centre,Interview & Recruitment Expenses,26.00,ACCESS PERSONAL CHECKING
Revenue,Economy & Environment,5105620485,16.08.2013,Medina Leisure Centre,Interview & Recruitment Expenses,6.00,ACCESS PERSONAL CHECKING
Revenue,Childrens Services,5105620485,16.08.2013,Thompson House Tuition Centre (PRU),Interview & Recruitment Expenses,12.00,ACCESS PERSONAL CHECKING
Revenue,Childrens Services,5105620485,16.08.2013,Thompson House Tuition Centre (PRU),Interview & Recruitment Expenses,88.00,ACCESS PERSONAL CHECKING
Revenue,Childrens Services,5105620485,16.08.2013,Clatterford Pupil Referral Unit (PRU),Interview & Recruitment Expenses,44.00,ACCESS PERSONAL CHECKING
Revenue,Childrens Services,5105620485,16.08.2013,Clatterford Pupil Referral Unit (PRU),Interview & Recruitment Expenses,6.00,ACCESS PERSONAL CHECKING
Revenue,Childrens Services,5105620485,16.08.2013,Clatterford Pupil Referral Unit (PRU),Interview & Recruitment Expenses,44.00,ACCESS PERSONAL CHECKING
Revenue,Childrens Services,5105620485,16.08.2013,Clatterford Pupil Referral Unit (PRU),Interview & Recruitment Expenses,6.00,ACCESS PERSONAL CHECKING
Revenue,Childrens Services,5105620485,16.08.2013,Fostering services,Interview & Recruitment Expenses,120.00,ACCESS PERSONAL CHECKING
Revenue,Childrens Services,5105620485,16.08.2013,Fostering services,Interview & Recruitment Expenses,880.00,ACCESS PERSONAL CHECKING
Revenue,Childrens Services,5105620485,16.08.2013,Adoption Units,Interview & Recruitment Expenses,44.00,ACCESS PERSONAL CHECKING
Revenue,Childrens Services,5105620485,16.08.2013,Adoption Units,Interview & Recruitment Expenses,6.00,ACCESS PERSONAL CHECKING
Revenue,Childrens Services,5105620485,16.08.2013,Youth- Ventnor,Interview & Recruitment Expenses,6.00,ACCESS PERSONAL CHECKING
Revenue,Childrens Services,5105620485,16.08.2013,Beaulieu House,Interview & Recruitment Expenses,44.00,ACCESS PERSONAL CHECKING
Revenue,Childrens Services,5105620485,16.08.2013,Beaulieu House,Interview & Recruitment Expenses,6.00,ACCESS PERSONAL CHECKING
Revenue,Childrens Services,5105620485,16.08.2013,Children's Services Strategic Management,Interview & Recruitment Expenses,6.00,ACCESS PERSONAL CHECKING
Revenue,Childrens Services,5105620485,16.08.2013,Children's Services Strategic Management,Interview & Recruitment Expenses,44.00,ACCESS PERSONAL CHECKING
Revenue,Childrens Services,5105620485,16.08.2013,Reviewing Officer,Interview & Recruitment Expenses,6.00,ACCESS PERSONAL CHECKING
Revenue,Childrens Services,5105620485,16.08.2013,Reviewing Officer,Interview & Recruitment Expenses,44.00,ACCESS PERSONAL CHECKING
Revenue,Childrens Services,5105620485,16.08.2013,Childrens Safeguarding Commissioners,Interview & Recruitment Expenses,12.00,ACCESS PERSONAL CHECKING
Revenue,Childrens Services,5105620485,16.08.2013,Childrens Safeguarding Commissioners,Interview & Recruitment Expenses,88.00,ACCESS PERSONAL CHECKING
Revenue,Childrens Services,5105620485,16.08.2013,Education Participation Team,Interview & Recruitment Expenses,12.00,ACCESS PERSONAL CHECKING
Revenue,Childrens Services,5105620485,16.08.2013,Education Participation Team,Interview & Recruitment Expenses,88.00,ACCESS PERSONAL CHECKING
Revenue,Community Wellbeing & Social Care,5105620485,16.08.2013,HIV / AIDS,Interview & Recruitment Expenses,6.00,ACCESS PERSONAL CHECKING
Revenue,Economy & Environment,5105620483,23.08.2013,Licensing Services,Interview & Recruitment Expenses,"1,056.00",ACCESS PERSONAL CHECKING
Revenue,Economy & Environment,5105620483,23.08.2013,Licensing Services,Professional Service,144.00,ACCESS PERSONAL CHECKING
Revenue,Community Wellbeing & Social Care,5105619359,14.08.2013,Elderly Frail Homecare,Regular Respite Care,116.16,ACORN CARE SERVICE LTD
Revenue,Community Wellbeing & Social Care,5105619357,14.08.2013,Elderly Frail Homecare,Regular Respite Care,29.04,ACORN CARE SERVICE LTD
Revenue,Community Wellbeing & Social Care,5105619374,14.08.2013,Elderly Frail Homecare,Regular Respite Care,116.16,ACORN CARE SERVICE LTD
Revenue,Community Wellbeing & Social Care,5105619374,14.08.2013,Elderly Frail Homecare,Regular Respite Care,116.16,ACORN CARE SERVICE LTD
Revenue,Community Wellbeing & Social Care,5105619361,14.08.2013,Elderly Frail Homecare,Regular Respite Care,116.16,ACORN CARE SERVICE LTD
Revenue,Community Wellbeing & Social Care,5105619372,14.08.2013,Elderly Frail Homecare,Regular Respite Care,87.12,ACORN CARE SERVICE LTD
Revenue,Community Wellbeing & Social Care,5105619346,14.08.2013,Elderly Frail Homecare,Charges from Independent Providers,522.72,ACORN CARE SERVICE LTD
Revenue,Community Wellbeing & Social Care,5105619347,14.08.2013,Elderly Frail Homecare,Charges from Independent Providers,508.20,ACORN CARE SERVICE LTD
Revenue,Community Wellbeing & Social Care,5105619348,14.08.2013,Elderly Frail Homecare,Charges from Independent Providers,101.64,ACORN CARE SERVICE LTD
Revenue,Community Wellbeing & Social Care,5105619349,14.08.2013,Elderly Frail Homecare,Charges from Independent Providers,58.08,ACORN CARE SERVICE LTD
Revenue,Community Wellbeing & Social Care,5105619350,14.08.2013,Elderly Frail Homecare,Charges from Independent Providers,203.28,ACORN CARE SERVICE LTD
Revenue,Community Wellbeing & Social Care,5105619351,14.08.2013,Elderly Frail Homecare,Charges from Independent Providers,196.02,ACORN CARE SERVICE LTD
Revenue,Community Wellbeing & Social Care,5105619352,14.08.2013,Elderly Frail Homecare,Charges from Independent Providers,203.28,ACORN CARE SERVICE LTD
Revenue,Community Wellbeing & Social Care,5105619353,14.08.2013,Elderly Frail Homecare,Charges from Independent Providers,392.04,ACORN CARE SERVICE LTD
Revenue,Community Wellbeing & Social Care,5105619353,14.08.2013,Elderly Frail Homecare,Charges from Independent Providers,56.00,ACORN CARE SERVICE LTD
Revenue,Community Wellbeing & Social Care,5105619354,14.08.2013,Elderly Frail Homecare,Charges from Independent Providers,94.38,ACORN CARE SERVICE LTD
Revenue,Community Wellbeing & Social Care,5105619355,14.08.2013,Elderly Frail Homecare,Charges from Independent Providers,348.48,ACORN CARE SERVICE LTD
Revenue,Community Wellbeing & Social Care,5105619362,14.08.2013,Elderly Frail Homecare,Charges from Independent Providers,406.56,ACORN CARE SERVICE LTD
Revenue,Community Wellbeing & Social Care,5105619337,14.08.2013,Elderly Frail Homecare,Charges from Independent Providers,755.04,ACORN CARE SERVICE LTD
Revenue,Community Wellbeing & Social Care,5105619338,14.08.2013,Elderly Frail Homecare,Charges from Independent Providers,"2,221.56",ACORN CARE SERVICE LTD
Revenue,Community Wellbeing & Social Care,5105619339,14.08.2013,Elderly Frail Homecare,Charges from Independent Providers,290.40,ACORN CARE SERVICE LTD
Revenue,Community Wellbeing & Social Care,5105619340,14.08.2013,Elderly Frail Homecare,Charges from Independent Providers,712.08,ACORN CARE SERVICE LTD
Revenue,Community Wellbeing & Social Care,5105619341,14.08.2013,Elderly Frail Homecare,Charges from Independent Providers,809.49,ACORN CARE SERVICE LTD
Revenue,Community Wellbeing & Social Care,5105619342,14.08.2013,Elderly Frail Homecare,Charges from Independent Providers,"1,408.44",ACORN CARE SERVICE LTD
Revenue,Community Wellbeing & Social Care,5105619343,14.08.2013,Elderly Frail Homecare,Charges from Independent Providers,348.48,ACORN CARE SERVICE LTD
Revenue,Community Wellbeing & Social Care,5105619344,14.08.2013,Elderly Frail Homecare,Charges from Independent Providers,827.64,ACORN CARE SERVICE LTD
Revenue,Community Wellbeing & Social Care,5105619345,14.08.2013,Elderly Frail Homecare,Charges from Independent Providers,203.28,ACORN CARE SERVICE LTD
Revenue,Community Wellbeing & Social Care,5105619373,14.08.2013,Elderly Frail Homecare,Charges from Independent Providers,58.08,ACORN CARE SERVICE LTD
Revenue,Community Wellbeing & Social Care,5105619373,14.08.2013,Elderly Frail Homecare,Charges from Independent Providers,326.70,ACORN CARE SERVICE LTD
Revenue,Community Wellbeing & Social Care,5105619334,14.08.2013,Elderly Frail Homecare,Charges from Independent Providers,377.52,ACORN CARE SERVICE LTD
Revenue,Community Wellbeing & Social Care,5105619335,14.08.2013,Elderly Frail Homecare,Charges from Independent Providers,849.42,ACORN CARE SERVICE LTD
Revenue,Community Wellbeing & Social Care,5105619335,14.08.2013,Elderly Frail Homecare,Charges from Independent Providers,28.00,ACORN CARE SERVICE LTD
Revenue,Community Wellbeing & Social Care,5105619336,14.08.2013,Elderly Frail Homecare,Charges from Independent Providers,497.31,ACORN CARE SERVICE LTD
Revenue,Community Wellbeing & Social Care,5105619356,14.08.2013,Elderly Frail Homecare,Charges from Independent Providers,406.56,ACORN CARE SERVICE LTD
Revenue,Community Wellbeing & Social Care,5105619358,14.08.2013,Elderly Frail Homecare,Charges from Independent Providers,301.29,ACORN CARE SERVICE LTD
Revenue,Community Wellbeing & Social Care,5105619358,14.08.2013,Elderly Frail Homecare,Charges from Independent Providers,24.50,ACORN CARE SERVICE LTD
Revenue,Community Wellbeing & Social Care,5105619378,14.08.2013,Elderly Frail Homecare,Charges from Independent Providers,"2,272.38",ACORN CARE SERVICE LTD
Revenue,Community Wellbeing & Social Care,5105619367,14.08.2013,Elderly Frail Homecare,Charges from Independent Providers,421.08,ACORN CARE SERVICE LTD
Revenue,Community Wellbeing & Social Care,5105619368,14.08.2013,Elderly Frail Homecare,Charges from Independent Providers,348.48,ACORN CARE SERVICE LTD
Revenue,Community Wellbeing & Social Care,5105619360,14.08.2013,Elderly Frail Homecare,Charges from Independent Providers,196.02,ACORN CARE SERVICE LTD
Revenue,Community Wellbeing & Social Care,5105619370,14.08.2013,Elderly Frail Homecare,Charges from Independent Providers,700.59,ACORN CARE SERVICE LTD
Revenue,Community Wellbeing & Social Care,5105619365,14.08.2013,Elderly Frail Homecare,Charges from Independent Providers,50.82,ACORN CARE SERVICE LTD
Revenue,Community Wellbeing & Social Care,5105619366,14.08.2013,Elderly Frail Homecare,Charges from Independent Providers,348.48,ACORN CARE SERVICE LTD
Revenue,Community Wellbeing & Social Care,5105619376,14.08.2013,Elderly Frail Homecare,Charges from Independent Providers,297.66,ACORN CARE SERVICE LTD
Revenue,Community Wellbeing & Social Care,5105619376,14.08.2013,Elderly Frail Homecare,Charges from Independent Providers,319.44,ACORN CARE SERVICE LTD
Revenue,Community Wellbeing & Social Care,5105619371,14.08.2013,Elderly Frail Homecare,Charges from Independent Providers,54.45,ACORN CARE SERVICE LTD
Revenue,Community Wellbeing & Social Care,5105619375,14.08.2013,Elderly Frail Homecare,Charges from Independent Providers,602.58,ACORN CARE SERVICE LTD
Revenue,Community Wellbeing & Social Care,5105619375,14.08.2013,Elderly Frail Homecare,Charges from Independent Providers,598.95,ACORN CARE SERVICE LTD
Revenue,Community Wellbeing & Social Care,5105619377,14.08.2013,Elderly Frail Homecare,Charges from Independent Providers,87.12,ACORN CARE SERVICE LTD
Revenue,Community Wellbeing & Social Care,5105619364,14.08.2013,Elderly Frail Managed Accounts,Charges from Independent Providers,849.42,ACORN CARE SERVICE LTD
Revenue,Community Wellbeing & Social Care,5105619364,14.08.2013,Elderly Frail Managed Accounts,Charges from Independent Providers,525.28,ACORN CARE SERVICE LTD
Revenue,Community Wellbeing & Social Care,5105619369,14.08.2013,Elderly Frail Managed Accounts,Regular Respite Care,29.04,ACORN CARE SERVICE LTD
Revenue,Community Wellbeing & Social Care,5105619363,14.08.2013,Elderly Frail Managed Accounts,Charges from Independent Providers,882.09,ACORN CARE SERVICE LTD
Revenue,Community Wellbeing & Social Care,5105619363,14.08.2013,Elderly Frail Managed Accounts,Charges from Independent Providers,914.76,ACORN CARE SERVICE LTD
Revenue,Community Wellbeing & Social Care,5105619363,14.08.2013,Elderly Frail Managed Accounts,Charges from Independent Providers,900.24,ACORN CARE SERVICE LTD
Revenue,Economy & Environment,5400001709,30.08.2013,Westridge Squash Courts,Payment to Private Contractors,30.00,ACTIVE FACES WELLBEING LIMITED
Revenue,Resources,5105622256,28.08.2013,Litigation Costs,Legal Fees - Other Parties,780.00,COLLEGE CHAMBERS
Revenue,Economy & Environment,5105621595,23.08.2013,Fire Technical Support,Vehicle Maintenance Costs,14.50,ADAMS MOREY LTD
Revenue,Economy & Environment,5105619795,14.08.2013,Fire Technical Support,Vehicle Maintenance Costs,14.50,ADAMS MOREY LTD
Revenue,Economy & Environment,5105619573,14.08.2013,Fire Technical Support,Vehicle Maintenance Costs,120.00,ADAMS MOREY LTD
Revenue,Economy & Environment,5105619794,14.08.2013,Fire Technical Support,Vehicle Maintenance Costs,2.30,ADAMS MOREY LTD
Revenue,Economy & Environment,5105619794,14.08.2013,Fire Technical Support,Vehicle Maintenance Costs,14.60,ADAMS MOREY LTD
Revenue,Economy & Environment,5105619794,14.08.2013,Fire Technical Support,Vehicle Maintenance Costs,22.20,ADAMS MOREY LTD
Revenue,Economy & Environment,5105619794,14.08.2013,Fire Technical Support,Vehicle Maintenance Costs,54.30,ADAMS MOREY LTD
Revenue,Economy & Environment,5105619794,14.08.2013,Fire Technical Support,Vehicle Maintenance Costs,3.50,ADAMS MOREY LTD
Revenue,Economy & Environment,5105617402,07.08.2013,Fire Technical Support,Vehicle Maintenance Costs,14.50,ADAMS MOREY LTD
Revenue,Economy & Environment,5105621876,28.08.2013,Fire Technical Support,Vehicle Maintenance Costs,29.50,ADAMS MOREY LTD
Revenue,Economy & Environment,5105621689,23.08.2013,Fire Technical Support,Vehicle Maintenance Costs,464.05,ADAMS MOREY LTD
Revenue,Economy & Environment,5105621689,23.08.2013,Fire Technical Support,Vehicle Maintenance Costs,24.20,ADAMS MOREY LTD
Revenue,Childrens Services,5105620630,21.08.2013,Adoption Costs,Payments to Voluntary and Other Associations,"1,194.42",ADOPTION MATTERS NORTHWEST
Revenue,Childrens Services,5105622880,30.08.2013,Adoption Units,Advertising & Publicity,685.13,ADOPTION UK
Capital,Resources,5105621307,23.08.2013,Asbestos,Capital Contractor Payments,606.00,ADT FIRE AND SECURITY PLC
Revenue,Economy & Environment,5105622251,28.08.2013,Medina Leisure Centre,Payment to Private Contractors,206.00,ADT FIRE AND SECURITY PLC
Revenue,Economy & Environment,5105619545,14.08.2013,Medina Leisure Centre,Payment to Private Contractors,196.00,ADT FIRE AND SECURITY PLC
Revenue,Childrens Services,5105617191,02.08.2013,Youth- West Wight,Security of Buildings,123.37,ADT FIRE AND SECURITY PLC
Revenue,Community Wellbeing & Social Care,5105620567,21.08.2013,Dinosaur Isle Museum (Sandown Geology),Operational Equipment,585.93,AEP
Revenue,Community Wellbeing & Social Care,5105617246,02.08.2013,Mental Health Other Care,Charges from Independent Providers,120.00,AGE CONCERN ISLE OF WIGHT
Revenue,Community Wellbeing & Social Care,5105617246,02.08.2013,Mental Health Other Care,Charges from Independent Providers,240.00,AGE CONCERN ISLE OF WIGHT
Revenue,Community Wellbeing & Social Care,5105617246,02.08.2013,Mental Health Other Care,Charges from Independent Providers,240.00,AGE CONCERN ISLE OF WIGHT
Revenue,Community Wellbeing & Social Care,5105617246,02.08.2013,Mental Health Other Care,Charges from Independent Providers,24.00,AGE CONCERN ISLE OF WIGHT
Revenue,Community Wellbeing & Social Care,5105617103,02.08.2013,Mental Health Other Care,Charges from Independent Providers,120.00,AGE CONCERN ISLE OF WIGHT
Revenue,Community Wellbeing & Social Care,5105617192,02.08.2013,Wightcare,General Materials,16.00,AGE CONCERN T/A AGE UK
Revenue,Childrens Services,5105621927,23.08.2013,Court Work & Consultancy Services,Legal Fees - Other Parties,"1,115.61",AHIMSA (SAFER FAMILIES) LTD
Revenue,Economy & Environment,5105620266,21.08.2013,Fire Technical Support,Postage,7.50,AIR LOGISTICS NETWORKS LTD
Revenue,Economy & Environment,5105620249,16.08.2013,Environmental Health - Geographical Team,Courier Costs,125.84,AIR LOGISTICS NETWORKS LTD
Revenue,Economy & Environment,5105621210,23.08.2013,Environmental Health - Geographical Team,Courier Costs,11.67,AIR LOGISTICS NETWORKS LTD
Revenue,Community Wellbeing & Social Care,5105622357,30.08.2013,Emergency Duty Service,Agency staff,"1,480.00",AIR SOCIAL CARE
Revenue,Community Wellbeing & Social Care,5105622322,30.08.2013,Emergency Duty Service,Agency staff,"1,480.00",AIR SOCIAL CARE
Revenue,Community Wellbeing & Social Care,5105619796,14.08.2013,Emergency Duty Service,Agency staff,"1,480.00",AIR SOCIAL CARE
Revenue,Community Wellbeing & Social Care,5105620804,21.08.2013,Emergency Duty Service,Agency staff,"1,480.00",AIR SOCIAL CARE
Revenue,Community Wellbeing & Social Care,5105617408,07.08.2013,Emergency Duty Service,Agency staff,"1,480.00",AIR SOCIAL CARE
Revenue,Childrens Services,5105612856,14.08.2013,Reviewing Officer,Agency staff,"1,665.00",AIR SOCIAL CARE
Revenue,Childrens Services,5105612856,14.08.2013,Reviewing Officer,Agency staff,240.30,AIR SOCIAL CARE
Revenue,Childrens Services,5105622322,30.08.2013,Reviewing Officer,Agency staff,"1,350.00",AIR SOCIAL CARE
Revenue,Childrens Services,5105622322,30.08.2013,Reviewing Officer,Agency staff,66.60,AIR SOCIAL CARE
Revenue,Childrens Services,5105617409,07.08.2013,Reviewing Officer,Agency staff,"1,350.00",AIR SOCIAL CARE
Revenue,Childrens Services,5105617409,07.08.2013,Reviewing Officer,Agency staff,273.90,AIR SOCIAL CARE
Revenue,Childrens Services,5105619800,14.08.2013,Reviewing Officer,Agency staff,"1,170.00",AIR SOCIAL CARE
Revenue,Childrens Services,5105619800,14.08.2013,Reviewing Officer,Agency staff,217.35,AIR SOCIAL CARE
Revenue,Childrens Services,5105620803,21.08.2013,Reviewing Officer,Agency staff,"1,350.00",AIR SOCIAL CARE
Revenue,Childrens Services,5105620803,21.08.2013,Reviewing Officer,Agency staff,197.80,AIR SOCIAL CARE
Revenue,Childrens Services,5105622357,30.08.2013,Reviewing Officer,Agency staff,"1,350.00",AIR SOCIAL CARE
Revenue,Childrens Services,5105622357,30.08.2013,Reviewing Officer,Agency staff,210.40,AIR SOCIAL CARE
Revenue,Childrens Services,5105622358,30.08.2013,Reviewing Officer,Agency staff,-0.45,AIR SOCIAL CARE
Revenue,Economy & Environment,5105617341,07.08.2013,Fire Control phase 2,Fire Comms - Radio,64.20,AIRWAVE SOLUTIONS LTD
Revenue,Economy & Environment,5105617341,07.08.2013,Fire Control phase 2,Fire Comms - Radio,56.80,AIRWAVE SOLUTIONS LTD
Revenue,Economy & Environment,5105617341,07.08.2013,Fire Control phase 2,Fire Comms - Radio,12.35,AIRWAVE SOLUTIONS LTD
Revenue,Economy & Environment,5105617341,07.08.2013,Fire Control phase 2,Fire Comms - Radio,12.00,AIRWAVE SOLUTIONS LTD
Revenue,Community Wellbeing & Social Care,5105619547,16.08.2013,Integrated Community Equipment Service,General Materials,195.00,AKW MEDI-CARE LTD
Revenue,Childrens Services,5105617994,16.08.2013,Support for Looked After Children,Support Children,120.00,ALAN SHEPARD (IOW)
Revenue,Community Wellbeing & Social Care,5105618038,14.08.2013,Contraception,Payment to Private Contractors,405.00,ALBERT STREET PRACTICE
Revenue,Community Wellbeing & Social Care,5105618038,14.08.2013,NHS Health Check Programme,Payment to Private Contractors,497.00,ALBERT STREET PRACTICE
Revenue,Community Wellbeing & Social Care,5105618038,14.08.2013,STI Tests & Treatment,Payment to Private Contractors,55.00,ALBERT STREET PRACTICE
Revenue,Community Wellbeing & Social Care,5105618038,14.08.2013,Adult Obesity,Payment to Private Contractors,330.00,ALBERT STREET PRACTICE
Revenue,Community Wellbeing & Social Care,5105618038,14.08.2013,Stop Smoking Services & Interventions,Payment to Private Contractors,720.00,ALBERT STREET PRACTICE
Revenue,Community Wellbeing & Social Care,5105621699,23.08.2013,Dinosaur Isle Museum (Sandown Geology),General Materials,17.72,ALEC TIRANTI LTD
Revenue,Community Wellbeing & Social Care,5105621699,23.08.2013,Dinosaur Isle Museum (Sandown Geology),General Materials,29.45,ALEC TIRANTI LTD
Revenue,Community Wellbeing & Social Care,5105621699,23.08.2013,Dinosaur Isle Museum (Sandown Geology),General Materials,78.32,ALEC TIRANTI LTD
Revenue,Community Wellbeing & Social Care,5105621699,23.08.2013,Dinosaur Isle Museum (Sandown Geology),General Materials,5.28,ALEC TIRANTI LTD
Revenue,Community Wellbeing & Social Care,5105621699,23.08.2013,Dinosaur Isle Museum (Sandown Geology),General Materials,16.96,ALEC TIRANTI LTD
Revenue,Economy & Environment,5105622670,30.08.2013,Development Control,Advertising & Publicity,82.16,ALEXANDER ADVERTISING (INT) LTD
Revenue,Economy & Environment,5105622671,30.08.2013,Development Control,Advertising & Publicity,277.30,ALEXANDER ADVERTISING (INT) LTD
Revenue,Economy & Environment,5105617995,16.08.2013,Development Control,Advertising & Publicity,236.22,ALEXANDER ADVERTISING (INT) LTD
Revenue,Economy & Environment,5105617329,07.08.2013,Development Control,Advertising & Publicity,236.22,ALEXANDER ADVERTISING (INT) LTD
Revenue,Economy & Environment,5105617328,07.08.2013,Development Control,Advertising & Publicity,215.68,ALEXANDER ADVERTISING (INT) LTD
Revenue,Childrens Services,5105619225,14.08.2013,Complaints - Children's Social Care,Professional Service,"1,838.75",ALISON CAMPBELL LTD
Revenue,Childrens Services,5105620321,16.08.2013,11-19 Activities,Bought in Professional Services - Curriculum (Schools),"8,300.95",ALKEMYGOLD LTD
Revenue,Childrens Services,5105620926,28.08.2013,Section 17: Children Young Adults Disabilities,Transport of Clients,72.00,ALPHA (IOW) LTD
Revenue,Childrens Services,5105616613,07.08.2013,Section 17: Children Young Adults Disabilities,Transport of Clients,96.00,ALPHA (IOW) LTD
Revenue,Childrens Services,5105617410,07.08.2013,Special Educational Needs Transport,Taxis - Contract Hire,228.00,ALPHA (IOW) LTD
Revenue,Childrens Services,5105617410,07.08.2013,Special Educational Needs Transport,Taxis - Contract Hire,180.00,ALPHA (IOW) LTD
Revenue,Childrens Services,5105617410,07.08.2013,Special Educational Needs Transport,Taxis - Contract Hire,49.26,ALPHA (IOW) LTD
Revenue,Childrens Services,5105617410,07.08.2013,Special Educational Needs Transport,Taxis - Contract Hire,153.90,ALPHA (IOW) LTD
Revenue,Childrens Services,5105617410,07.08.2013,Special Educational Needs Transport,Taxis - Contract Hire,210.00,ALPHA (IOW) LTD
Revenue,Childrens Services,5105617410,07.08.2013,Special Educational Needs Transport,Taxis - Contract Hire,504.00,ALPHA (IOW) LTD
Revenue,Childrens Services,5105617410,07.08.2013,Special Educational Needs Transport,Taxis - Contract Hire,48.00,ALPHA (IOW) LTD
Revenue,Childrens Services,5105617410,07.08.2013,Special Educational Needs Transport,Taxis - Contract Hire,300.00,ALPHA (IOW) LTD
Revenue,Childrens Services,5105617410,07.08.2013,Special Educational Needs Transport,Taxis - Contract Hire,54.00,ALPHA (IOW) LTD
Revenue,Childrens Services,5105617410,07.08.2013,Special Educational Needs Transport,Taxis - Contract Hire,138.00,ALPHA (IOW) LTD
Revenue,Childrens Services,5105617410,07.08.2013,Special Educational Needs Transport,Taxis - Contract Hire,184.68,ALPHA (IOW) LTD
Revenue,Childrens Services,5105617410,07.08.2013,Home to School Transport,Taxis - Contract Hire,104.84,ALPHA (IOW) LTD
Revenue,Childrens Services,5105617410,07.08.2013,Home to School Transport,Taxis - Contract Hire,32.84,ALPHA (IOW) LTD
Revenue,Childrens Services,5105617410,07.08.2013,Home to School Transport,Taxis - Contract Hire,192.00,ALPHA (IOW) LTD
Revenue,Childrens Services,5105617410,07.08.2013,Home to School Transport,Taxis - Contract Hire,266.00,ALPHA (IOW) LTD
Revenue,Childrens Services,5105617410,07.08.2013,Home to School Transport,Taxis - Contract Hire,190.00,ALPHA (IOW) LTD
Revenue,Childrens Services,5105617410,07.08.2013,Home to School Transport,Taxis - Contract Hire,54.00,ALPHA (IOW) LTD
Revenue,Childrens Services,5105617410,07.08.2013,Home to School Transport,Taxis - Contract Hire,72.00,ALPHA (IOW) LTD
Revenue,Childrens Services,5105617410,07.08.2013,Home to School Transport,Taxis - Contract Hire,66.00,ALPHA (IOW) LTD
Revenue,Childrens Services,5105617410,07.08.2013,Home to School Transport,Taxis - Contract Hire,56.00,ALPHA (IOW) LTD
Revenue,Childrens Services,5105617410,07.08.2013,Home to School Transport,Taxis - Contract Hire,30.78,ALPHA (IOW) LTD
Revenue,Community Wellbeing & Social Care,5105618547,14.08.2013,Learning Disability Residential Care,Charges from Independent Providers,"3,409.00",ALPHAGRANGE LTD
Revenue,Community Wellbeing & Social Care,5105617933,09.08.2013,DINO ISLE Sandown Museum Stocks,Order Settlement,6.50,ALYSS TOYS
Revenue,Community Wellbeing & Social Care,5105617933,09.08.2013,DINO ISLE Sandown Museum Stocks,Order Settlement,19.40,ALYSS TOYS
Revenue,Community Wellbeing & Social Care,5105617933,09.08.2013,DINO ISLE Sandown Museum Stocks,Order Settlement,3.80,ALYSS TOYS
Revenue,Community Wellbeing & Social Care,5105617933,09.08.2013,DINO ISLE Sandown Museum Stocks,Order Settlement,45.60,ALYSS TOYS
Revenue,Community Wellbeing & Social Care,5105617933,09.08.2013,DINO ISLE Sandown Museum Stocks,Order Settlement,24.60,ALYSS TOYS
Revenue,Community Wellbeing & Social Care,5105617933,09.08.2013,DINO ISLE Sandown Museum Stocks,Order Settlement,42.00,ALYSS TOYS
Revenue,Community Wellbeing & Social Care,5105617933,09.08.2013,DINO ISLE Sandown Museum Stocks,Order Settlement,42.00,ALYSS TOYS
Revenue,Community Wellbeing & Social Care,5105617933,09.08.2013,DINO ISLE Sandown Museum Stocks,Order Settlement,42.00,ALYSS TOYS
Revenue,Community Wellbeing & Social Care,5105617933,09.08.2013,DINO ISLE Sandown Museum Stocks,Order Settlement,42.00,ALYSS TOYS
Revenue,Community Wellbeing & Social Care,5105617933,09.08.2013,DINO ISLE Sandown Museum Stocks,Order Settlement,42.00,ALYSS TOYS
Revenue,Community Wellbeing & Social Care,5105617933,09.08.2013,DINO ISLE Sandown Museum Stocks,Order Settlement,28.80,ALYSS TOYS
Revenue,Community Wellbeing & Social Care,5105617933,09.08.2013,DINO ISLE Sandown Museum Stocks,Order Settlement,17.00,ALYSS TOYS
Revenue,Community Wellbeing & Social Care,5105617933,09.08.2013,DINO ISLE Sandown Museum Stocks,Order Settlement,31.50,ALYSS TOYS
Revenue,Childrens Services,5105618088,09.08.2013,Thompson House Tuition Centre (PRU),Taxis - Contract Hire,736.00,AMAR EXCLUSIVES
Revenue,Economy & Environment,5105617928,09.08.2013,Project Manager Waste Strategy,Consultants Fees,"1,739.00",AMEC ENVIRONMENT AND INFRASTRUCTURE UK LTD
Revenue,Childrens Services,5105611072,21.08.2013,Child Protection Co-ordinator,Agency staff,"8,160.00",AMICUS INTERIM LTD
Revenue,Community Wellbeing & Social Care,5105620543,21.08.2013,Drug Misuse - Adults,Payment to Private Contractors,"1,870.00",ANA TREATMENT CENTRES LTD
Revenue,Community Wellbeing & Social Care,5105620500,16.08.2013,Drug Misuse - Adults,Payment to Private Contractors,321.43,ANA TREATMENT CENTRES LTD
Revenue,Community Wellbeing & Social Care,5105620548,21.08.2013,Newport Roman Villa Stocks,Order Settlement,14.88,ANCESTORS OF DOVER LTD
Revenue,Community Wellbeing & Social Care,5105620548,21.08.2013,Newport Roman Villa Stocks,Order Settlement,14.88,ANCESTORS OF DOVER LTD
Revenue,Community Wellbeing & Social Care,5105620548,21.08.2013,Newport Roman Villa Stocks,Order Settlement,14.88,ANCESTORS OF DOVER LTD
Revenue,Community Wellbeing & Social Care,5105620548,21.08.2013,Newport Roman Villa Stocks,Order Settlement,25.20,ANCESTORS OF DOVER LTD
Revenue,Community Wellbeing & Social Care,5105620548,21.08.2013,Newport Roman Villa Stocks,Order Settlement,30.00,ANCESTORS OF DOVER LTD
Revenue,Community Wellbeing & Social Care,5105620548,21.08.2013,Newport Roman Villa Stocks,Order Settlement,16.20,ANCESTORS OF DOVER LTD
Revenue,Community Wellbeing & Social Care,5105620548,21.08.2013,Newport Roman Villa Stocks,Order Settlement,10.20,ANCESTORS OF DOVER LTD
Revenue,Community Wellbeing & Social Care,5105620626,21.08.2013,Newport Roman Villa Stocks,Order Settlement,10.20,ANCESTORS OF DOVER LTD
Revenue,Community Wellbeing & Social Care,5105620548,21.08.2013,Newport Roman Villa Stocks,Order Settlement,19.68,ANCESTORS OF DOVER LTD
Revenue,Community Wellbeing & Social Care,5105620548,21.08.2013,Newport Roman Villa Stocks,Order Settlement,19.68,ANCESTORS OF DOVER LTD
Revenue,Community Wellbeing & Social Care,5105620548,21.08.2013,Newport Roman Villa Stocks,Order Settlement,14.88,ANCESTORS OF DOVER LTD
Revenue,Community Wellbeing & Social Care,5105620548,21.08.2013,Newport Roman Villa Stocks,Order Settlement,7.44,ANCESTORS OF DOVER LTD
Revenue,Community Wellbeing & Social Care,5105620548,21.08.2013,Newport Roman Villa Stocks,Order Settlement,18.00,ANCESTORS OF DOVER LTD
Revenue,Community Wellbeing & Social Care,5105620548,21.08.2013,Newport Roman Villa Stocks,Order Settlement,17.28,ANCESTORS OF DOVER LTD
Revenue,Community Wellbeing & Social Care,5105620548,21.08.2013,Newport Roman Villa Stocks,Order Settlement,20.40,ANCESTORS OF DOVER LTD
Revenue,Community Wellbeing & Social Care,5105620548,21.08.2013,Newport Roman Villa Stocks,Order Settlement,20.40,ANCESTORS OF DOVER LTD
Revenue,Community Wellbeing & Social Care,5105620548,21.08.2013,Newport Roman Villa Stocks,Order Settlement,13.80,ANCESTORS OF DOVER LTD
Revenue,Community Wellbeing & Social Care,5105620548,21.08.2013,Newport Roman Villa Stocks,Order Settlement,13.80,ANCESTORS OF DOVER LTD
Revenue,Community Wellbeing & Social Care,5105622141,28.08.2013,Central Management Support,Agency staff,310.39,ANCHOR RECRUITMENT
Revenue,Community Wellbeing & Social Care,5105621066,21.08.2013,Central Management Support,Agency staff,209.25,ANCHOR RECRUITMENT
Revenue,Community Wellbeing & Social Care,5105619801,14.08.2013,Central Management Support,Agency staff,209.25,ANCHOR RECRUITMENT
Revenue,Community Wellbeing & Social Care,5105617343,07.08.2013,Central Management Support,Agency staff,174.38,ANCHOR RECRUITMENT
Revenue,Community Wellbeing & Social Care,5105618549,14.08.2013,Elderly Residential Daycare,Charges from Independent Providers,"1,998.08",ANCONA CARE HOME
Revenue,Community Wellbeing & Social Care,5105618549,14.08.2013,Elderly Residential Daycare,Charges from Independent Providers,"1,622.60",ANCONA CARE HOME
Revenue,Community Wellbeing & Social Care,5105618549,14.08.2013,REDACTED PERSONAL DATA,Order Settlement,"1,998.08",ANCONA CARE HOME
Revenue,Community Wellbeing & Social Care,5105618498,14.08.2013,REDACTED PERSONAL DATA,Order Settlement,"1,699.88",ANCONA CARE HOME
Revenue,Childrens Services,5105612457,02.08.2013,Support for Looked After Children,Support Children,595.00,ANGLIA DNA SERVICES LTD
Revenue,Economy & Environment,5105620738,21.08.2013,Print Unit,Printing Costs,119.82,ANTALIS MCNAUGHTON
Revenue,Economy & Environment,5105617936,09.08.2013,Print Unit,Printing Costs,29.96,ANTALIS MCNAUGHTON
Revenue,Economy & Environment,5105617936,09.08.2013,Print Unit,Printing Costs,94.87,ANTALIS MCNAUGHTON
Revenue,Economy & Environment,5105619556,21.08.2013,Print Unit,Printing Costs,59.91,ANTALIS MCNAUGHTON
Revenue,Economy & Environment,5105619556,21.08.2013,Print Unit,Printing Costs,133.11,ANTALIS MCNAUGHTON
Revenue,Economy & Environment,5105619554,21.08.2013,Print Unit,Printing Costs,117.71,ANTALIS MCNAUGHTON
Revenue,Economy & Environment,5105622003,23.08.2013,Print Unit,Printing Costs,94.87,ANTALIS MCNAUGHTON
Revenue,Economy & Environment,5105622003,23.08.2013,Print Unit,Printing Costs,65.76,ANTALIS MCNAUGHTON
Revenue,Economy & Environment,5105622303,28.08.2013,Print Unit,Printing Costs,149.78,ANTALIS MCNAUGHTON
Revenue,Economy & Environment,5105622575,30.08.2013,Print Unit,Printing Costs,17.52,ANTALIS MCNAUGHTON
Capital,Economy & Environment,5105621596,23.08.2013,Through the Eye of the Needles,"Plant, Equipment & Furniture - Capital",791.67,APOLLO BLINDS IOW
Revenue,Community Wellbeing & Social Care,5105622558,30.08.2013,Integrated Community Equipment Service,Operational Equipment,"1,999.50",APOLLO HEALTHCARE TECHNOLOGIES
Revenue,Community Wellbeing & Social Care,5105620488,16.08.2013,Renewal & Enforcement,Office Equipment,55.21,ARCO LTD
Revenue,Community Wellbeing & Social Care,5105620490,16.08.2013,Renewal & Enforcement,Office Equipment,15.78,ARCO LTD
Revenue,Economy & Environment,5105619559,14.08.2013,The Heights,Clothing & Laundry,11.80,ARCO LTD
Revenue,Economy & Environment,5105620848,21.08.2013,The Heights,Clothing & Laundry,16.00,ARCO LTD
Revenue,Economy & Environment,5105620849,21.08.2013,The Heights,Clothing & Laundry,23.60,ARCO LTD
Revenue,Economy & Environment,5105620846,21.08.2013,The Heights,Clothing & Laundry,13.40,ARCO LTD
Revenue,Economy & Environment,5105620846,21.08.2013,The Heights,Clothing & Laundry,1.80,ARCO LTD
Revenue,Economy & Environment,5105618052,09.08.2013,Parking Attendants,Clothing & Laundry,23.46,ARCO LTD
Revenue,Economy & Environment,5105618080,09.08.2013,Parking Attendants,Clothing & Laundry,15.64,ARCO LTD
Revenue,Economy & Environment,5105617940,09.08.2013,Parking Attendants,Clothing & Laundry,7.82,ARCO LTD
Revenue,Economy & Environment,5105617938,09.08.2013,Parking Attendants,Clothing & Laundry,7.82,ARCO LTD
Revenue,Economy & Environment,5105621251,23.08.2013,Parking Attendants,Clothing & Laundry,7.82,ARCO LTD
Revenue,Economy & Environment,5105621196,21.08.2013,Parking Attendants,Clothing & Laundry,7.82,ARCO LTD
Revenue,Economy & Environment,5105620772,21.08.2013,Parking Attendants,Clothing & Laundry,7.82,ARCO LTD
Revenue,Economy & Environment,5105620782,21.08.2013,Parking Attendants,Clothing & Laundry,23.46,ARCO LTD
Revenue,Economy & Environment,5105622304,28.08.2013,Parking Attendants,Clothing & Laundry,60.80,ARCO LTD
Revenue,Economy & Environment,5105621597,23.08.2013,Environment officers,Clothing & Laundry,34.37,ARCO LTD
Revenue,Economy & Environment,5105618018,14.08.2013,Fire Technical Support,Operational Equipment,199.40,ARCO LTD
Revenue,Economy & Environment,5105620491,16.08.2013,Development Control,Clothing & Laundry,8.54,ARCO LTD
Revenue,Economy & Environment,5105617689,09.08.2013,Environmental Health - Geographical Team,Clothing & Laundry,36.21,ARCO LTD
Revenue,Economy & Environment,5105617929,09.08.2013,Environmental Health - Geographical Team,Operational Equipment,36.21,ARCO LTD
Revenue,Economy & Environment,5400001702,30.08.2013,Fire Service Stocks - Uniform,Operational Equipment,-41.13,ARCO LTD
Revenue,Economy & Environment,5105620798,21.08.2013,Fire Control phase 2,Computer Software Licencing,-39.58,ARGOS BUSINESS SOLUTIONS-CORP.LINK
Revenue,Community Wellbeing & Social Care,5105618086,09.08.2013,Contraception,Payment to Private Contractors,225.00,ARGYLL HOUSE SURGERY
Revenue,Community Wellbeing & Social Care,5105618086,09.08.2013,NHS Health Check Programme,Payment to Private Contractors,272.00,ARGYLL HOUSE SURGERY
Revenue,Community Wellbeing & Social Care,5105618086,09.08.2013,STI Tests & Treatment,Payment to Private Contractors,45.00,ARGYLL HOUSE SURGERY
Revenue,Community Wellbeing & Social Care,5105618086,09.08.2013,Stop Smoking Services & Interventions,Payment to Private Contractors,160.00,ARGYLL HOUSE SURGERY
Revenue,Community Wellbeing & Social Care,5105617691,09.08.2013,Saxonbury,Maintenance of Operational Equipment,427.20,ARJO MED AB LTD
Revenue,Community Wellbeing & Social Care,5105621877,23.08.2013,Core Programmes,Training,50.00,ASPIRE SUSSEX LTD
Revenue,Resources,5105619286,14.08.2013,"County Hall,Newport",Property Services - Building maintenance,162.55,ASSA ABLOY ENTRANCE SYSTEMS LTD
Revenue,Resources,5105620806,21.08.2013,Seaclose Offices,Property Services - Building maintenance,49.16,ASSA ABLOY ENTRANCE SYSTEMS LTD
Revenue,Community Wellbeing & Social Care,5105620805,21.08.2013,Westminster House,Property Services - Planned maintenance,388.00,ASSA ABLOY ENTRANCE SYSTEMS LTD
Revenue,Community Wellbeing & Social Care,5105620808,21.08.2013,Freshwater West Wight Library,Property Services - Planned maintenance,415.52,ASSA ABLOY ENTRANCE SYSTEMS LTD
Revenue,Community Wellbeing & Social Care,5105620492,16.08.2013,Sandown Library,Property Services - Building maintenance,182.11,ASSA ABLOY ENTRANCE SYSTEMS LTD
Revenue,Community Wellbeing & Social Care,5105622343,30.08.2013,Sandown Library,Property Services - Building maintenance,"1,650.00",ASSA ABLOY ENTRANCE SYSTEMS LTD
Revenue,Childrens Services,5105621080,21.08.2013,Thompson House Tuition Centre (PRU),Minor Works,189.86,ASSA ABLOY ENTRANCE SYSTEMS LTD
Revenue,Childrens Services,5105622610,30.08.2013,Head of Childrens - Safeguarding,Professional Subscriptions,"1,567.50",ASSOC DIRECTORS OF CHILDRENS
Revenue,Economy & Environment,5105622043,28.08.2013,Fire Technical Support,Vehicle Maintenance Costs,844.76,ATS EUROMASTER LTD
Revenue,Childrens Services,5105612306,21.08.2013,Agency Placements,Charges from Independent Providers,"33,832.80",AUTISM WESSEX
Revenue,Childrens Services,5105612251,21.08.2013,Agency Placements,Charges from Independent Providers,"24,160.23",AUTISM WESSEX
Revenue,Childrens Services,5105612306,21.08.2013,Independ. & Non-Maint. Special Schls & Independ. Specialist Provision,Charges from Independent Providers,"19,346.70",AUTISM WESSEX
Revenue,Childrens Services,5105612251,21.08.2013,Independ. & Non-Maint. Special Schls & Independ. Specialist Provision,Charges from Independent Providers,"13,210.57",AUTISM WESSEX
Revenue,Economy & Environment,5105622559,30.08.2013,Medina Leisure Centre,Maintenance of Operational Equipment,"2,250.00",AUTOBAR VENDING SERVICES LTD
Revenue,Economy & Environment,5105619563,16.08.2013,Medina Leisure Centre,Payment to Private Contractors,399.96,AUTOBAR VENDING SERVICES LTD
Revenue,Resources,5105620809,21.08.2013,Creditor Payments SSC,Stationery,813.60,AUTOMAIL ENVELOPES LTD
Revenue,Community Wellbeing & Social Care,5105621406,23.08.2013,Elderly Residential Daycare,Charges from Independent Providers,"1,427.20",AUTUMN HOUSE CARE LTD
Revenue,Community Wellbeing & Social Care,5105618518,14.08.2013,Elderly Residential Daycare,Charges from Independent Providers,"1,622.60",AUTUMN HOUSE CARE LTD
Revenue,Community Wellbeing & Social Care,5105618518,14.08.2013,Elderly Residential Daycare,Charges from Independent Providers,"1,699.88",AUTUMN HOUSE CARE LTD
Revenue,Community Wellbeing & Social Care,5105619896,16.08.2013,Elderly Mentally Ill Residential Care,Charges from Independent Providers,"3,639.36",AUTUMN HOUSE CARE LTD
Revenue,Community Wellbeing & Social Care,5105621406,23.08.2013,Elderly Mentally Ill Residential Care,Charges from Independent Providers,285.44,AUTUMN HOUSE CARE LTD
Revenue,Community Wellbeing & Social Care,5105621406,23.08.2013,Elderly Mentally Ill Residential Care,Charges from Independent Providers,"1,998.08",AUTUMN HOUSE CARE LTD
Revenue,Community Wellbeing & Social Care,5105622373,30.08.2013,Elderly Mentally Ill Residential Care,Charges from Independent Providers,999.04,AUTUMN HOUSE CARE LTD
Revenue,Community Wellbeing & Social Care,5105621093,21.08.2013,Elderly Mentally Ill Residential Care,Charges from Independent Providers,71.36,AUTUMN HOUSE CARE LTD
Revenue,Community Wellbeing & Social Care,5105618518,14.08.2013,Elderly Mentally Ill Residential Care,Regular Respite Care,"1,699.88",AUTUMN HOUSE CARE LTD
Revenue,Community Wellbeing & Social Care,5105616928,02.08.2013,Elderly Mentally Ill Residential Care,Crisis Support for Carers,499.52,AUTUMN HOUSE CARE LTD
Revenue,Community Wellbeing & Social Care,5105618518,14.08.2013,Elderly Mentally Ill Residential Care,Charges from Independent Providers,"1,998.08",AUTUMN HOUSE CARE LTD
Revenue,Community Wellbeing & Social Care,5105618518,14.08.2013,Elderly Mentally Ill Residential Care,Charges from Independent Providers,"1,998.08",AUTUMN HOUSE CARE LTD
Revenue,Community Wellbeing & Social Care,5105618518,14.08.2013,Elderly Mentally Ill Residential Care,Charges from Independent Providers,"1,998.08",AUTUMN HOUSE CARE LTD
Revenue,Community Wellbeing & Social Care,5105618518,14.08.2013,Elderly Mentally Ill Residential Care,Charges from Independent Providers,"1,998.08",AUTUMN HOUSE CARE LTD
Revenue,Community Wellbeing & Social Care,5105618518,14.08.2013,Elderly Mentally Ill Residential Care,Charges from Independent Providers,"1,699.88",AUTUMN HOUSE CARE LTD
Revenue,Community Wellbeing & Social Care,5105618518,14.08.2013,Elderly Mentally Ill Residential Care,Charges from Independent Providers,"1,998.08",AUTUMN HOUSE CARE LTD
Revenue,Community Wellbeing & Social Care,5105617605,07.08.2013,Elderly Mentally Ill Residential Care,Charges from Independent Providers,849.94,AUTUMN HOUSE CARE LTD
Revenue,Community Wellbeing & Social Care,5105617605,07.08.2013,Elderly Mentally Ill Residential Care,Charges from Independent Providers,"1,213.12",AUTUMN HOUSE CARE LTD
Revenue,Community Wellbeing & Social Care,5105618518,14.08.2013,Elderly Mentally Ill Residential Care,Charges from Independent Providers,"1,699.88",AUTUMN HOUSE CARE LTD
Revenue,Community Wellbeing & Social Care,5105618518,14.08.2013,Elderly Mentally Ill Residential Care,Charges from Independent Providers,"1,998.08",AUTUMN HOUSE CARE LTD
Revenue,Community Wellbeing & Social Care,5105618518,14.08.2013,Elderly Mentally Ill Residential Care,Charges from Independent Providers,"1,998.08",AUTUMN HOUSE CARE LTD
Revenue,Community Wellbeing & Social Care,5105618518,14.08.2013,Elderly Mentally Ill Residential Care,Charges from Independent Providers,"1,998.08",AUTUMN HOUSE CARE LTD
Revenue,Community Wellbeing & Social Care,5105618518,14.08.2013,Elderly Mentally Ill Residential Care,Charges from Independent Providers,"1,998.08",AUTUMN HOUSE CARE LTD
Revenue,Community Wellbeing & Social Care,5105618518,14.08.2013,Elderly Mentally Ill Residential Care,Charges from Independent Providers,"1,998.08",AUTUMN HOUSE CARE LTD
Revenue,Community Wellbeing & Social Care,5105618518,14.08.2013,Physical Disability Residential Care,Charges from Independent Providers,"1,998.08",AUTUMN HOUSE CARE LTD
Revenue,Community Wellbeing & Social Care,5105618518,14.08.2013,Dementia Residential care,Charges from Independent Providers,"1,998.08",AUTUMN HOUSE CARE LTD
Revenue,Community Wellbeing & Social Care,5105618518,14.08.2013,Dementia Residential care,Charges from Independent Providers,"1,998.08",AUTUMN HOUSE CARE LTD
Revenue,Community Wellbeing & Social Care,5105618518,14.08.2013,Dementia Residential care,Charges from Independent Providers,"1,998.08",AUTUMN HOUSE CARE LTD
Revenue,Community Wellbeing & Social Care,5105618518,14.08.2013,REDACTED PERSONAL DATA,Order Settlement,"1,998.08",AUTUMN HOUSE CARE LTD
Capital,Resources,5105621115,30.08.2013,Strategic Projects,Internal Design & Supervision,"1,657.52",AVAYA UK
Capital,Resources,5105621115,30.08.2013,Strategic Projects,Internal Design & Supervision,"4,515.62",AVAYA UK
Capital,Resources,5105621115,30.08.2013,Strategic Projects,Internal Design & Supervision,"1,625.62",AVAYA UK
Revenue,Childrens Services,5105621878,23.08.2013,Reviewing Officer,Agency staff,"1,837.42",AZ SOCIAL CARE SOLUTIONS LTD
Revenue,Childrens Services,5105618064,09.08.2013,Reviewing Officer,Agency staff,"1,837.42",AZ SOCIAL CARE SOLUTIONS LTD
Revenue,Childrens Services,5105620927,21.08.2013,Reviewing Officer,Agency staff,"1,837.42",AZ SOCIAL CARE SOLUTIONS LTD
Revenue,Childrens Services,5105622785,30.08.2013,Reviewing Officer,Agency staff,"1,837.42",AZ SOCIAL CARE SOLUTIONS LTD
Revenue,Childrens Services,5105622415,30.08.2013,Leaving Care Costs,Accommodation Costs - Service Users,57.50,REDACTED PERSONAL DATA
Revenue,Childrens Services,5105619939,16.08.2013,Leaving Care Costs,Accommodation Costs - Service Users,57.50,REDACTED PERSONAL DATA
Revenue,Childrens Services,5105621448,23.08.2013,Leaving Care Costs,Accommodation Costs - Service Users,57.50,REDACTED PERSONAL DATA
Revenue,Childrens Services,5105617784,09.08.2013,Leaving Care Costs,Accommodation Costs - Service Users,57.50,REDACTED PERSONAL DATA
Revenue,Childrens Services,5105616968,02.08.2013,Leaving Care Costs,Accommodation Costs - Service Users,57.50,REDACTED PERSONAL DATA
Revenue,Childrens Services,5105622415,30.08.2013,Leaving Care Costs,Support Children,120.89,REDACTED PERSONAL DATA
Revenue,Childrens Services,5105619939,16.08.2013,Leaving Care Costs,Support Children,120.89,REDACTED PERSONAL DATA
Revenue,Childrens Services,5105621448,23.08.2013,Leaving Care Costs,Support Children,120.89,REDACTED PERSONAL DATA
Revenue,Childrens Services,5105617784,09.08.2013,Leaving Care Costs,Support Children,120.89,REDACTED PERSONAL DATA
Revenue,Childrens Services,5105616968,02.08.2013,Leaving Care Costs,Support Children,120.89,REDACTED PERSONAL DATA
Revenue,Community Wellbeing & Social Care,5105618533,14.08.2013,Learning Disability Residential Care,Charges from Independent Providers,"2,545.76",REDACTED PERSONAL DATA
Revenue,Community Wellbeing & Social Care,5105618533,14.08.2013,Learning Disability Residential Care,Charges from Independent Providers,"1,757.00",REDACTED PERSONAL DATA
Revenue,Community Wellbeing & Social Care,5105618533,14.08.2013,Learning Disability Residential Care,Charges from Independent Providers,"1,757.00",REDACTED PERSONAL DATA
Revenue,Community Wellbeing & Social Care,5105621330,23.08.2013,Leaseholds by LA,Accommodation Costs - Leaseholder Payments,815.49,REDACTED PERSONAL DATA
Revenue,Resources,5105621822,23.08.2013,Staff Benefits,Payment to Private Contractors,243.00,REDACTED PERSONAL DATA
Revenue,Resources,5105621823,23.08.2013,Staff Benefits,Payment to Private Contractors,100.00,REDACTED PERSONAL DATA
Revenue,Resources,5105621824,23.08.2013,Staff Benefits,Payment to Private Contractors,345.00,REDACTED PERSONAL DATA
Revenue,Community Wellbeing & Social Care,5105621337,23.08.2013,Leaseholds by LA,Accommodation Costs - Leaseholder Payments,799.50,REDACTED PERSONAL DATA
Revenue,Community Wellbeing & Social Care,5105621337,23.08.2013,Leaseholds by LA,Accommodation Costs - Leaseholder Payments,866.67,REDACTED PERSONAL DATA
Revenue,Community Wellbeing & Social Care,5105621337,23.08.2013,Leaseholds by LA,Accommodation Costs - Leaseholder Payments,866.67,REDACTED PERSONAL DATA
Revenue,Community Wellbeing & Social Care,5105621337,23.08.2013,Leaseholds by LA,Accommodation Costs - Leaseholder Payments,888.33,REDACTED PERSONAL DATA
Revenue,Community Wellbeing & Social Care,5105621337,23.08.2013,Leaseholds by LA,Accommodation Costs - Leaseholder Payments,799.50,REDACTED PERSONAL DATA
Revenue,Childrens Services,5105620311,16.08.2013,Fostering Units,Professional Service,552.33,BAAF REGISTERED CHARITY
Revenue,Childrens Services,5105620776,21.08.2013,Agency Placements,Charges from Independent Providers,855.71,BACK ON TRACK
Revenue,Childrens Services,5105621929,23.08.2013,Agency Placements,Charges from Independent Providers,"15,814.28",BACK ON TRACK
Revenue,Economy & Environment,5105621598,23.08.2013,Medina Theatre,Payment to Private Contractors,"3,350.00",BACK TO BASIE LTD
Revenue,Childrens Services,5105620248,16.08.2013,Beaulieu House,General Materials,218.00,BAKARE BEDS LTD
Revenue,Childrens Services,5105620248,16.08.2013,Beaulieu House,General Materials,12.50,BAKARE BEDS LTD
Revenue,Economy & Environment,5105620556,21.08.2013,Fire Technical Support,Clothing & Laundry,"6,651.40",BALLYCLARE LTD
Revenue,Economy & Environment,5105620550,21.08.2013,Fire Technical Support,Clothing & Laundry,413.78,BALLYCLARE LTD
Revenue,Resources,5105619802,14.08.2013,Corporate Stores,Vehicle Hire External,730.71,BARTLETTS SERVICE STATION
Revenue,Economy & Environment,5105617648,07.08.2013,Diversity & Workforce,Operational Equipment,120.00,BARTLETTS SERVICE STATION
Revenue,Resources,5105621744,23.08.2013,Staff Benefits,Payment to Private Contractors,50.00,BARTON PRIMARY SCHOOL & EARLY YEARS
Revenue,Resources,5105621746,23.08.2013,Staff Benefits,Payment to Private Contractors,140.00,BARTON PRIMARY SCHOOL & EARLY YEARS
Revenue,Resources,5105621745,23.08.2013,Staff Benefits,Payment to Private Contractors,11.67,BARTON PRIMARY SCHOOL & EARLY YEARS
Revenue,Community Wellbeing & Social Care,5105618785,14.08.2013,Elderly Frail Nursing Mainland,Charges from Independent Providers,"2,257.92",BEAUMONT LODGE LTD
Revenue,Community Wellbeing & Social Care,5105618084,09.08.2013,Contraception,Payment to Private Contractors,385.00,BEECH GROVE SURGERY
Revenue,Community Wellbeing & Social Care,5105618084,09.08.2013,NHS Health Check Programme,Payment to Private Contractors,347.00,BEECH GROVE SURGERY
Revenue,Community Wellbeing & Social Care,5105618084,09.08.2013,STI Tests & Treatment,Payment to Private Contractors,80.00,BEECH GROVE SURGERY
Revenue,Community Wellbeing & Social Care,5105618084,09.08.2013,Stop Smoking Services & Interventions,Payment to Private Contractors,480.00,BEECH GROVE SURGERY
Revenue,Economy & Environment,5105610583,02.08.2013,Off-Street Parking Operations,Operational Equipment,792.00,BEMROSE BOOTH
Revenue,Economy & Environment,5105610583,02.08.2013,Off-Street Parking Operations,Operational Equipment,14.00,BEMROSE BOOTH
Revenue,Economy & Environment,5105617736,09.08.2013,Flag Raising Ceremony,Catering Purchases,1.99,BERENDSEN
Revenue,Community Wellbeing & Social Care,5105621636,23.08.2013,Community Laundry Service,Clothing & Laundry,13.74,BERENDSEN
Revenue,Community Wellbeing & Social Care,5105620559,21.08.2013,B&B Properties,Accommodation Costs - Bed & Breakfast,264.00,BERTRAM LODGE
Revenue,Resources,5105622805,30.08.2013,ICT Contracts,Computer Maintenance,"8,250.00",BEST PRACTICE GROUP PLC
Revenue,Resources,5105622816,30.08.2013,ICT Contracts,Computer Maintenance,"8,250.00",BEST PRACTICE GROUP PLC
Revenue,Resources,5105618072,14.08.2013,"County Hall,Newport",Property Services - Building maintenance,95.00,BETA PAK LTD
Revenue,Resources,5105620810,21.08.2013,"County Hall,Newport",Property Services - Building maintenance,50.00,BETA PAK LTD
Revenue,Community Wellbeing & Social Care,5105617476,07.08.2013,Downside Community & Learning Centre,Consumable Cleaning Materials,8.16,BETA PAK LTD
Revenue,Community Wellbeing & Social Care,5105617476,07.08.2013,Downside Community & Learning Centre,Consumable Cleaning Materials,25.04,BETA PAK LTD
Revenue,Community Wellbeing & Social Care,5105617476,07.08.2013,Downside Community & Learning Centre,Consumable Cleaning Materials,39.90,BETA PAK LTD
Revenue,Community Wellbeing & Social Care,5105618342,14.08.2013,Downside Community & Learning Centre,Consumable Cleaning Materials,8.16,BETA PAK LTD
Revenue,Community Wellbeing & Social Care,5105618342,14.08.2013,Downside Community & Learning Centre,Consumable Cleaning Materials,25.04,BETA PAK LTD
Revenue,Community Wellbeing & Social Care,5105618342,14.08.2013,Downside Community & Learning Centre,Consumable Cleaning Materials,39.90,BETA PAK LTD
Revenue,Community Wellbeing & Social Care,5105617338,07.08.2013,Integrated Community Equipment Service,General Materials,63.88,BETA PAK LTD
Revenue,Community Wellbeing & Social Care,5105620743,21.08.2013,31 Carter Avenue,Operational Equipment,11.00,BETA PAK LTD
Revenue,Community Wellbeing & Social Care,5105618340,14.08.2013,31 Carter Avenue,Operational Equipment,61.26,BETA PAK LTD
Revenue,Community Wellbeing & Social Care,5105620636,21.08.2013,Overbrook,Operational Equipment,115.95,BETA PAK LTD
Revenue,Community Wellbeing & Social Care,5105620322,16.08.2013,Overbrook,Operational Equipment,4.35,BETA PAK LTD
Revenue,Community Wellbeing & Social Care,5105622001,23.08.2013,Overbrook,Operational Equipment,14.30,BETA PAK LTD
Revenue,Community Wellbeing & Social Care,5105616665,07.08.2013,Overbrook,Operational Equipment,100.94,BETA PAK LTD
Revenue,Community Wellbeing & Social Care,5105622336,28.08.2013,Seagulls,Operational Equipment,26.03,BETA PAK LTD
Revenue,Community Wellbeing & Social Care,5105615826,21.08.2013,Seagulls,Operational Equipment,11.00,BETA PAK LTD
Revenue,Community Wellbeing & Social Care,5105615418,21.08.2013,Seagulls,Operational Equipment,10.00,BETA PAK LTD
Revenue,Community Wellbeing & Social Care,5105622306,28.08.2013,Seagulls,Operational Equipment,4.80,BETA PAK LTD
Revenue,Community Wellbeing & Social Care,5105622067,28.08.2013,Seagulls,Operational Equipment,20.42,BETA PAK LTD
Revenue,Community Wellbeing & Social Care,5105621003,21.08.2013,Seagulls,Operational Equipment,81.82,BETA PAK LTD
Revenue,Community Wellbeing & Social Care,5105619227,14.08.2013,Seagulls,Operational Equipment,87.41,BETA PAK LTD
Revenue,Community Wellbeing & Social Care,5105619233,14.08.2013,Plean Dene,Operational Equipment,39.80,BETA PAK LTD
Revenue,Community Wellbeing & Social Care,5105618060,09.08.2013,Plean Dene,Operational Equipment,-11.00,BETA PAK LTD
Revenue,Community Wellbeing & Social Care,5105618057,09.08.2013,Plean Dene,Operational Equipment,103.60,BETA PAK LTD
Revenue,Community Wellbeing & Social Care,5105622035,28.08.2013,Plean Dene,Operational Equipment,122.40,BETA PAK LTD
Revenue,Community Wellbeing & Social Care,5105614903,09.08.2013,Plean Dene,Operational Equipment,16.50,BETA PAK LTD
Revenue,Community Wellbeing & Social Care,5105615890,21.08.2013,Plean Dene,Operational Equipment,2.70,BETA PAK LTD
Revenue,Community Wellbeing & Social Care,5105621704,23.08.2013,Plean Dene,Operational Equipment,2.18,BETA PAK LTD
Revenue,Community Wellbeing & Social Care,5105621931,23.08.2013,Saxonbury,Operational Equipment,2.34,BETA PAK LTD
Revenue,Community Wellbeing & Social Care,5105620742,21.08.2013,Saxonbury,Operational Equipment,16.50,BETA PAK LTD
Revenue,Community Wellbeing & Social Care,5105618001,16.08.2013,Saxonbury,Operational Equipment,120.97,BETA PAK LTD
Revenue,Community Wellbeing & Social Care,5105621600,23.08.2013,Saxonbury,Operational Equipment,189.93,BETA PAK LTD
Revenue,Community Wellbeing & Social Care,5105618000,16.08.2013,40 Venner Avenue,Catering Purchases,83.88,BETA PAK LTD
Revenue,Community Wellbeing & Social Care,5105622337,30.08.2013,40 Venner Avenue,Catering Purchases,249.78,BETA PAK LTD
Revenue,Community Wellbeing & Social Care,5105622307,30.08.2013,Highmead,Operational Equipment,95.83,BETA PAK LTD
Revenue,Community Wellbeing & Social Care,5105622018,28.08.2013,Highmead,Operational Equipment,16.50,BETA PAK LTD
Revenue,Community Wellbeing & Social Care,5105622079,30.08.2013,The Laurels,Operational Equipment,9.60,BETA PAK LTD
Revenue,Community Wellbeing & Social Care,5105622002,23.08.2013,The Laurels,Operational Equipment,129.27,BETA PAK LTD
Revenue,Community Wellbeing & Social Care,5105620561,21.08.2013,The Laurels,Operational Equipment,100.16,BETA PAK LTD
Revenue,Community Wellbeing & Social Care,5105603537,14.08.2013,Wightcare,General Materials,1.22,BETA PAK LTD
Revenue,Community Wellbeing & Social Care,5105603537,14.08.2013,Wightcare,General Materials,21.34,BETA PAK LTD
Revenue,Community Wellbeing & Social Care,5105620635,21.08.2013,Homecare Reablement,Operational Equipment,69.12,BETA PAK LTD
Revenue,Community Wellbeing & Social Care,5105622673,30.08.2013,Homecare Reablement,Operational Equipment,43.08,BETA PAK LTD
Revenue,Community Wellbeing & Social Care,5105622576,30.08.2013,Homecare Reablement,Operational Equipment,141.44,BETA PAK LTD
Revenue,Community Wellbeing & Social Care,5105620632,21.08.2013,Adelaide Resource Centre,Consumable Cleaning Materials,152.00,BETA PAK LTD
Revenue,Community Wellbeing & Social Care,5105617326,07.08.2013,Adelaide Resource Centre,Fixtures and Fittings,648.99,BETA PAK LTD
Revenue,Community Wellbeing & Social Care,5105620633,21.08.2013,Adelaide Resource Centre,Fixtures and Fittings,139.93,BETA PAK LTD
Revenue,Community Wellbeing & Social Care,5105622068,28.08.2013,Adelaide Resource Centre,Fixtures and Fittings,22.74,BETA PAK LTD
Revenue,Community Wellbeing & Social Care,5105617327,07.08.2013,Adelaide Resource Centre,Consumable Cleaning Materials,277.16,BETA PAK LTD
Revenue,Community Wellbeing & Social Care,5105622014,23.08.2013,Adelaide Resource Centre,Consumable Cleaning Materials,348.63,BETA PAK LTD
Revenue,Community Wellbeing & Social Care,5105622033,28.08.2013,Adelaide Resource Centre,Consumable Cleaning Materials,38.55,BETA PAK LTD
Revenue,Community Wellbeing & Social Care,5105619853,16.08.2013,Gouldings Resource Centre,Catering Purchases,32.34,BETA PAK LTD
Revenue,Community Wellbeing & Social Care,5105622021,28.08.2013,Gouldings Resource Centre,Catering Purchases,71.96,BETA PAK LTD
Revenue,Community Wellbeing & Social Care,5105620744,21.08.2013,Gouldings Resource Centre,Catering Purchases,71.96,BETA PAK LTD
Revenue,Community Wellbeing & Social Care,5105619858,16.08.2013,Gouldings Resource Centre,Consumable Cleaning Materials,352.04,BETA PAK LTD
Revenue,Community Wellbeing & Social Care,5105619872,16.08.2013,Gouldings Resource Centre,Consumable Cleaning Materials,7.91,BETA PAK LTD
Revenue,Community Wellbeing & Social Care,5105622577,30.08.2013,Gouldings Resource Centre,Consumable Cleaning Materials,737.94,BETA PAK LTD
Revenue,Community Wellbeing & Social Care,5105620326,16.08.2013,Westminster House,Clothing & Laundry,41.04,BETA PAK LTD
Revenue,Community Wellbeing & Social Care,5105622657,30.08.2013,Westminster House,Clothing & Laundry,82.08,BETA PAK LTD
Revenue,Community Wellbeing & Social Care,5105622031,28.08.2013,Westminster House,Consumable Cleaning Materials,19.80,BETA PAK LTD
Revenue,Community Wellbeing & Social Care,5105620324,16.08.2013,Westminster House,Consumable Cleaning Materials,76.89,BETA PAK LTD
Revenue,Community Wellbeing & Social Care,5105622305,28.08.2013,Westminster House,Consumable Cleaning Materials,40.60,BETA PAK LTD
Revenue,Community Wellbeing & Social Care,5105622309,28.08.2013,Westminster House,Consumable Cleaning Materials,89.44,BETA PAK LTD
Revenue,Community Wellbeing & Social Care,5105617219,02.08.2013,Westminster House,General Materials,47.97,BETA PAK LTD
Revenue,Community Wellbeing & Social Care,5105620325,16.08.2013,Westminster House,General Materials,15.28,BETA PAK LTD
Revenue,Community Wellbeing & Social Care,5105622578,30.08.2013,Westminster House,General Materials,75.00,BETA PAK LTD
Revenue,Community Wellbeing & Social Care,5105622308,28.08.2013,Westminster House,General Materials,59.02,BETA PAK LTD
Revenue,Community Wellbeing & Social Care,5105620323,16.08.2013,Westminster House,Catering Purchases,36.86,BETA PAK LTD
Revenue,Community Wellbeing & Social Care,5105612423,16.08.2013,Westminster House,Catering Purchases,37.71,BETA PAK LTD
Revenue,Community Wellbeing & Social Care,5105612424,16.08.2013,Westminster House,Catering Purchases,-46.50,BETA PAK LTD
Revenue,Community Wellbeing & Social Care,5105619884,16.08.2013,Guildhall Museum,Maintenance of Operational Equipment,33.00,BETA PAK LTD
Revenue,Community Wellbeing & Social Care,5105617680,07.08.2013,Guildhall Museum,General Materials,8.68,BETA PAK LTD
Revenue,Community Wellbeing & Social Care,5105617680,07.08.2013,Guildhall Museum,General Materials,12.63,BETA PAK LTD
Revenue,Community Wellbeing & Social Care,5105617680,07.08.2013,Guildhall Museum,General Materials,12.84,BETA PAK LTD
Revenue,Community Wellbeing & Social Care,5105617680,07.08.2013,Guildhall Museum,General Materials,14.96,BETA PAK LTD
Revenue,Community Wellbeing & Social Care,5105620928,21.08.2013,Dinosaur Isle Museum (Sandown Geology),Operational Equipment,159.80,BETA PAK LTD
Revenue,Community Wellbeing & Social Care,5105621191,21.08.2013,Dinosaur Isle Museum (Sandown Geology),Operational Equipment,48.84,BETA PAK LTD
Revenue,Community Wellbeing & Social Care,5105622250,28.08.2013,Dinosaur Isle Museum (Sandown Geology),Operational Equipment,227.04,BETA PAK LTD
Revenue,Community Wellbeing & Social Care,5105617997,16.08.2013,Dinosaur Isle Museum (Sandown Geology),Operational Equipment,14.34,BETA PAK LTD
Revenue,Community Wellbeing & Social Care,5105617996,16.08.2013,Dinosaur Isle Museum (Sandown Geology),Operational Equipment,91.81,BETA PAK LTD
Revenue,Economy & Environment,5105617681,07.08.2013,Medina Leisure Centre,Catering Purchases,47.55,BETA PAK LTD
Revenue,Economy & Environment,5105620634,21.08.2013,Medina Leisure Centre,Catering Purchases,5.25,BETA PAK LTD
Revenue,Economy & Environment,5105621599,23.08.2013,Medina Leisure Centre,Catering Purchases,112.25,BETA PAK LTD
Revenue,Childrens Services,5105622006,23.08.2013,Short Breaks,Payments to Voluntary and Other Associations,83.42,BETA PAK LTD
Revenue,Childrens Services,5105618341,14.08.2013,Youth- Brading,Operational Equipment,120.00,BETA PAK LTD
Revenue,Economy & Environment,5105618310,09.08.2013,Road Safety,Operational Equipment,4.18,BETA PAK LTD
Revenue,Economy & Environment,5105621975,23.08.2013,Medina Cafe Stock,Order Settlement,183.77,BETA PAK LTD
Revenue,Community Wellbeing & Social Care,5105620398,16.08.2013,Elderly Frail Homecare,Charges from Independent Providers,94.38,BETTER AT HOME IOW LTD
Revenue,Community Wellbeing & Social Care,5105620393,16.08.2013,Elderly Frail Homecare,Charges from Independent Providers,464.64,BETTER AT HOME IOW LTD
Revenue,Community Wellbeing & Social Care,5105620394,16.08.2013,Elderly Frail Homecare,Charges from Independent Providers,203.28,BETTER AT HOME IOW LTD
Revenue,Community Wellbeing & Social Care,5105620395,16.08.2013,Elderly Frail Homecare,Charges from Independent Providers,101.64,BETTER AT HOME IOW LTD
Revenue,Community Wellbeing & Social Care,5105620397,16.08.2013,Elderly Frail Homecare,Charges from Independent Providers,304.92,BETTER AT HOME IOW LTD
Revenue,Community Wellbeing & Social Care,5105620400,16.08.2013,Elderly Frail Homecare,Charges from Independent Providers,94.38,BETTER AT HOME IOW LTD
Revenue,Community Wellbeing & Social Care,5105620862,21.08.2013,Elderly Frail Homecare,Charges from Independent Providers,711.48,BETTER AT HOME IOW LTD
Revenue,Community Wellbeing & Social Care,5105620861,21.08.2013,Elderly Frail Homecare,Charges from Independent Providers,-188.76,BETTER AT HOME IOW LTD
Revenue,Community Wellbeing & Social Care,5105619533,14.08.2013,Elderly Frail Homecare,Charges from Independent Providers,188.76,BETTER AT HOME IOW LTD
Revenue,Community Wellbeing & Social Care,5105619534,14.08.2013,Elderly Frail Homecare,Charges from Independent Providers,163.35,BETTER AT HOME IOW LTD
Revenue,Community Wellbeing & Social Care,5105619535,14.08.2013,Elderly Frail Homecare,Charges from Independent Providers,711.48,BETTER AT HOME IOW LTD
Revenue,Community Wellbeing & Social Care,5105619536,14.08.2013,Elderly Frail Homecare,Charges from Independent Providers,43.56,BETTER AT HOME IOW LTD
Revenue,Community Wellbeing & Social Care,5105619513,14.08.2013,Elderly Frail Homecare,Charges from Independent Providers,609.84,BETTER AT HOME IOW LTD
Revenue,Community Wellbeing & Social Care,5105619514,14.08.2013,Elderly Frail Homecare,Charges from Independent Providers,"1,038.18",BETTER AT HOME IOW LTD
Revenue,Community Wellbeing & Social Care,5105619522,14.08.2013,Elderly Frail Homecare,Charges from Independent Providers,406.56,BETTER AT HOME IOW LTD
Revenue,Community Wellbeing & Social Care,5105619515,14.08.2013,Elderly Frail Homecare,Charges from Independent Providers,406.56,BETTER AT HOME IOW LTD
Revenue,Community Wellbeing & Social Care,5105619516,14.08.2013,Elderly Frail Homecare,Charges from Independent Providers,813.12,BETTER AT HOME IOW LTD
Revenue,Community Wellbeing & Social Care,5105619524,14.08.2013,Elderly Frail Homecare,Charges from Independent Providers,159.72,BETTER AT HOME IOW LTD
Revenue,Community Wellbeing & Social Care,5105619525,14.08.2013,Elderly Frail Homecare,Charges from Independent Providers,813.12,BETTER AT HOME IOW LTD
Revenue,Community Wellbeing & Social Care,5105619496,14.08.2013,Elderly Frail Homecare,Charges from Independent Providers,"1,829.52",BETTER AT HOME IOW LTD
Revenue,Community Wellbeing & Social Care,5105619497,14.08.2013,Elderly Frail Homecare,Charges from Independent Providers,"1,829.52",BETTER AT HOME IOW LTD
Revenue,Community Wellbeing & Social Care,5105619498,14.08.2013,Elderly Frail Homecare,Charges from Independent Providers,203.28,BETTER AT HOME IOW LTD
Revenue,Community Wellbeing & Social Care,5105619499,14.08.2013,Elderly Frail Homecare,Charges from Independent Providers,50.82,BETTER AT HOME IOW LTD
Revenue,Community Wellbeing & Social Care,5105619500,14.08.2013,Elderly Frail Homecare,Charges from Independent Providers,"1,582.68",BETTER AT HOME IOW LTD
Revenue,Community Wellbeing & Social Care,5105619501,14.08.2013,Elderly Frail Homecare,Charges from Independent Providers,740.52,BETTER AT HOME IOW LTD
Revenue,Community Wellbeing & Social Care,5105619502,14.08.2013,Elderly Frail Homecare,Charges from Independent Providers,755.04,BETTER AT HOME IOW LTD
Revenue,Community Wellbeing & Social Care,5105619503,14.08.2013,Elderly Frail Homecare,Charges from Independent Providers,457.38,BETTER AT HOME IOW LTD
Revenue,Community Wellbeing & Social Care,5105619504,14.08.2013,Elderly Frail Homecare,Charges from Independent Providers,159.72,BETTER AT HOME IOW LTD
Revenue,Community Wellbeing & Social Care,5105619505,14.08.2013,Elderly Frail Homecare,Charges from Independent Providers,609.84,BETTER AT HOME IOW LTD
Revenue,Community Wellbeing & Social Care,5105619506,14.08.2013,Elderly Frail Homecare,Charges from Independent Providers,863.94,BETTER AT HOME IOW LTD
Revenue,Community Wellbeing & Social Care,5105619518,14.08.2013,Elderly Frail Homecare,Charges from Independent Providers,711.48,BETTER AT HOME IOW LTD
Revenue,Community Wellbeing & Social Care,5105619519,14.08.2013,Elderly Frail Homecare,Charges from Independent Providers,406.56,BETTER AT HOME IOW LTD
Revenue,Community Wellbeing & Social Care,5105619520,14.08.2013,Elderly Frail Homecare,Charges from Independent Providers,"1,161.60",BETTER AT HOME IOW LTD
Revenue,Community Wellbeing & Social Care,5105619532,14.08.2013,Elderly Frail Homecare,Charges from Independent Providers,907.50,BETTER AT HOME IOW LTD
Revenue,Community Wellbeing & Social Care,5105619507,14.08.2013,Elderly Frail Homecare,Charges from Independent Providers,609.84,BETTER AT HOME IOW LTD
Revenue,Community Wellbeing & Social Care,5105619509,14.08.2013,Elderly Frail Homecare,Charges from Independent Providers,399.30,BETTER AT HOME IOW LTD
Revenue,Community Wellbeing & Social Care,5105619510,14.08.2013,Elderly Frail Homecare,Charges from Independent Providers,660.66,BETTER AT HOME IOW LTD
Revenue,Community Wellbeing & Social Care,5105619511,14.08.2013,Elderly Frail Homecare,Charges from Independent Providers,406.56,BETTER AT HOME IOW LTD
Revenue,Community Wellbeing & Social Care,5105619517,14.08.2013,Elderly Frail Homecare,Charges from Independent Providers,304.92,BETTER AT HOME IOW LTD
Revenue,Community Wellbeing & Social Care,5105619512,14.08.2013,Elderly Frail Homecare,Charges from Independent Providers,203.28,BETTER AT HOME IOW LTD
Revenue,Community Wellbeing & Social Care,5105618495,14.08.2013,Elderly Frail Homecare,Charges from Independent Providers,355.74,BETTER AT HOME IOW LTD
Revenue,Community Wellbeing & Social Care,5105618495,14.08.2013,Elderly Frail Homecare,Charges from Independent Providers,863.94,BETTER AT HOME IOW LTD
Revenue,Community Wellbeing & Social Care,5105619528,14.08.2013,Elderly Frail Homecare,Charges from Independent Providers,203.28,BETTER AT HOME IOW LTD
Revenue,Community Wellbeing & Social Care,5105619527,14.08.2013,Elderly Frail Homecare,Charges from Independent Providers,609.84,BETTER AT HOME IOW LTD
Revenue,Community Wellbeing & Social Care,5105619530,14.08.2013,Elderly Frail Homecare,Charges from Independent Providers,392.04,BETTER AT HOME IOW LTD
Revenue,Community Wellbeing & Social Care,5105619526,14.08.2013,Mental Health Homecare,Charges from Independent Providers,319.44,BETTER AT HOME IOW LTD
Revenue,Community Wellbeing & Social Care,5105620401,16.08.2013,Physical Disability Homecare,Charges from Independent Providers,14.52,BETTER AT HOME IOW LTD
Revenue,Community Wellbeing & Social Care,5105620399,16.08.2013,Physical Disability Homecare,Charges from Independent Providers,14.52,BETTER AT HOME IOW LTD
Revenue,Community Wellbeing & Social Care,5105619529,14.08.2013,Physical Disability Homecare,Charges from Independent Providers,363.00,BETTER AT HOME IOW LTD
Revenue,Community Wellbeing & Social Care,5105619531,14.08.2013,Physical Disability Homecare,Charges from Independent Providers,196.02,BETTER AT HOME IOW LTD
Revenue,Community Wellbeing & Social Care,5105619523,14.08.2013,Physical Disability Homecare,Charges from Independent Providers,196.02,BETTER AT HOME IOW LTD
Revenue,Community Wellbeing & Social Care,5105619521,14.08.2013,Elderly Frail Managed Accounts,Charges from Independent Providers,203.28,BETTER AT HOME IOW LTD
Revenue,Community Wellbeing & Social Care,5105619508,14.08.2013,Physical Disability Managed Accounts,Regular Respite Care,116.16,BETTER AT HOME IOW LTD
Revenue,Resources,5105620329,21.08.2013,Human Resources,Training,"1,500.00",BEVAN YOUNG ASSOCIATES
Revenue,Community Wellbeing & Social Care,5105620329,21.08.2013,Core Programmes,Training,750.00,BEVAN YOUNG ASSOCIATES
Revenue,Community Wellbeing & Social Care,5105617342,07.08.2013,Public Libraries Central,Stationery,186.34,BIBLIOTHECA LTD
Revenue,Economy & Environment,5105620317,16.08.2013,IOW Festival,Professional Service,112.00,BIFFA WASTE SERVICES LTD
Revenue,Resources,5105622182,28.08.2013,"Civic Centre,Sandown","Refuse Collection, Disposal and Recycling Costs",-9.63,BIFFA WASTE SERVICES LTD
Revenue,Resources,5105613677,09.08.2013,"Civic Centre,Sandown","Refuse Collection, Disposal and Recycling Costs",98.05,BIFFA WASTE SERVICES LTD
Revenue,Resources,5105613678,09.08.2013,"Civic Centre,Sandown","Refuse Collection, Disposal and Recycling Costs",56.20,BIFFA WASTE SERVICES LTD
Revenue,Resources,5105620497,16.08.2013,"Civic Centre,Sandown","Refuse Collection, Disposal and Recycling Costs",158.44,BIFFA WASTE SERVICES LTD
Revenue,Resources,5105620498,16.08.2013,"Civic Centre,Sandown","Refuse Collection, Disposal and Recycling Costs",124.96,BIFFA WASTE SERVICES LTD
Revenue,Resources,5105619595,16.08.2013,"Bugle House,Newport","Refuse Collection, Disposal and Recycling Costs",222.12,BIFFA WASTE SERVICES LTD
Revenue,Resources,5105614753,02.08.2013,"Bugle House,Newport","Refuse Collection, Disposal and Recycling Costs",177.65,BIFFA WASTE SERVICES LTD
Revenue,Resources,5105619855,16.08.2013,"Westridge, Ryde","Refuse Collection, Disposal and Recycling Costs",282.45,BIFFA WASTE SERVICES LTD
Revenue,Community Wellbeing & Social Care,5105614417,02.08.2013,Integrated Community Equipment Service,"Refuse Collection, Disposal and Recycling Costs",99.06,BIFFA WASTE SERVICES LTD
Revenue,Community Wellbeing & Social Care,5105619868,16.08.2013,Integrated Community Equipment Service,"Refuse Collection, Disposal and Recycling Costs",253.04,BIFFA WASTE SERVICES LTD
Revenue,Community Wellbeing & Social Care,5105620496,16.08.2013,Gouldings Resource Centre,"Refuse Collection, Disposal and Recycling Costs",347.28,BIFFA WASTE SERVICES LTD
Revenue,Community Wellbeing & Social Care,5105615223,02.08.2013,Gouldings Resource Centre,"Refuse Collection, Disposal and Recycling Costs",334.10,BIFFA WASTE SERVICES LTD
Revenue,Community Wellbeing & Social Care,5105615224,02.08.2013,Gouldings Resource Centre,"Refuse Collection, Disposal and Recycling Costs",107.10,BIFFA WASTE SERVICES LTD
Revenue,Community Wellbeing & Social Care,5105619874,16.08.2013,Gouldings Resource Centre,"Refuse Collection, Disposal and Recycling Costs",165.68,BIFFA WASTE SERVICES LTD
Revenue,Community Wellbeing & Social Care,5105613235,21.08.2013,Westminster House,"Refuse Collection, Disposal and Recycling Costs",54.60,BIFFA WASTE SERVICES LTD
Revenue,Community Wellbeing & Social Care,5105619599,14.08.2013,Westminster House,"Refuse Collection, Disposal and Recycling Costs",43.68,BIFFA WASTE SERVICES LTD
Revenue,Economy & Environment,5105618054,09.08.2013,Leisure Management & Admin,"Refuse Collection, Disposal and Recycling Costs",-2.00,BIFFA WASTE SERVICES LTD
Revenue,Economy & Environment,5105620286,16.08.2013,Leisure Management & Admin,"Refuse Collection, Disposal and Recycling Costs",222.12,BIFFA WASTE SERVICES LTD
Revenue,Economy & Environment,5105619871,16.08.2013,Leisure Management & Admin,"Refuse Collection, Disposal and Recycling Costs",6.76,BIFFA WASTE SERVICES LTD
Revenue,Economy & Environment,5105613223,02.08.2013,Leisure Management & Admin,"Refuse Collection, Disposal and Recycling Costs",180.12,BIFFA WASTE SERVICES LTD
Revenue,Community Wellbeing & Social Care,5105622658,30.08.2013,Public Libraries Central,"Refuse Collection, Disposal and Recycling Costs",39.40,BIFFA WASTE SERVICES LTD
Revenue,Community Wellbeing & Social Care,5105619613,16.08.2013,Public Libraries Central,"Refuse Collection, Disposal and Recycling Costs",172.50,BIFFA WASTE SERVICES LTD
Revenue,Community Wellbeing & Social Care,5105619615,16.08.2013,Public Libraries Central,"Refuse Collection, Disposal and Recycling Costs",416.81,BIFFA WASTE SERVICES LTD
Revenue,Community Wellbeing & Social Care,5105619852,14.08.2013,Workforce Development -  Westridge Centre,"Refuse Collection, Disposal and Recycling Costs",135.92,BIFFA WASTE SERVICES LTD
Revenue,Community Wellbeing & Social Care,5105620289,16.08.2013,Dinosaur Isle Museum (Sandown Geology),"Refuse Collection, Disposal and Recycling Costs",118.68,BIFFA WASTE SERVICES LTD
Revenue,Community Wellbeing & Social Care,5105620637,21.08.2013,Dinosaur Isle Museum (Sandown Geology),"Refuse Collection, Disposal and Recycling Costs",10.61,BIFFA WASTE SERVICES LTD
Revenue,Community Wellbeing & Social Care,5105615195,07.08.2013,Dinosaur Isle Museum (Sandown Geology),"Refuse Collection, Disposal and Recycling Costs",19.12,BIFFA WASTE SERVICES LTD
Revenue,Economy & Environment,5105614755,16.08.2013,The Heights,"Refuse Collection, Disposal and Recycling Costs",42.35,BIFFA WASTE SERVICES LTD
Revenue,Economy & Environment,5105614756,02.08.2013,The Heights,"Refuse Collection, Disposal and Recycling Costs",360.55,BIFFA WASTE SERVICES LTD
Revenue,Economy & Environment,5105619850,14.08.2013,The Heights,"Refuse Collection, Disposal and Recycling Costs",402.92,BIFFA WASTE SERVICES LTD
Revenue,Economy & Environment,5105619567,21.08.2013,The Heights,"Refuse Collection, Disposal and Recycling Costs",193.88,BIFFA WASTE SERVICES LTD
Revenue,Economy & Environment,5105619848,16.08.2013,Medina Leisure Centre,"Refuse Collection, Disposal and Recycling Costs",408.92,BIFFA WASTE SERVICES LTD
Revenue,Economy & Environment,5105619604,16.08.2013,Medina Leisure Centre,"Refuse Collection, Disposal and Recycling Costs",10.08,BIFFA WASTE SERVICES LTD
Revenue,Economy & Environment,5105619597,14.08.2013,Westridge Squash Courts,"Refuse Collection, Disposal and Recycling Costs",84.20,BIFFA WASTE SERVICES LTD
Revenue,Economy & Environment,5105619846,16.08.2013,Ryde Harbour,"Refuse Collection, Disposal and Recycling Costs",27.72,BIFFA WASTE SERVICES LTD
Revenue,Economy & Environment,5105620290,16.08.2013,Ryde Harbour,"Refuse Collection, Disposal and Recycling Costs",236.72,BIFFA WASTE SERVICES LTD
Revenue,Economy & Environment,5105620287,16.08.2013,Seaclose Amusements,"Refuse Collection, Disposal and Recycling Costs",11.95,BIFFA WASTE SERVICES LTD
Revenue,Childrens Services,5105620499,16.08.2013,Family Information Zone,"Refuse Collection, Disposal and Recycling Costs",15.64,BIFFA WASTE SERVICES LTD
Revenue,Childrens Services,5105614752,16.08.2013,Family Information Zone,"Refuse Collection, Disposal and Recycling Costs",19.55,BIFFA WASTE SERVICES LTD
Revenue,Childrens Services,5105619867,16.08.2013,Contact Team,"Refuse Collection, Disposal and Recycling Costs",107.36,BIFFA WASTE SERVICES LTD
Revenue,Childrens Services,5105620288,16.08.2013,Specialist Service Business Admin,"Refuse Collection, Disposal and Recycling Costs",226.32,BIFFA WASTE SERVICES LTD
Revenue,Childrens Services,5105616578,07.08.2013,Beaulieu House,"Refuse Collection, Disposal and Recycling Costs",17.45,BIFFA WASTE SERVICES LTD
Revenue,Childrens Services,5105616555,02.08.2013,Beaulieu House,"Refuse Collection, Disposal and Recycling Costs",182.90,BIFFA WASTE SERVICES LTD
Revenue,Childrens Services,5105620503,16.08.2013,Beaulieu House,"Refuse Collection, Disposal and Recycling Costs",146.32,BIFFA WASTE SERVICES LTD
Revenue,Childrens Services,5105620554,21.08.2013,Beaulieu House,"Refuse Collection, Disposal and Recycling Costs",13.96,BIFFA WASTE SERVICES LTD
Revenue,Childrens Services,5105614752,16.08.2013,Parent Partnership,"Refuse Collection, Disposal and Recycling Costs",19.55,BIFFA WASTE SERVICES LTD
Revenue,Childrens Services,5105620499,16.08.2013,Parent Partnership,"Refuse Collection, Disposal and Recycling Costs",15.64,BIFFA WASTE SERVICES LTD
Revenue,Childrens Services,5105614939,02.08.2013,Education Participation Team,"Refuse Collection, Disposal and Recycling Costs",49.25,BIFFA WASTE SERVICES LTD
Revenue,Childrens Services,5105614942,02.08.2013,Education Participation Team,"Refuse Collection, Disposal and Recycling Costs",49.25,BIFFA WASTE SERVICES LTD
Revenue,Childrens Services,5105620495,16.08.2013,Education Participation Team,"Refuse Collection, Disposal and Recycling Costs",39.40,BIFFA WASTE SERVICES LTD
Revenue,Childrens Services,5105620317,16.08.2013,Education Participation Team,"Refuse Collection, Disposal and Recycling Costs",130.00,BIFFA WASTE SERVICES LTD
Revenue,Childrens Services,5105620303,16.08.2013,Education Participation Team,"Refuse Collection, Disposal and Recycling Costs",119.40,BIFFA WASTE SERVICES LTD
Revenue,Economy & Environment,5105613223,02.08.2013,West Wight Middle School Disposal,"Refuse Collection, Disposal and Recycling Costs",415.36,BIFFA WASTE SERVICES LTD
Revenue,Economy & Environment,5105620501,16.08.2013,Ferry Management,"Refuse Collection, Disposal and Recycling Costs",77.56,BIFFA WASTE SERVICES LTD
Revenue,Economy & Environment,5105614426,09.08.2013,Fort Victoria,"Refuse Collection, Disposal and Recycling Costs",177.65,BIFFA WASTE SERVICES LTD
Revenue,Economy & Environment,5105614480,14.08.2013,"Salisbury Gardens, Ventnor","Refuse Collection, Disposal and Recycling Costs",49.25,BIFFA WASTE SERVICES LTD
Revenue,Economy & Environment,5105619287,14.08.2013,"Salisbury Gardens, Ventnor","Refuse Collection, Disposal and Recycling Costs",119.40,BIFFA WASTE SERVICES LTD
Revenue,Economy & Environment,5105614754,02.08.2013,Newport Harbour Account,"Refuse Collection, Disposal and Recycling Costs",280.35,BIFFA WASTE SERVICES LTD
Revenue,Economy & Environment,5105619291,14.08.2013,Newport Harbour Account,"Refuse Collection, Disposal and Recycling Costs",446.00,BIFFA WASTE SERVICES LTD
Revenue,Economy & Environment,5105619555,21.08.2013,Newport Harbour Account,"Refuse Collection, Disposal and Recycling Costs",322.62,BIFFA WASTE SERVICES LTD
Revenue,Economy & Environment,5105619617,16.08.2013,Fire Operations,"Refuse Collection, Disposal and Recycling Costs",562.80,BIFFA WASTE SERVICES LTD
Revenue,Economy & Environment,5105620504,16.08.2013,Fire Operations,"Refuse Collection, Disposal and Recycling Costs",385.52,BIFFA WASTE SERVICES LTD
Revenue,Economy & Environment,5105619562,14.08.2013,Planning Business Support,"Refuse Collection, Disposal and Recycling Costs",226.32,BIFFA WASTE SERVICES LTD
Revenue,Economy & Environment,5105619873,16.08.2013,Regulatory Management & Admin Support,"Refuse Collection, Disposal and Recycling Costs",153.16,BIFFA WASTE SERVICES LTD
Revenue,Economy & Environment,5105607604,02.08.2013,Crematorium,"Refuse Collection, Disposal and Recycling Costs",73.16,BIFFA WASTE SERVICES LTD
Revenue,Economy & Environment,5105619591,14.08.2013,Crematorium,"Refuse Collection, Disposal and Recycling Costs",153.16,BIFFA WASTE SERVICES LTD
Revenue,Childrens Services,5105621209,23.08.2013,Agency Placements,Charges from Independent Providers,"13,844.82",BIG BRIGHT HOLIDAYS
Revenue,Childrens Services,5105621603,23.08.2013,Agency Placements,Charges from Independent Providers,"13,844.82",BIG BRIGHT HOLIDAYS
Revenue,Childrens Services,5105617417,07.08.2013,Agency Placements,Charges from Independent Providers,"6,252.50",BIG BRIGHT HOLIDAYS
Revenue,Childrens Services,5105615824,07.08.2013,Agency Placements,Charges from Independent Providers,"13,844.82",BIG BRIGHT HOLIDAYS
Revenue,Childrens Services,5105620064,16.08.2013,Support for Looked After Children,Support Children,65.00,REDACTED PERSONAL DATA
Revenue,Childrens Services,5105622539,30.08.2013,Support for Looked After Children,Support Children,65.00,REDACTED PERSONAL DATA
Revenue,Childrens Services,5105617911,09.08.2013,Support for Looked After Children,Support Children,65.00,REDACTED PERSONAL DATA
Revenue,Childrens Services,5105617096,02.08.2013,Support for Looked After Children,Support Children,65.00,REDACTED PERSONAL DATA
Revenue,Childrens Services,5105621574,23.08.2013,Support for Looked After Children,Support Children,65.00,REDACTED PERSONAL DATA
Revenue,Childrens Services,5105621935,23.08.2013,Court Work & Consultancy Services,Legal Fees - Other Parties,"4,016.23",BISBEY LTD
Revenue,Economy & Environment,5105622080,28.08.2013,Play Development,Operational Equipment,31.50,BISHOP SPORTS & LEISURE LTD
Revenue,Economy & Environment,5105616573,21.08.2013,Play Development,Operational Equipment,299.00,BISHOP SPORTS & LEISURE LTD
Revenue,Economy & Environment,5105616573,21.08.2013,Play Development,Operational Equipment,11.55,BISHOP SPORTS & LEISURE LTD
Revenue,Economy & Environment,5105621604,23.08.2013,Play Development,Operational Equipment,45.10,BISHOP SPORTS & LEISURE LTD
Revenue,Economy & Environment,5105621604,23.08.2013,Play Development,Operational Equipment,8.00,BISHOP SPORTS & LEISURE LTD
Revenue,Resources,5105621282,23.08.2013,Litigation Costs,Legal Fees - Other Parties,630.00,BLAKE LAPTHORN
Revenue,Resources,5105621282,23.08.2013,Litigation Costs,Legal Fees - Other Parties,35.00,BLAKE LAPTHORN
Revenue,Childrens Services,5105617649,07.08.2013,Beaulieu House,General Materials,85.22,BOC LTD
Revenue,Childrens Services,5105621255,23.08.2013,Beaulieu House,Medical Fees and Staff Welfare,32.60,BOC LTD
Revenue,Economy & Environment,5105621280,23.08.2013,Ferry Maintenance,Vehicle Maintenance Costs,73.65,BOC LTD
Revenue,Childrens Services,5105619240,14.08.2013,Short Breaks,Payments to Voluntary and Other Associations,390.00,BODSTER EQUINE ASSISTED LEARN CIC
Revenue,Community Wellbeing & Social Care,5105619044,14.08.2013,Elderly Residential Daycare,Charges from Independent Providers,"1,818.88",BONDCARE NILERACE LIMITED
Revenue,Community Wellbeing & Social Care,5105620638,21.08.2013,Overbrook,Catering Purchases,9.99,BOOKER CASH & CARRY
Revenue,Community Wellbeing & Social Care,5105620638,21.08.2013,Overbrook,Catering Purchases,87.54,BOOKER CASH & CARRY
Revenue,Community Wellbeing & Social Care,5105621300,23.08.2013,Overbrook,Catering Purchases,4.00,BOOKER CASH & CARRY
Revenue,Community Wellbeing & Social Care,5105621300,23.08.2013,Overbrook,Catering Purchases,101.74,BOOKER CASH & CARRY
Revenue,Community Wellbeing & Social Care,5105621939,23.08.2013,Plean Dene,Catering Purchases,165.59,BOOKER CASH & CARRY
Revenue,Community Wellbeing & Social Care,5105621937,23.08.2013,Plean Dene,Catering Purchases,68.88,BOOKER CASH & CARRY
Revenue,Community Wellbeing & Social Care,5105621937,23.08.2013,Plean Dene,Catering Purchases,31.44,BOOKER CASH & CARRY
Revenue,Community Wellbeing & Social Care,5105620316,16.08.2013,Plean Dene,Catering Purchases,85.66,BOOKER CASH & CARRY
Revenue,Community Wellbeing & Social Care,5105620309,16.08.2013,Plean Dene,Catering Purchases,146.20,BOOKER CASH & CARRY
Revenue,Community Wellbeing & Social Care,5105620300,16.08.2013,Plean Dene,Catering Purchases,22.42,BOOKER CASH & CARRY
Revenue,Community Wellbeing & Social Care,5105620316,16.08.2013,Plean Dene,Catering Purchases,66.82,BOOKER CASH & CARRY
Revenue,Community Wellbeing & Social Care,5105619289,14.08.2013,Plean Dene,Catering Purchases,99.46,BOOKER CASH & CARRY
Revenue,Community Wellbeing & Social Care,5105619231,14.08.2013,Plean Dene,Catering Purchases,12.69,BOOKER CASH & CARRY
Revenue,Community Wellbeing & Social Care,5105619232,14.08.2013,Plean Dene,Catering Purchases,150.94,BOOKER CASH & CARRY
Revenue,Community Wellbeing & Social Care,5105619232,14.08.2013,Plean Dene,Catering Purchases,2.98,BOOKER CASH & CARRY
Revenue,Community Wellbeing & Social Care,5105617351,07.08.2013,Plean Dene,Catering Purchases,166.17,BOOKER CASH & CARRY
Revenue,Community Wellbeing & Social Care,5105621308,23.08.2013,Plean Dene,Catering Purchases,196.24,BOOKER CASH & CARRY
Revenue,Community Wellbeing & Social Care,5105621309,23.08.2013,Plean Dene,Catering Purchases,69.01,BOOKER CASH & CARRY
Revenue,Community Wellbeing & Social Care,5105621308,23.08.2013,Plean Dene,Catering Purchases,2.98,BOOKER CASH & CARRY
Revenue,Community Wellbeing & Social Care,5105621117,21.08.2013,Drug Misuse - Adults,Payment to Private Contractors,"1,600.00",BOOTS THE CHEMIST LTD
Revenue,Resources,5105622659,30.08.2013,Accountancy Team,Training,591.68,BPP PROFESSIONAL EDUCATION LIMITED
Revenue,Resources,5105622659,30.08.2013,Accountancy Team,Training,512.50,BPP PROFESSIONAL EDUCATION LIMITED
Revenue,Resources,5105622659,30.08.2013,Accountancy Team,Training,591.67,BPP PROFESSIONAL EDUCATION LIMITED
Revenue,Resources,5105622659,30.08.2013,Accountancy Team,Training,512.50,BPP PROFESSIONAL EDUCATION LIMITED
Revenue,Resources,5105622659,30.08.2013,Accountancy Team,Training,591.67,BPP PROFESSIONAL EDUCATION LIMITED
Revenue,Resources,5105622659,30.08.2013,Accountancy Team,Training,512.50,BPP PROFESSIONAL EDUCATION LIMITED
Revenue,Community Wellbeing & Social Care,5105619803,16.08.2013,Head of Adults,Licences,879.58,BRACKNELL FOREST BOROUGH COUNCIL
Revenue,Economy & Environment,5105617941,09.08.2013,Heights Cafe Stock,Order Settlement,103.49,BRAKE BROS LTD
Revenue,Economy & Environment,5105617723,09.08.2013,Heights Cafe Stock,Order Settlement,108.23,BRAKE BROS LTD
Revenue,Economy & Environment,5105620647,21.08.2013,Heights Cafe Stock,Order Settlement,123.05,BRAKE BROS LTD
Revenue,Economy & Environment,5105621223,21.08.2013,Heights Cafe Stock,Order Settlement,130.19,BRAKE BROS LTD
Revenue,Community Wellbeing & Social Care,5105621362,23.08.2013,Leaseholds by LA,Accommodation Costs - Leaseholder Payments,746.81,BRAMBLE LETTINGS
Revenue,Community Wellbeing & Social Care,5105621362,23.08.2013,Leaseholds by LA,Accommodation Costs - Leaseholder Payments,746.81,BRAMBLE LETTINGS
Revenue,Community Wellbeing & Social Care,5105621362,23.08.2013,Leaseholds by LA,Accommodation Costs - Leaseholder Payments,746.81,BRAMBLE LETTINGS
Revenue,Community Wellbeing & Social Care,5105621362,23.08.2013,Leaseholds by LA,Accommodation Costs - Leaseholder Payments,746.81,BRAMBLE LETTINGS
Revenue,Community Wellbeing & Social Care,5105621362,23.08.2013,Leaseholds by LA,Accommodation Costs - Leaseholder Payments,746.81,BRAMBLE LETTINGS
Revenue,Community Wellbeing & Social Care,5105621362,23.08.2013,Leaseholds by LA,Accommodation Costs - Leaseholder Payments,588.38,BRAMBLE LETTINGS
Revenue,Community Wellbeing & Social Care,5105621362,23.08.2013,Leaseholds by LA,Accommodation Costs - Leaseholder Payments,588.38,BRAMBLE LETTINGS
Revenue,Community Wellbeing & Social Care,5105621362,23.08.2013,Leaseholds by LA,Accommodation Costs - Leaseholder Payments,588.38,BRAMBLE LETTINGS
Revenue,Community Wellbeing & Social Care,5105621362,23.08.2013,Leaseholds by LA,Accommodation Costs - Leaseholder Payments,588.38,BRAMBLE LETTINGS
Revenue,Community Wellbeing & Social Care,5105621362,23.08.2013,Leaseholds by LA,Accommodation Costs - Leaseholder Payments,588.38,BRAMBLE LETTINGS
Revenue,Community Wellbeing & Social Care,5105621362,23.08.2013,Leaseholds by LA,Accommodation Costs - Leaseholder Payments,746.81,BRAMBLE LETTINGS
Revenue,Community Wellbeing & Social Care,5105621362,23.08.2013,Leaseholds by LA,Accommodation Costs - Leaseholder Payments,588.38,BRAMBLE LETTINGS
Revenue,Community Wellbeing & Social Care,5105621362,23.08.2013,Leaseholds by LA,Accommodation Costs - Leaseholder Payments,746.81,BRAMBLE LETTINGS
Revenue,Community Wellbeing & Social Care,5105621362,23.08.2013,Leaseholds by LA,Accommodation Costs - Leaseholder Payments,769.43,BRAMBLE LETTINGS
Revenue,Community Wellbeing & Social Care,5105621362,23.08.2013,Leaseholds by LA,Accommodation Costs - Leaseholder Payments,746.81,BRAMBLE LETTINGS
Revenue,Community Wellbeing & Social Care,5105621362,23.08.2013,Leaseholds by LA,Accommodation Costs - Leaseholder Payments,746.81,BRAMBLE LETTINGS
Revenue,Community Wellbeing & Social Care,5105621362,23.08.2013,Leaseholds by LA,Accommodation Costs - Leaseholder Payments,746.81,BRAMBLE LETTINGS
Revenue,Community Wellbeing & Social Care,5105621362,23.08.2013,Leaseholds by LA,Accommodation Costs - Leaseholder Payments,746.81,BRAMBLE LETTINGS
Revenue,Community Wellbeing & Social Care,5105621362,23.08.2013,Leaseholds by LA,Accommodation Costs - Leaseholder Payments,746.81,BRAMBLE LETTINGS
Revenue,Community Wellbeing & Social Care,5105621362,23.08.2013,Leaseholds by LA,Accommodation Costs - Leaseholder Payments,746.81,BRAMBLE LETTINGS
Revenue,Community Wellbeing & Social Care,5105621362,23.08.2013,Leaseholds by LA,Accommodation Costs - Leaseholder Payments,746.81,BRAMBLE LETTINGS
Revenue,Community Wellbeing & Social Care,5105621362,23.08.2013,Leaseholds by LA,Accommodation Costs - Leaseholder Payments,746.81,BRAMBLE LETTINGS
Revenue,Resources,5105621825,23.08.2013,Staff Benefits,Payment to Private Contractors,118.75,BRAMBLES AFTER SCHOOL CLUB
Revenue,Resources,5105621826,23.08.2013,Staff Benefits,Payment to Private Contractors,45.00,BRAMBLES AFTER SCHOOL CLUB
Revenue,Childrens Services,5400001705,30.08.2013,LSCB (Local Safeguarding Childrens Board),Accommodation Costs - Bed & Breakfast,58.33,BRAUNSTONE HOUSE HOTEL
Revenue,Community Wellbeing & Social Care,5105619144,14.08.2013,Elderly Residential Daycare,Charges from Independent Providers,"2,048.76",BRENDONCARE FOUNDATION
Revenue,Childrens Services,5105618058,09.08.2013,Targeted Youth Support,Payment to Private Contractors,232.00,BRICKFIELDS HORSECOUNTRY
Revenue,Childrens Services,5105618058,09.08.2013,Targeted Youth Support,Payment to Private Contractors,232.00,BRICKFIELDS HORSECOUNTRY
Revenue,Community Wellbeing & Social Care,5105618551,14.08.2013,Elderly Residential Daycare,Charges from Independent Providers,"1,998.08",BRIGHSTONE CARE LTD
Revenue,Community Wellbeing & Social Care,5105618551,14.08.2013,Elderly Residential Daycare,Charges from Independent Providers,"1,622.60",BRIGHSTONE CARE LTD
Revenue,Community Wellbeing & Social Care,5105618551,14.08.2013,Elderly Residential Daycare,Charges from Independent Providers,"1,622.60",BRIGHSTONE CARE LTD
Revenue,Community Wellbeing & Social Care,5105618551,14.08.2013,Elderly Residential Daycare,Charges from Independent Providers,"1,998.08",BRIGHSTONE CARE LTD
Revenue,Community Wellbeing & Social Care,5105622098,28.08.2013,Elderly Mentally Ill Residential Care,Charges from Independent Providers,856.32,BRIGHSTONE CARE LTD
Revenue,Community Wellbeing & Social Care,5105622098,28.08.2013,Elderly Mentally Ill Residential Care,Charges from Independent Providers,"5,994.24",BRIGHSTONE CARE LTD
Revenue,Community Wellbeing & Social Care,5105622883,30.08.2013,Elderly Mentally Ill Residential Care,Regular Respite Care,910.65,BRIGHSTONE CARE LTD
Revenue,Community Wellbeing & Social Care,5105618551,14.08.2013,Elderly Mentally Ill Residential Care,Charges from Independent Providers,"1,998.08",BRIGHSTONE CARE LTD
Revenue,Community Wellbeing & Social Care,5105618551,14.08.2013,Elderly Mentally Ill Residential Care,Charges from Independent Providers,"1,699.88",BRIGHSTONE CARE LTD
Revenue,Community Wellbeing & Social Care,5105618551,14.08.2013,Elderly Mentally Ill Residential Care,Charges from Independent Providers,"1,699.88",BRIGHSTONE CARE LTD
Revenue,Community Wellbeing & Social Care,5105618551,14.08.2013,Elderly Mentally Ill Residential Care,Charges from Independent Providers,"1,998.08",BRIGHSTONE CARE LTD
Revenue,Community Wellbeing & Social Care,5105618551,14.08.2013,REDACTED PERSONAL DATA,Order Settlement,"1,699.88",BRIGHSTONE CARE LTD
Revenue,Community Wellbeing & Social Care,5105618551,14.08.2013,REDACTED PERSONAL DATA,Order Settlement,657.72,BRIGHSTONE CARE LTD
Capital,Community Wellbeing & Social Care,5400001704,30.08.2013,Schools Reorganisation,Capital Contractor Payments,-0.60,BRIGHSTONE LANDSCAPING LTD
Revenue,Economy & Environment,5105621147,21.08.2013,Ferry Operation,Cleaning Contracts,450.00,BRIGHSTONE LANDSCAPING LTD
Revenue,Economy & Environment,5105622564,30.08.2013,Parks Maintenance Miscellaneous,Payment to Private Contractors,320.00,BRIGHSTONE LANDSCAPING LTD
Revenue,Economy & Environment,5105622567,30.08.2013,Ryde Depot,Payment to Private Contractors,440.00,BRIGHSTONE LANDSCAPING LTD
Revenue,Economy & Environment,5105617551,07.08.2013,Beach Cleaning,Payment to Private Contractors,225.00,BRIGHSTONE LANDSCAPING LTD
Revenue,Economy & Environment,5105622636,30.08.2013,Beach Cleaning,Payment to Private Contractors,85.00,BRIGHSTONE LANDSCAPING LTD
Revenue,Economy & Environment,5105622566,30.08.2013,Beach Cleaning,Payment to Private Contractors,380.00,BRIGHSTONE LANDSCAPING LTD
Revenue,Economy & Environment,5105622566,30.08.2013,Beach Cleaning,Payment to Private Contractors,115.00,BRIGHSTONE LANDSCAPING LTD
Revenue,Economy & Environment,5105622634,30.08.2013,Beach Cleaning,Payment to Private Contractors,210.00,BRIGHSTONE LANDSCAPING LTD
Revenue,Economy & Environment,5105622565,30.08.2013,Beach Cleaning,Payment to Private Contractors,45.00,BRIGHSTONE LANDSCAPING LTD
Revenue,Economy & Environment,5105615833,09.08.2013,Beach Cleaning,Beach Cleansing Contractors,"5,689.38",BRIGHSTONE LANDSCAPING LTD
Revenue,Economy & Environment,5105621145,21.08.2013,Beach Cleaning,Beach Cleansing Contractors,"25,216.72",BRIGHSTONE LANDSCAPING LTD
Revenue,Economy & Environment,5105617550,07.08.2013,Public Shelters - Ryde,Payment to Private Contractors,85.00,BRIGHSTONE LANDSCAPING LTD
Revenue,Economy & Environment,5105617550,07.08.2013,Public Shelters - Ryde,Payment to Private Contractors,440.00,BRIGHSTONE LANDSCAPING LTD
Revenue,Economy & Environment,5105619274,14.08.2013,Newport Harbour Account,Payment to Private Contractors,67.24,BRIGHSTONE LANDSCAPING LTD
Revenue,Resources,5105621747,23.08.2013,Staff Benefits,Payment to Private Contractors,24.37,BRIGHSTONE PLAYGROUP
Revenue,Community Wellbeing & Social Care,5105620640,21.08.2013,Drug Misuse - Adults,Payment to Private Contractors,"1,000.00",BROADREACH HOUSE
Revenue,Economy & Environment,5105621276,23.08.2013,Transport Fleet Administration,Vehicle Fuel Costs,441.51,BROADWAY GARAGE
Revenue,Community Wellbeing & Social Care,5105618037,14.08.2013,Contraception,Payment to Private Contractors,"1,580.00",BROOKSIDE HEALTH CENTRE
Revenue,Community Wellbeing & Social Care,5105618037,14.08.2013,NHS Health Check Programme,Payment to Private Contractors,872.00,BROOKSIDE HEALTH CENTRE
Revenue,Community Wellbeing & Social Care,5105618037,14.08.2013,STI Tests & Treatment,Payment to Private Contractors,10.00,BROOKSIDE HEALTH CENTRE
Revenue,Community Wellbeing & Social Care,5105618037,14.08.2013,Stop Smoking Services & Interventions,Payment to Private Contractors,400.00,BROOKSIDE HEALTH CENTRE
Revenue,Resources,5105615628,16.08.2013,Council Tax Benefit,Agency staff,104.50,BROOKSON SOLUTIONS LTD
Revenue,Resources,5105620257,16.08.2013,Council Tax Benefit,Agency staff,-104.50,BROOKSON SOLUTIONS LTD
Revenue,Community Wellbeing & Social Care,5105618002,16.08.2013,Adelaide Resource Centre,Fixed Telephones,629.30,BT FINANCE
Revenue,Community Wellbeing & Social Care,5105620583,21.08.2013,Elderly Residential Daycare,Charges from Independent Providers,"1,854.40",BUCKLAND CARE LTD
Revenue,Community Wellbeing & Social Care,5105620583,21.08.2013,Elderly Residential Daycare,Charges from Independent Providers,"2,549.80",BUCKLAND CARE LTD
Revenue,Community Wellbeing & Social Care,5105618575,14.08.2013,Elderly Residential Daycare,Charges from Independent Providers,"1,622.60",BUCKLAND CARE LTD
Revenue,Community Wellbeing & Social Care,5105618575,14.08.2013,Elderly Residential Daycare,Charges from Independent Providers,"1,622.60",BUCKLAND CARE LTD
Revenue,Community Wellbeing & Social Care,5105618575,14.08.2013,Elderly Residential Daycare,Charges from Independent Providers,"1,622.60",BUCKLAND CARE LTD
Revenue,Community Wellbeing & Social Care,5105618575,14.08.2013,Elderly Residential Daycare,Charges from Independent Providers,"1,622.60",BUCKLAND CARE LTD
Revenue,Community Wellbeing & Social Care,5105618575,14.08.2013,Elderly Residential Daycare,Charges from Independent Providers,"1,998.08",BUCKLAND CARE LTD
Revenue,Community Wellbeing & Social Care,5105618575,14.08.2013,Elderly Residential Daycare,Charges from Independent Providers,"1,998.08",BUCKLAND CARE LTD
Revenue,Community Wellbeing & Social Care,5105618575,14.08.2013,Elderly Residential Daycare,Charges from Independent Providers,"1,622.60",BUCKLAND CARE LTD
Revenue,Community Wellbeing & Social Care,5105618575,14.08.2013,Elderly Residential Daycare,Charges from Independent Providers,"1,622.60",BUCKLAND CARE LTD
Revenue,Community Wellbeing & Social Care,5105618575,14.08.2013,Elderly Residential Daycare,Charges from Independent Providers,"1,998.08",BUCKLAND CARE LTD
Revenue,Community Wellbeing & Social Care,5105618575,14.08.2013,Elderly Residential Daycare,Charges from Independent Providers,"1,998.08",BUCKLAND CARE LTD
Revenue,Community Wellbeing & Social Care,5105618575,14.08.2013,Elderly Mentally Ill Residential Care,Charges from Independent Providers,"1,998.08",BUCKLAND CARE LTD
Revenue,Community Wellbeing & Social Care,5105618575,14.08.2013,Elderly Mentally Ill Residential Care,Charges from Independent Providers,"1,699.88",BUCKLAND CARE LTD
Revenue,Community Wellbeing & Social Care,5105618575,14.08.2013,Elderly Mentally Ill Residential Care,Charges from Independent Providers,"1,699.88",BUCKLAND CARE LTD
Revenue,Community Wellbeing & Social Care,5105618575,14.08.2013,Elderly Mentally Ill Residential Care,Charges from Independent Providers,"1,998.08",BUCKLAND CARE LTD
Revenue,Community Wellbeing & Social Care,5105618575,14.08.2013,Elderly Mentally Ill Residential Care,Charges from Independent Providers,"1,699.88",BUCKLAND CARE LTD
Revenue,Community Wellbeing & Social Care,5105618575,14.08.2013,Elderly Mentally Ill Residential Care,Charges from Independent Providers,"1,699.88",BUCKLAND CARE LTD
Revenue,Community Wellbeing & Social Care,5105618575,14.08.2013,REDACTED PERSONAL DATA,Order Settlement,"1,622.60",BUCKLAND CARE LTD
Revenue,Community Wellbeing & Social Care,5105618575,14.08.2013,REDACTED PERSONAL DATA,Order Settlement,577.36,BUCKLAND CARE LTD
Revenue,Community Wellbeing & Social Care,5105618575,14.08.2013,REDACTED PERSONAL DATA,Order Settlement,"1,699.88",BUCKLAND CARE LTD
Revenue,Community Wellbeing & Social Care,5105622099,30.08.2013,Elderly Frail Nursing Island,Charges from Independent Providers,"2,195.12",BUCKLAND CARE LTD
Revenue,Community Wellbeing & Social Care,5105622709,30.08.2013,Elderly Frail Nursing Island,Charges from Independent Providers,"1,622.48",BUCKLAND CARE LTD
Revenue,Community Wellbeing & Social Care,5105622377,30.08.2013,Elderly Frail Nursing Island,Charges from Independent Providers,668.08,BUCKLAND CARE LTD
Revenue,Community Wellbeing & Social Care,5105621410,30.08.2013,Elderly Frail Nursing Island,Charges from Independent Providers,"1,431.60",BUCKLAND CARE LTD
Revenue,Community Wellbeing & Social Care,5105618558,14.08.2013,Elderly Frail Nursing Island,Charges from Independent Providers,"2,672.32",BUCKLAND CARE LTD
Revenue,Community Wellbeing & Social Care,5105618558,14.08.2013,Elderly Frail Nursing Island,Charges from Independent Providers,"2,672.32",BUCKLAND CARE LTD
Revenue,Community Wellbeing & Social Care,5105618558,14.08.2013,Elderly Frail Nursing Island,Charges from Independent Providers,"2,672.32",BUCKLAND CARE LTD
Revenue,Community Wellbeing & Social Care,5105618558,14.08.2013,Elderly Frail Nursing Island,Charges from Independent Providers,"2,672.32",BUCKLAND CARE LTD
Revenue,Community Wellbeing & Social Care,5105619901,16.08.2013,Elderly Frail Nursing Island,Charges from Independent Providers,"1,622.48",BUCKLAND CARE LTD
Revenue,Community Wellbeing & Social Care,5105619901,16.08.2013,Elderly Frail Nursing Island,Charges from Independent Providers,"1,622.48",BUCKLAND CARE LTD
Revenue,Community Wellbeing & Social Care,5105620349,16.08.2013,Elderly Frail Nursing Island,Charges from Independent Providers,"1,049.84",BUCKLAND CARE LTD
Revenue,Community Wellbeing & Social Care,5105620349,16.08.2013,Elderly Frail Nursing Island,Charges from Independent Providers,"1,049.84",BUCKLAND CARE LTD
Revenue,Community Wellbeing & Social Care,5105618558,14.08.2013,Elderly Frail Nursing Island,Charges from Independent Providers,"2,672.32",BUCKLAND CARE LTD
Revenue,Community Wellbeing & Social Care,5105618558,14.08.2013,Elderly Frail Nursing Island,Charges from Independent Providers,"2,672.32",BUCKLAND CARE LTD
Revenue,Community Wellbeing & Social Care,5105618558,14.08.2013,Elderly Frail Nursing Island,Charges from Independent Providers,"2,672.32",BUCKLAND CARE LTD
Revenue,Community Wellbeing & Social Care,5105618558,14.08.2013,Elderly Frail Nursing Island,Charges from Independent Providers,"2,672.32",BUCKLAND CARE LTD
Revenue,Community Wellbeing & Social Care,5105618558,14.08.2013,Elderly Frail Nursing Island,Charges from Independent Providers,"2,672.32",BUCKLAND CARE LTD
Revenue,Community Wellbeing & Social Care,5105618558,14.08.2013,Elderly Frail Nursing Island,Charges from Independent Providers,"2,672.32",BUCKLAND CARE LTD
Revenue,Community Wellbeing & Social Care,5105618558,14.08.2013,Elderly Frail Nursing Island,Charges from Independent Providers,"2,672.32",BUCKLAND CARE LTD
Revenue,Community Wellbeing & Social Care,5105617609,14.08.2013,Elderly Frail Nursing Island,Charges from Independent Providers,"1,717.92",BUCKLAND CARE LTD
Revenue,Community Wellbeing & Social Care,5105618558,14.08.2013,Elderly Mentally Ill Nursing Island,Regular Respite Care,"2,672.32",BUCKLAND CARE LTD
Revenue,Community Wellbeing & Social Care,5105621094,21.08.2013,Funded Nursing Care Island,Charges from Independent Providers,590.14,BUCKLAND CARE LTD
Revenue,Community Wellbeing & Social Care,5105621094,21.08.2013,Funded Nursing Care Island,Charges from Independent Providers,"2,635.92",BUCKLAND CARE LTD
Revenue,Community Wellbeing & Social Care,5105618558,14.08.2013,Funded Nursing Care Island,Charges from Independent Providers,439.32,BUCKLAND CARE LTD
Revenue,Community Wellbeing & Social Care,5105618558,14.08.2013,Funded Nursing Care Island,Charges from Independent Providers,439.32,BUCKLAND CARE LTD
Revenue,Community Wellbeing & Social Care,5105618558,14.08.2013,Funded Nursing Care Island,Charges from Independent Providers,439.32,BUCKLAND CARE LTD
Revenue,Community Wellbeing & Social Care,5105618558,14.08.2013,Funded Nursing Care Island,Charges from Independent Providers,439.32,BUCKLAND CARE LTD
Revenue,Community Wellbeing & Social Care,5105618558,14.08.2013,Funded Nursing Care Island,Charges from Independent Providers,439.32,BUCKLAND CARE LTD
Revenue,Community Wellbeing & Social Care,5105618558,14.08.2013,Funded Nursing Care Island,Charges from Independent Providers,439.32,BUCKLAND CARE LTD
Revenue,Community Wellbeing & Social Care,5105618558,14.08.2013,Funded Nursing Care Island,Charges from Independent Providers,439.32,BUCKLAND CARE LTD
Revenue,Community Wellbeing & Social Care,5105618558,14.08.2013,Funded Nursing Care Island,Charges from Independent Providers,439.32,BUCKLAND CARE LTD
Revenue,Community Wellbeing & Social Care,5105618558,14.08.2013,Funded Nursing Care Island,Charges from Independent Providers,439.32,BUCKLAND CARE LTD
Revenue,Community Wellbeing & Social Care,5105618558,14.08.2013,Funded Nursing Care Island,Charges from Independent Providers,439.32,BUCKLAND CARE LTD
Revenue,Community Wellbeing & Social Care,5105618558,14.08.2013,Funded Nursing Care Island,Charges from Independent Providers,439.32,BUCKLAND CARE LTD
Revenue,Community Wellbeing & Social Care,5105622709,30.08.2013,Elderly Mentally Ill Managed Accounts,Charges from Independent Providers,"1,760.59",BUCKLAND CARE LTD
Revenue,Community Wellbeing & Social Care,5105618558,14.08.2013,REDACTED PERSONAL DATA,Order Settlement,"2,672.32",BUCKLAND CARE LTD
Revenue,Community Wellbeing & Social Care,5105618558,14.08.2013,REDACTED PERSONAL DATA,Order Settlement,"2,672.32",BUCKLAND CARE LTD
Revenue,Economy & Environment,5105622185,28.08.2013,SOEC �INTERREG NWE,Professional Service,"5,002.23",BURGES SALMON LLP
Revenue,Childrens Services,5105621311,23.08.2013,Fostering by Other Agencies,Charges from Independent Providers,"8,244.29",BY THE BRIDGE LTD
Revenue,Resources,5105621150,23.08.2013,"College Farm, Sandown",Grounds Maintenance,590.00,C & J GROUND MAINTENANCE
Revenue,Resources,5105622348,30.08.2013,Properties  - Other Properties,Grounds Maintenance,"1,050.00",C & J GROUND MAINTENANCE
Revenue,Resources,5105622349,30.08.2013,Properties  - Other Properties,Grounds Maintenance,"1,455.00",C & J GROUND MAINTENANCE
Revenue,Resources,5105621159,23.08.2013,"Westridge, Ryde",Grounds Maintenance,705.00,C & J GROUND MAINTENANCE
Revenue,Resources,5105620942,21.08.2013,"Westridge, Ryde",Grounds Maintenance,"1,310.00",C & J GROUND MAINTENANCE
Revenue,Community Wellbeing & Social Care,5105622347,30.08.2013,Westminster House,Property Services - Building maintenance,75.00,C & J GROUND MAINTENANCE
Revenue,Childrens Services,5105618111,21.08.2013,Beaulieu House,Grounds Maintenance,225.00,C & J GROUND MAINTENANCE
Revenue,Childrens Services,5105622569,30.08.2013,Beaulieu House,Grounds Maintenance,225.00,C & J GROUND MAINTENANCE
Revenue,Childrens Services,5105621152,23.08.2013,Beaulieu House,Minor Works,"1,318.00",C & J GROUND MAINTENANCE
Revenue,Childrens Services,5105620934,23.08.2013,Beaulieu House,Minor Works,"3,919.00",C & J GROUND MAINTENANCE
Revenue,Economy & Environment,5105621148,23.08.2013,Crematorium,Property Services - Building maintenance,200.00,C & J GROUND MAINTENANCE
Revenue,Childrens Services,5105622515,30.08.2013,Fostering services,Boarding Out Allowances,11.50,REDACTED PERSONAL DATA
Revenue,Childrens Services,5105621550,23.08.2013,Fostering services,Boarding Out Allowances,11.50,REDACTED PERSONAL DATA
Revenue,Childrens Services,5105620040,16.08.2013,Fostering services,Boarding Out Allowances,11.50,REDACTED PERSONAL DATA
Revenue,Childrens Services,5105617069,02.08.2013,Fostering services,Boarding Out Allowances,11.50,REDACTED PERSONAL DATA
Revenue,Childrens Services,5105617885,09.08.2013,Fostering services,Boarding Out Allowances,11.50,REDACTED PERSONAL DATA
Revenue,Childrens Services,5105622483,30.08.2013,Children placed with Family & Friends,Boarding Out Allowances,257.29,REDACTED PERSONAL DATA
Revenue,Childrens Services,5105621518,23.08.2013,Children placed with Family & Friends,Boarding Out Allowances,257.29,REDACTED PERSONAL DATA
Revenue,Childrens Services,5105617854,09.08.2013,Children placed with Family & Friends,Boarding Out Allowances,257.29,REDACTED PERSONAL DATA
Revenue,Childrens Services,5105620009,16.08.2013,Children placed with Family & Friends,Boarding Out Allowances,257.29,REDACTED PERSONAL DATA
Revenue,Childrens Services,5105617039,02.08.2013,Children placed with Family & Friends,Boarding Out Allowances,257.29,REDACTED PERSONAL DATA
Revenue,Childrens Services,5105621487,23.08.2013,Special Guardianship Order Costs,Support Children,125.79,REDACTED PERSONAL DATA
Revenue,Childrens Services,5105622454,30.08.2013,Special Guardianship Order Costs,Support Children,125.79,REDACTED PERSONAL DATA
Revenue,Childrens Services,5105619979,16.08.2013,Special Guardianship Order Costs,Support Children,125.79,REDACTED PERSONAL DATA
Revenue,Childrens Services,5105617007,02.08.2013,Special Guardianship Order Costs,Support Children,125.79,REDACTED PERSONAL DATA
Revenue,Childrens Services,5105617823,09.08.2013,Special Guardianship Order Costs,Support Children,125.79,REDACTED PERSONAL DATA
Revenue,Economy & Environment,5105620641,21.08.2013,Deputy Chief Fire Office,Property Services - Planned maintenance,56.32,C BREWER & SONS LTD
Revenue,Economy & Environment,5105620642,21.08.2013,Deputy Chief Fire Office,Property Services - Planned maintenance,76.55,C BREWER & SONS LTD
Revenue,Economy & Environment,5105620639,21.08.2013,Deputy Chief Fire Office,Property Services - Planned maintenance,17.99,C BREWER & SONS LTD
Revenue,Childrens Services,5105622523,30.08.2013,Children placed with Family & Friends,Boarding Out Allowances,130.20,REDACTED PERSONAL DATA
Revenue,Childrens Services,5105621558,23.08.2013,Children placed with Family & Friends,Boarding Out Allowances,130.20,REDACTED PERSONAL DATA
Revenue,Childrens Services,5105617893,09.08.2013,Children placed with Family & Friends,Boarding Out Allowances,130.20,REDACTED PERSONAL DATA
Revenue,Childrens Services,5105620048,16.08.2013,Children placed with Family & Friends,Boarding Out Allowances,130.20,REDACTED PERSONAL DATA
Revenue,Childrens Services,5105617077,02.08.2013,Children placed with Family & Friends,Boarding Out Allowances,130.20,REDACTED PERSONAL DATA
Revenue,Childrens Services,5105620022,16.08.2013,Adoption Costs,Support Children,125.79,REDACTED PERSONAL DATA
Revenue,Childrens Services,5105620022,16.08.2013,Adoption Costs,Support Children,132.69,REDACTED PERSONAL DATA
Revenue,Childrens Services,5105621531,23.08.2013,Adoption Costs,Support Children,125.79,REDACTED PERSONAL DATA
Revenue,Childrens Services,5105621531,23.08.2013,Adoption Costs,Support Children,132.69,REDACTED PERSONAL DATA
Revenue,Childrens Services,5105622496,30.08.2013,Adoption Costs,Support Children,125.79,REDACTED PERSONAL DATA
Revenue,Childrens Services,5105622496,30.08.2013,Adoption Costs,Support Children,132.69,REDACTED PERSONAL DATA
Revenue,Childrens Services,5105617052,02.08.2013,Adoption Costs,Support Children,125.79,REDACTED PERSONAL DATA
Revenue,Childrens Services,5105617052,02.08.2013,Adoption Costs,Support Children,132.69,REDACTED PERSONAL DATA
Revenue,Childrens Services,5105617867,09.08.2013,Adoption Costs,Support Children,125.79,REDACTED PERSONAL DATA
Revenue,Childrens Services,5105617867,09.08.2013,Adoption Costs,Support Children,132.69,REDACTED PERSONAL DATA
Revenue,Resources,5105621842,23.08.2013,Staff Benefits,Payment to Private Contractors,153.78,REDACTED PERSONAL DATA
Revenue,Childrens Services,5105621512,23.08.2013,Leaving Care Costs,Accommodation Costs - Service Users,57.50,REDACTED PERSONAL DATA
Revenue,Childrens Services,5105621512,23.08.2013,Leaving Care Costs,Accommodation Costs - Service Users,57.50,REDACTED PERSONAL DATA
Revenue,Childrens Services,5105622478,30.08.2013,Leaving Care Costs,Accommodation Costs - Service Users,57.50,REDACTED PERSONAL DATA
Revenue,Childrens Services,5105622478,30.08.2013,Leaving Care Costs,Accommodation Costs - Service Users,57.50,REDACTED PERSONAL DATA
Revenue,Childrens Services,5105620003,16.08.2013,Leaving Care Costs,Accommodation Costs - Service Users,57.50,REDACTED PERSONAL DATA
Revenue,Childrens Services,5105620003,16.08.2013,Leaving Care Costs,Accommodation Costs - Service Users,57.50,REDACTED PERSONAL DATA
Revenue,Childrens Services,5105617848,09.08.2013,Leaving Care Costs,Accommodation Costs - Service Users,57.50,REDACTED PERSONAL DATA
Revenue,Childrens Services,5105617848,09.08.2013,Leaving Care Costs,Accommodation Costs - Service Users,57.50,REDACTED PERSONAL DATA
Revenue,Childrens Services,5105617032,02.08.2013,Leaving Care Costs,Accommodation Costs - Service Users,57.50,REDACTED PERSONAL DATA
Revenue,Childrens Services,5105617032,02.08.2013,Leaving Care Costs,Accommodation Costs - Service Users,57.50,REDACTED PERSONAL DATA
Revenue,Childrens Services,5105621512,23.08.2013,Leaving Care Costs,Support Children,120.89,REDACTED PERSONAL DATA
Revenue,Childrens Services,5105621512,23.08.2013,Leaving Care Costs,Support Children,120.89,REDACTED PERSONAL DATA
Revenue,Childrens Services,5105621512,23.08.2013,Leaving Care Costs,Support Children,20.00,REDACTED PERSONAL DATA
Revenue,Childrens Services,5105622478,30.08.2013,Leaving Care Costs,Support Children,120.89,REDACTED PERSONAL DATA
Revenue,Childrens Services,5105622478,30.08.2013,Leaving Care Costs,Support Children,120.89,REDACTED PERSONAL DATA
Revenue,Childrens Services,5105622478,30.08.2013,Leaving Care Costs,Support Children,20.00,REDACTED PERSONAL DATA
Revenue,Childrens Services,5105620003,16.08.2013,Leaving Care Costs,Support Children,120.89,REDACTED PERSONAL DATA
Revenue,Childrens Services,5105620003,16.08.2013,Leaving Care Costs,Support Children,120.89,REDACTED PERSONAL DATA
Revenue,Childrens Services,5105620003,16.08.2013,Leaving Care Costs,Support Children,20.00,REDACTED PERSONAL DATA
Revenue,Childrens Services,5105617848,09.08.2013,Leaving Care Costs,Support Children,120.89,REDACTED PERSONAL DATA
Revenue,Childrens Services,5105617848,09.08.2013,Leaving Care Costs,Support Children,120.89,REDACTED PERSONAL DATA
Revenue,Childrens Services,5105617848,09.08.2013,Leaving Care Costs,Support Children,20.00,REDACTED PERSONAL DATA
Revenue,Childrens Services,5105617032,02.08.2013,Leaving Care Costs,Support Children,120.89,REDACTED PERSONAL DATA
Revenue,Childrens Services,5105617032,02.08.2013,Leaving Care Costs,Support Children,120.89,REDACTED PERSONAL DATA
Revenue,Childrens Services,5105617032,02.08.2013,Leaving Care Costs,Support Children,20.00,REDACTED PERSONAL DATA
Revenue,Childrens Services,5105622473,30.08.2013,Special Guardianship Order Costs,Support Children,109.90,REDACTED PERSONAL DATA
Revenue,Childrens Services,5105621507,23.08.2013,Special Guardianship Order Costs,Support Children,109.90,REDACTED PERSONAL DATA
Revenue,Childrens Services,5105619998,16.08.2013,Special Guardianship Order Costs,Support Children,109.90,REDACTED PERSONAL DATA
Revenue,Childrens Services,5105617026,02.08.2013,Special Guardianship Order Costs,Support Children,109.90,REDACTED PERSONAL DATA
Revenue,Childrens Services,5105617842,09.08.2013,Special Guardianship Order Costs,Support Children,109.90,REDACTED PERSONAL DATA
Revenue,Childrens Services,5105616664,16.08.2013,Court Work & Consultancy Services,Legal Fees - Other Parties,"9,660.00",14 GRAYS INN SQUARE - FAMILY LAW CHAMBERS
Revenue,Childrens Services,5105619983,16.08.2013,Adoption Costs,Support Children,168.39,REDACTED PERSONAL DATA
Revenue,Childrens Services,5105619983,16.08.2013,Adoption Costs,Support Children,168.39,REDACTED PERSONAL DATA
Revenue,Childrens Services,5105621491,23.08.2013,Adoption Costs,Support Children,168.39,REDACTED PERSONAL DATA
Revenue,Childrens Services,5105621491,23.08.2013,Adoption Costs,Support Children,168.39,REDACTED PERSONAL DATA
Revenue,Childrens Services,5105622458,30.08.2013,Adoption Costs,Support Children,168.39,REDACTED PERSONAL DATA
Revenue,Childrens Services,5105622458,30.08.2013,Adoption Costs,Support Children,168.39,REDACTED PERSONAL DATA
Revenue,Childrens Services,5105617011,02.08.2013,Adoption Costs,Support Children,168.39,REDACTED PERSONAL DATA
Revenue,Childrens Services,5105617011,02.08.2013,Adoption Costs,Support Children,168.39,REDACTED PERSONAL DATA
Revenue,Childrens Services,5105617827,09.08.2013,Adoption Costs,Support Children,168.39,REDACTED PERSONAL DATA
Revenue,Childrens Services,5105617827,09.08.2013,Adoption Costs,Support Children,168.39,REDACTED PERSONAL DATA
Revenue,Childrens Services,5105622545,30.08.2013,Leaving Care Costs,Accommodation Costs - Service Users,57.50,REDACTED PERSONAL DATA
Revenue,Childrens Services,5105621581,23.08.2013,Leaving Care Costs,Accommodation Costs - Service Users,57.50,REDACTED PERSONAL DATA
Revenue,Childrens Services,5105617918,09.08.2013,Leaving Care Costs,Accommodation Costs - Service Users,57.50,REDACTED PERSONAL DATA
Revenue,Childrens Services,5105620071,16.08.2013,Leaving Care Costs,Accommodation Costs - Service Users,57.50,REDACTED PERSONAL DATA
Revenue,Childrens Services,5105621581,23.08.2013,Fostering services,Support Children,120.89,REDACTED PERSONAL DATA
Revenue,Childrens Services,5105617918,09.08.2013,Fostering services,Support Children,120.89,REDACTED PERSONAL DATA
Revenue,Childrens Services,5105620071,16.08.2013,Fostering services,Support Children,120.89,REDACTED PERSONAL DATA
Revenue,Childrens Services,5105622545,30.08.2013,Fostering services,Support Children,120.89,REDACTED PERSONAL DATA
Revenue,Childrens Services,5105622451,30.08.2013,Fostering services,Boarding Out Allowances,221.13,REDACTED PERSONAL DATA
Revenue,Childrens Services,5105622451,30.08.2013,Fostering services,Boarding Out Allowances,10.00,REDACTED PERSONAL DATA
Revenue,Childrens Services,5105622451,30.08.2013,Fostering services,Boarding Out Allowances,221.13,REDACTED PERSONAL DATA
Revenue,Childrens Services,5105622451,30.08.2013,Fostering services,Boarding Out Allowances,125.00,REDACTED PERSONAL DATA
Revenue,Childrens Services,5105621484,23.08.2013,Fostering services,Boarding Out Allowances,136.42,REDACTED PERSONAL DATA
Revenue,Childrens Services,5105621484,23.08.2013,Fostering services,Boarding Out Allowances,489.34,REDACTED PERSONAL DATA
Revenue,Childrens Services,5105621484,23.08.2013,Fostering services,Boarding Out Allowances,10.00,REDACTED PERSONAL DATA
Revenue,Childrens Services,5105619976,16.08.2013,Fostering services,Boarding Out Allowances,489.34,REDACTED PERSONAL DATA
Revenue,Childrens Services,5105619976,16.08.2013,Fostering services,Boarding Out Allowances,10.00,REDACTED PERSONAL DATA
Revenue,Childrens Services,5105617004,02.08.2013,Fostering services,Boarding Out Allowances,489.34,REDACTED PERSONAL DATA
Revenue,Childrens Services,5105617004,02.08.2013,Fostering services,Boarding Out Allowances,10.00,REDACTED PERSONAL DATA
Revenue,Childrens Services,5105617820,09.08.2013,Fostering services,Boarding Out Allowances,221.13,REDACTED PERSONAL DATA
Revenue,Childrens Services,5105617820,09.08.2013,Fostering services,Boarding Out Allowances,238.87,REDACTED PERSONAL DATA
Revenue,Childrens Services,5105619976,16.08.2013,Fostering services,Boarding Out Allowances,136.42,REDACTED PERSONAL DATA
Revenue,Childrens Services,5105617820,09.08.2013,Fostering services,Boarding Out Allowances,489.34,REDACTED PERSONAL DATA
Revenue,Childrens Services,5105617820,09.08.2013,Fostering services,Boarding Out Allowances,10.00,REDACTED PERSONAL DATA
Revenue,Childrens Services,5105617004,02.08.2013,Fostering services,Boarding Out Allowances,221.13,REDACTED PERSONAL DATA
Revenue,Childrens Services,5105617004,02.08.2013,Fostering services,Boarding Out Allowances,238.87,REDACTED PERSONAL DATA
Revenue,Childrens Services,5105622386,30.08.2013,Leaving Care Costs,Accommodation Costs - Service Users,57.50,REDACTED PERSONAL DATA
Revenue,Childrens Services,5105619910,16.08.2013,Leaving Care Costs,Accommodation Costs - Service Users,57.50,REDACTED PERSONAL DATA
Revenue,Childrens Services,5105621419,23.08.2013,Leaving Care Costs,Accommodation Costs - Service Users,57.50,REDACTED PERSONAL DATA
Revenue,Childrens Services,5105617753,09.08.2013,Leaving Care Costs,Accommodation Costs - Service Users,57.50,REDACTED PERSONAL DATA
Revenue,Childrens Services,5105616937,02.08.2013,Leaving Care Costs,Accommodation Costs - Service Users,57.50,REDACTED PERSONAL DATA
Revenue,Childrens Services,5105621419,23.08.2013,Leaving Care Costs,Support Children,120.89,REDACTED PERSONAL DATA
Revenue,Childrens Services,5105622386,30.08.2013,Leaving Care Costs,Support Children,120.89,REDACTED PERSONAL DATA
Revenue,Childrens Services,5105619910,16.08.2013,Leaving Care Costs,Support Children,120.89,REDACTED PERSONAL DATA
Revenue,Childrens Services,5105616937,02.08.2013,Leaving Care Costs,Support Children,120.89,REDACTED PERSONAL DATA
Revenue,Childrens Services,5105617753,09.08.2013,Leaving Care Costs,Support Children,120.89,REDACTED PERSONAL DATA
Revenue,Childrens Services,5105622426,30.08.2013,Fostering services,Boarding Out Allowances,221.13,REDACTED PERSONAL DATA
Revenue,Childrens Services,5105622426,30.08.2013,Fostering services,Boarding Out Allowances,221.13,REDACTED PERSONAL DATA
Revenue,Childrens Services,5105622426,30.08.2013,Fostering services,Boarding Out Allowances,15.00,REDACTED PERSONAL DATA
Revenue,Childrens Services,5105621459,23.08.2013,Fostering services,Boarding Out Allowances,221.13,REDACTED PERSONAL DATA
Revenue,Childrens Services,5105621459,23.08.2013,Fostering services,Boarding Out Allowances,221.13,REDACTED PERSONAL DATA
Revenue,Childrens Services,5105621459,23.08.2013,Fostering services,Boarding Out Allowances,15.00,REDACTED PERSONAL DATA
Revenue,Childrens Services,5105619950,16.08.2013,Fostering services,Boarding Out Allowances,221.13,REDACTED PERSONAL DATA
Revenue,Childrens Services,5105619950,16.08.2013,Fostering services,Boarding Out Allowances,221.13,REDACTED PERSONAL DATA
Revenue,Childrens Services,5105619950,16.08.2013,Fostering services,Boarding Out Allowances,15.00,REDACTED PERSONAL DATA
Revenue,Childrens Services,5105616978,02.08.2013,Fostering services,Boarding Out Allowances,221.13,REDACTED PERSONAL DATA
Revenue,Childrens Services,5105616978,02.08.2013,Fostering services,Boarding Out Allowances,221.13,REDACTED PERSONAL DATA
Revenue,Childrens Services,5105616978,02.08.2013,Fostering services,Boarding Out Allowances,15.00,REDACTED PERSONAL DATA
Revenue,Childrens Services,5105617794,09.08.2013,Fostering services,Boarding Out Allowances,221.13,REDACTED PERSONAL DATA
Revenue,Childrens Services,5105617794,09.08.2013,Fostering services,Boarding Out Allowances,221.13,REDACTED PERSONAL DATA
Revenue,Childrens Services,5105617794,09.08.2013,Fostering services,Boarding Out Allowances,15.00,REDACTED PERSONAL DATA
Revenue,Childrens Services,5105621480,23.08.2013,Children placed with Family & Friends,Boarding Out Allowances,100.00,REDACTED PERSONAL DATA
Revenue,Childrens Services,5105621480,23.08.2013,Children placed with Family & Friends,Boarding Out Allowances,181.79,REDACTED PERSONAL DATA
Revenue,Childrens Services,5105619972,16.08.2013,Children placed with Family & Friends,Boarding Out Allowances,100.00,REDACTED PERSONAL DATA
Revenue,Childrens Services,5105622447,30.08.2013,Children placed with Family & Friends,Boarding Out Allowances,181.79,REDACTED PERSONAL DATA
Revenue,Childrens Services,5105622447,30.08.2013,Children placed with Family & Friends,Boarding Out Allowances,100.00,REDACTED PERSONAL DATA
Revenue,Childrens Services,5105617816,09.08.2013,Children placed with Family & Friends,Boarding Out Allowances,181.79,REDACTED PERSONAL DATA
Revenue,Childrens Services,5105617000,02.08.2013,Children placed with Family & Friends,Boarding Out Allowances,100.00,REDACTED PERSONAL DATA
Revenue,Childrens Services,5105617000,02.08.2013,Children placed with Family & Friends,Boarding Out Allowances,181.79,REDACTED PERSONAL DATA
Revenue,Childrens Services,5105617816,09.08.2013,Children placed with Family & Friends,Boarding Out Allowances,100.00,REDACTED PERSONAL DATA
Revenue,Childrens Services,5105619972,16.08.2013,Children placed with Family & Friends,Boarding Out Allowances,181.79,REDACTED PERSONAL DATA
Revenue,Economy & Environment,5105621157,21.08.2013,Rights of Way Operations,Payment to Private Contractors,75.00,C N SERVICES
Revenue,Economy & Environment,5105617552,09.08.2013,North Ground Maintenance Non-Horticultural,Payment to Private Contractors,801.08,C N SERVICES
Revenue,Economy & Environment,5105622873,30.08.2013,North Ground Maintenance Non-Horticultural,Payment to Private Contractors,"1,492.00",C N SERVICES
Revenue,Economy & Environment,5105620964,23.08.2013,North Ground Maintenance Non-Horticultural,Payment to Private Contractors,510.25,C N SERVICES
Revenue,Economy & Environment,5105617555,09.08.2013,Play Areas Health & Safety work,Payment to Private Contractors,"1,163.13",C N SERVICES
Revenue,Economy & Environment,5105622874,30.08.2013,Play Areas Health & Safety work,Payment to Private Contractors,728.90,C N SERVICES
Revenue,Economy & Environment,5105621155,23.08.2013,Play Areas Health & Safety work,Payment to Private Contractors,"1,331.25",C N SERVICES
Revenue,Economy & Environment,5105621160,21.08.2013,Beach Safety & Inspection / Beach Awards,Property Services - Planned maintenance,218.50,C N SERVICES
Revenue,Economy & Environment,5105617557,07.08.2013,Beach Safety & Inspection / Beach Awards,Payment to Private Contractors,118.00,C N SERVICES
Revenue,Economy & Environment,5105617557,07.08.2013,Beach Safety & Inspection / Beach Awards,Payment to Private Contractors,25.00,C N SERVICES
Revenue,Economy & Environment,5105617557,07.08.2013,Beach Safety & Inspection / Beach Awards,Payment to Private Contractors,48.25,C N SERVICES
Revenue,Economy & Environment,5105617557,07.08.2013,Beach Safety & Inspection / Beach Awards,Payment to Private Contractors,50.00,C N SERVICES
Revenue,Economy & Environment,5105617557,07.08.2013,Beach Safety & Inspection / Beach Awards,Payment to Private Contractors,30.00,C N SERVICES
Revenue,Economy & Environment,5105617557,07.08.2013,Beach Safety & Inspection / Beach Awards,Payment to Private Contractors,62.50,C N SERVICES
Revenue,Economy & Environment,5105621160,21.08.2013,Beach Safety & Inspection / Beach Awards,Payment to Private Contractors,48.75,C N SERVICES
Revenue,Economy & Environment,5105621160,21.08.2013,Beach Safety & Inspection / Beach Awards,Payment to Private Contractors,78.00,C N SERVICES
Revenue,Economy & Environment,5105621160,21.08.2013,Beach Safety & Inspection / Beach Awards,Payment to Private Contractors,187.00,C N SERVICES
Revenue,Economy & Environment,5105622039,28.08.2013,Beach Safety & Inspection / Beach Awards,Payment to Private Contractors,45.00,C N SERVICES
Revenue,Economy & Environment,5105622039,28.08.2013,Beach Safety & Inspection / Beach Awards,Payment to Private Contractors,702.84,C N SERVICES
Revenue,Economy & Environment,5105622039,28.08.2013,Beach Safety & Inspection / Beach Awards,Payment to Private Contractors,50.00,C N SERVICES
Revenue,Economy & Environment,5105617556,07.08.2013,Slipways & Steps (Beaches),Payment to Private Contractors,50.75,C N SERVICES
Revenue,Economy & Environment,5105617556,07.08.2013,Slipways & Steps (Beaches),Payment to Private Contractors,46.00,C N SERVICES
Revenue,Economy & Environment,5105617556,07.08.2013,Slipways & Steps (Beaches),Payment to Private Contractors,48.00,C N SERVICES
Revenue,Economy & Environment,5105621158,21.08.2013,Slipways & Steps (Beaches),Payment to Private Contractors,313.00,C N SERVICES
Revenue,Economy & Environment,5105617553,07.08.2013,Sandown Concessions,Payment to Private Contractors,"1,420.00",C N SERVICES
Revenue,Economy & Environment,5105620967,21.08.2013,IOW Festival Costs,Payment to Private Contractors,138.10,C N SERVICES
Revenue,Childrens Services,5105619942,16.08.2013,Fostering services,Regular Respite Care,120.00,REDACTED PERSONAL DATA
Revenue,Childrens Services,5105621451,23.08.2013,Fostering services,Regular Respite Care,120.00,REDACTED PERSONAL DATA
Revenue,Childrens Services,5105622418,30.08.2013,Fostering services,Regular Respite Care,120.00,REDACTED PERSONAL DATA
Revenue,Resources,5105621853,23.08.2013,Staff Benefits,Payment to Private Contractors,243.00,REDACTED PERSONAL DATA
Revenue,Childrens Services,5105622424,30.08.2013,Fostering services,Boarding Out Allowances,130.20,REDACTED PERSONAL DATA
Revenue,Childrens Services,5105621457,23.08.2013,Fostering services,Boarding Out Allowances,130.20,REDACTED PERSONAL DATA
Revenue,Childrens Services,5105619948,16.08.2013,Fostering services,Boarding Out Allowances,130.20,REDACTED PERSONAL DATA
Revenue,Childrens Services,5105616976,02.08.2013,Fostering services,Boarding Out Allowances,130.20,REDACTED PERSONAL DATA
Revenue,Childrens Services,5105617792,09.08.2013,Fostering services,Boarding Out Allowances,130.20,REDACTED PERSONAL DATA
Revenue,Childrens Services,5105622462,30.08.2013,Fostering services,Boarding Out Allowances,130.20,REDACTED PERSONAL DATA
Revenue,Childrens Services,5105622462,30.08.2013,Fostering services,Boarding Out Allowances,10.00,REDACTED PERSONAL DATA
Revenue,Childrens Services,5105621495,23.08.2013,Fostering services,Boarding Out Allowances,130.20,REDACTED PERSONAL DATA
Revenue,Childrens Services,5105621495,23.08.2013,Fostering services,Boarding Out Allowances,10.00,REDACTED PERSONAL DATA
Revenue,Childrens Services,5105619987,16.08.2013,Fostering services,Boarding Out Allowances,130.20,REDACTED PERSONAL DATA
Revenue,Childrens Services,5105619987,16.08.2013,Fostering services,Boarding Out Allowances,10.00,REDACTED PERSONAL DATA
Revenue,Childrens Services,5105617015,02.08.2013,Fostering services,Boarding Out Allowances,130.20,REDACTED PERSONAL DATA
Revenue,Childrens Services,5105617015,02.08.2013,Fostering services,Boarding Out Allowances,10.00,REDACTED PERSONAL DATA
Revenue,Childrens Services,5105617831,09.08.2013,Fostering services,Boarding Out Allowances,130.20,REDACTED PERSONAL DATA
Revenue,Childrens Services,5105617831,09.08.2013,Fostering services,Boarding Out Allowances,10.00,REDACTED PERSONAL DATA
Revenue,Childrens Services,5105622487,30.08.2013,Special Guardianship Order Costs,Support Children,125.79,REDACTED PERSONAL DATA
Revenue,Childrens Services,5105621522,23.08.2013,Special Guardianship Order Costs,Support Children,125.79,REDACTED PERSONAL DATA
Revenue,Childrens Services,5105617043,02.08.2013,Special Guardianship Order Costs,Support Children,125.79,REDACTED PERSONAL DATA
Revenue,Childrens Services,5105620013,16.08.2013,Special Guardianship Order Costs,Support Children,125.79,REDACTED PERSONAL DATA
Revenue,Childrens Services,5105617858,09.08.2013,Special Guardianship Order Costs,Support Children,125.79,REDACTED PERSONAL DATA
Revenue,Community Wellbeing & Social Care,5105618511,14.08.2013,Learning Disability Residential Care,Charges from Independent Providers,"1,757.00",REDACTED PERSONAL DATA
Revenue,Childrens Services,5105619977,16.08.2013,Adoption Costs,Support Children,132.69,REDACTED PERSONAL DATA
Revenue,Childrens Services,5105621485,23.08.2013,Adoption Costs,Support Children,132.69,REDACTED PERSONAL DATA
Revenue,Childrens Services,5105622452,30.08.2013,Adoption Costs,Support Children,132.69,REDACTED PERSONAL DATA
Revenue,Childrens Services,5105617005,02.08.2013,Adoption Costs,Support Children,132.69,REDACTED PERSONAL DATA
Revenue,Childrens Services,5105617821,09.08.2013,Adoption Costs,Support Children,132.69,REDACTED PERSONAL DATA
Revenue,Resources,5105617361,07.08.2013,ICT Contracts,Computer Maintenance,"2,735.53",CABLE & WIRELESS WORLDWIDE
Revenue,Community Wellbeing & Social Care,5105621218,21.08.2013,Accreditation Centre,Training,475.00,CACHE
Revenue,Economy & Environment,5105622071,30.08.2013,Road Safety,Professional Service,150.00,CAMERON LAMB LTD
Revenue,Community Wellbeing & Social Care,5105617383,07.08.2013,"147 High Street, Newport",Waste Contractors,29.16,CANNON HYGIENE
Revenue,Community Wellbeing & Social Care,5105617384,07.08.2013,"147 High Street, Newport",Waste Contractors,-26.77,CANNON HYGIENE
Revenue,Economy & Environment,5105621199,28.08.2013,Planning Business Support,Office Equipment,133.14,CANON (UK) LTD
Revenue,Childrens Services,5105619849,14.08.2013,Contact Team,Agency staff,"1,591.00",CAPITA RESOURCING LTD
Revenue,Childrens Services,5105619849,14.08.2013,Contact Team,Agency staff,48.60,CAPITA RESOURCING LTD
Revenue,Childrens Services,5105620579,21.08.2013,Contact Team,Agency staff,"1,591.00",CAPITA RESOURCING LTD
Revenue,Childrens Services,5105620579,21.08.2013,Contact Team,Agency staff,45.00,CAPITA RESOURCING LTD
Revenue,Childrens Services,5105617944,09.08.2013,Contact Team,Agency staff,"1,591.00",CAPITA RESOURCING LTD
Revenue,Childrens Services,5105617944,09.08.2013,Contact Team,Agency staff,59.40,CAPITA RESOURCING LTD
Revenue,Childrens Services,5105621989,23.08.2013,Contact Team,Agency staff,"1,591.00",CAPITA RESOURCING LTD
Revenue,Childrens Services,5105621989,23.08.2013,Contact Team,Agency staff,37.80,CAPITA RESOURCING LTD
Revenue,Childrens Services,5105616570,21.08.2013,Contact Team,Agency staff,107.50,CAPITA RESOURCING LTD
Revenue,Childrens Services,5105616589,02.08.2013,Contact Team,Agency staff,86.00,CAPITA RESOURCING LTD
Revenue,Childrens Services,5105617477,07.08.2013,Children's Services Strategic Management,Agency staff,"1,120.00",CAPITA RESOURCING LTD
Capital,Economy & Environment,5105622024,28.08.2013,Parks and Gardens Capital,External Design & Supervision,"6,450.00",CAPITA SYMONDS LTD
Revenue,Childrens Services,5105617531,07.08.2013,Fostering by Other Agencies,Charges from Independent Providers,614.80,CAPSTONE FOSTER CARE LTD
Revenue,Childrens Services,5105617194,02.08.2013,Support for Looked After Children,Transport of Clients,54.00,CAPSTONE FOSTER CARE LTD
Revenue,Community Wellbeing & Social Care,5105622748,30.08.2013,Elderly Frail Homecare,Charges from Independent Providers,-174.24,CARE FIRST IW LTD
Revenue,Community Wellbeing & Social Care,5105622748,30.08.2013,Elderly Frail Homecare,Charges from Independent Providers,-32.67,CARE FIRST IW LTD
Revenue,Community Wellbeing & Social Care,5105618490,14.08.2013,Elderly Frail Homecare,Regular Respite Care,232.32,CARE FIRST IW LTD
Revenue,Community Wellbeing & Social Care,5105618470,14.08.2013,Elderly Frail Homecare,Regular Respite Care,116.16,CARE FIRST IW LTD
Revenue,Community Wellbeing & Social Care,5105620390,16.08.2013,Elderly Frail Homecare,Charges from Independent Providers,101.64,CARE FIRST IW LTD
Revenue,Community Wellbeing & Social Care,5105620389,16.08.2013,Elderly Frail Homecare,Charges from Independent Providers,174.24,CARE FIRST IW LTD
Revenue,Community Wellbeing & Social Care,5105618491,14.08.2013,Elderly Frail Homecare,Charges from Independent Providers,943.80,CARE FIRST IW LTD
Revenue,Community Wellbeing & Social Care,5105618494,14.08.2013,Elderly Frail Homecare,Charges from Independent Providers,29.04,CARE FIRST IW LTD
Revenue,Community Wellbeing & Social Care,5105618469,14.08.2013,Elderly Frail Homecare,Charges from Independent Providers,174.24,CARE FIRST IW LTD
Revenue,Community Wellbeing & Social Care,5105618488,14.08.2013,Elderly Frail Homecare,Charges from Independent Providers,196.02,CARE FIRST IW LTD
Revenue,Community Wellbeing & Social Care,5105618482,14.08.2013,Elderly Frail Homecare,Charges from Independent Providers,54.45,CARE FIRST IW LTD
Revenue,Community Wellbeing & Social Care,5105618474,14.08.2013,Elderly Frail Homecare,Charges from Independent Providers,522.72,CARE FIRST IW LTD
Revenue,Community Wellbeing & Social Care,5105618475,14.08.2013,Elderly Frail Homecare,Charges from Independent Providers,210.54,CARE FIRST IW LTD
Revenue,Community Wellbeing & Social Care,5105618476,14.08.2013,Elderly Frail Homecare,Charges from Independent Providers,196.02,CARE FIRST IW LTD
Revenue,Community Wellbeing & Social Care,5105618477,14.08.2013,Elderly Frail Homecare,Charges from Independent Providers,203.28,CARE FIRST IW LTD
Revenue,Community Wellbeing & Social Care,5105618478,14.08.2013,Elderly Frail Homecare,Charges from Independent Providers,508.20,CARE FIRST IW LTD
Revenue,Community Wellbeing & Social Care,5105618480,14.08.2013,Elderly Frail Homecare,Charges from Independent Providers,203.28,CARE FIRST IW LTD
Revenue,Community Wellbeing & Social Care,5105618481,14.08.2013,Elderly Frail Homecare,Charges from Independent Providers,196.02,CARE FIRST IW LTD
Revenue,Community Wellbeing & Social Care,5105618471,14.08.2013,Elderly Frail Homecare,Charges from Independent Providers,304.92,CARE FIRST IW LTD
Revenue,Community Wellbeing & Social Care,5105618472,14.08.2013,Elderly Frail Homecare,Charges from Independent Providers,609.84,CARE FIRST IW LTD
Revenue,Community Wellbeing & Social Care,5105618485,14.08.2013,Elderly Frail Homecare,Charges from Independent Providers,58.08,CARE FIRST IW LTD
Revenue,Community Wellbeing & Social Care,5105618487,14.08.2013,Elderly Frail Homecare,Charges from Independent Providers,406.56,CARE FIRST IW LTD
Revenue,Community Wellbeing & Social Care,5105618493,14.08.2013,Elderly Frail Homecare,Charges from Independent Providers,203.28,CARE FIRST IW LTD
Revenue,Community Wellbeing & Social Care,5105618486,14.08.2013,Elderly Frail Homecare,Charges from Independent Providers,609.84,CARE FIRST IW LTD
Revenue,Community Wellbeing & Social Care,5105618464,14.08.2013,Elderly Frail Homecare,Charges from Independent Providers,794.97,CARE FIRST IW LTD
Revenue,Community Wellbeing & Social Care,5105618465,14.08.2013,Elderly Frail Homecare,Charges from Independent Providers,"2,032.80",CARE FIRST IW LTD
Revenue,Community Wellbeing & Social Care,5105618466,14.08.2013,Elderly Frail Homecare,Charges from Independent Providers,"1,829.52",CARE FIRST IW LTD
Revenue,Community Wellbeing & Social Care,5105618467,14.08.2013,Elderly Frail Homecare,Charges from Independent Providers,304.92,CARE FIRST IW LTD
Revenue,Community Wellbeing & Social Care,5105618468,14.08.2013,Elderly Frail Homecare,Charges from Independent Providers,145.20,CARE FIRST IW LTD
Revenue,Community Wellbeing & Social Care,5105618492,14.08.2013,Elderly Mentally Ill Homecare,Charges from Independent Providers,304.92,CARE FIRST IW LTD
Revenue,Community Wellbeing & Social Care,5105618484,14.08.2013,Elderly Mentally Ill Homecare,Charges from Independent Providers,"2,148.96",CARE FIRST IW LTD
Revenue,Community Wellbeing & Social Care,5105618473,14.08.2013,Mental Health Homecare,Charges from Independent Providers,72.60,CARE FIRST IW LTD
Revenue,Community Wellbeing & Social Care,5105618489,14.08.2013,Physical Disability Homecare,Regular Respite Care,116.16,CARE FIRST IW LTD
Revenue,Community Wellbeing & Social Care,5105618479,14.08.2013,Physical Disability Homecare,Charges from Independent Providers,"2,185.26",CARE FIRST IW LTD
Revenue,Community Wellbeing & Social Care,5105618483,14.08.2013,Elderly Frail Managed Accounts,Charges from Independent Providers,392.04,CARE FIRST IW LTD
Revenue,Community Wellbeing & Social Care,5105619492,14.08.2013,Elderly Frail Homecare,Regular Respite Care,87.12,CAREWATCH (ISLE OF WIGHT)
Revenue,Community Wellbeing & Social Care,5105619416,14.08.2013,Elderly Frail Homecare,Regular Respite Care,116.16,CAREWATCH (ISLE OF WIGHT)
Revenue,Community Wellbeing & Social Care,5105619450,14.08.2013,Elderly Frail Homecare,Regular Respite Care,116.16,CAREWATCH (ISLE OF WIGHT)
Revenue,Community Wellbeing & Social Care,5105619420,14.08.2013,Elderly Frail Homecare,Regular Respite Care,232.32,CAREWATCH (ISLE OF WIGHT)
Revenue,Community Wellbeing & Social Care,5105619472,14.08.2013,Elderly Frail Homecare,Regular Respite Care,435.60,CAREWATCH (ISLE OF WIGHT)
Revenue,Community Wellbeing & Social Care,5105619469,14.08.2013,Elderly Frail Homecare,Regular Respite Care,116.16,CAREWATCH (ISLE OF WIGHT)
Revenue,Community Wellbeing & Social Care,5105619470,14.08.2013,Elderly Frail Homecare,Regular Respite Care,232.32,CAREWATCH (ISLE OF WIGHT)
Revenue,Community Wellbeing & Social Care,5105619432,14.08.2013,Elderly Frail Homecare,Regular Respite Care,87.12,CAREWATCH (ISLE OF WIGHT)
Revenue,Community Wellbeing & Social Care,5105619457,14.08.2013,Elderly Frail Homecare,Regular Respite Care,116.16,CAREWATCH (ISLE OF WIGHT)
Revenue,Community Wellbeing & Social Care,5105619467,14.08.2013,Elderly Frail Homecare,Regular Respite Care,116.16,CAREWATCH (ISLE OF WIGHT)
Revenue,Community Wellbeing & Social Care,5105620373,16.08.2013,Elderly Frail Homecare,Regular Respite Care,116.16,CAREWATCH (ISLE OF WIGHT)
Revenue,Community Wellbeing & Social Care,5105619474,14.08.2013,Elderly Frail Homecare,Regular Respite Care,116.16,CAREWATCH (ISLE OF WIGHT)
Revenue,Community Wellbeing & Social Care,5105619479,14.08.2013,Elderly Frail Homecare,Regular Respite Care,87.12,CAREWATCH (ISLE OF WIGHT)
Revenue,Community Wellbeing & Social Care,5105620602,21.08.2013,Elderly Frail Homecare,Regular Respite Care,116.16,CAREWATCH (ISLE OF WIGHT)
Revenue,Community Wellbeing & Social Care,5105619453,14.08.2013,Elderly Frail Homecare,Regular Respite Care,116.16,CAREWATCH (ISLE OF WIGHT)
Revenue,Community Wellbeing & Social Care,5105620599,21.08.2013,Elderly Frail Homecare,Charges from Independent Providers,493.68,CAREWATCH (ISLE OF WIGHT)
Revenue,Community Wellbeing & Social Care,5105619404,14.08.2013,Elderly Frail Homecare,Charges from Independent Providers,399.30,CAREWATCH (ISLE OF WIGHT)
Revenue,Community Wellbeing & Social Care,5105619405,14.08.2013,Elderly Frail Homecare,Charges from Independent Providers,537.24,CAREWATCH (ISLE OF WIGHT)
Revenue,Community Wellbeing & Social Care,5105619406,14.08.2013,Elderly Frail Homecare,Charges from Independent Providers,10.89,CAREWATCH (ISLE OF WIGHT)
Revenue,Community Wellbeing & Social Care,5105619406,14.08.2013,Elderly Frail Homecare,Charges from Independent Providers,304.92,CAREWATCH (ISLE OF WIGHT)
Revenue,Community Wellbeing & Social Care,5105619407,14.08.2013,Elderly Frail Homecare,Charges from Independent Providers,304.92,CAREWATCH (ISLE OF WIGHT)
Revenue,Community Wellbeing & Social Care,5105619408,14.08.2013,Elderly Frail Homecare,Charges from Independent Providers,609.84,CAREWATCH (ISLE OF WIGHT)
Revenue,Community Wellbeing & Social Care,5105619410,14.08.2013,Elderly Frail Homecare,Charges from Independent Providers,406.56,CAREWATCH (ISLE OF WIGHT)
Revenue,Community Wellbeing & Social Care,5105619411,14.08.2013,Elderly Frail Homecare,Charges from Independent Providers,580.80,CAREWATCH (ISLE OF WIGHT)
Revenue,Community Wellbeing & Social Care,5105619412,14.08.2013,Elderly Frail Homecare,Charges from Independent Providers,145.20,CAREWATCH (ISLE OF WIGHT)
Revenue,Community Wellbeing & Social Care,5105619381,14.08.2013,Elderly Frail Homecare,Charges from Independent Providers,203.28,CAREWATCH (ISLE OF WIGHT)
Revenue,Community Wellbeing & Social Care,5105619382,14.08.2013,Elderly Frail Homecare,Charges from Independent Providers,203.28,CAREWATCH (ISLE OF WIGHT)
Revenue,Community Wellbeing & Social Care,5105619414,14.08.2013,Elderly Frail Homecare,Charges from Independent Providers,14.52,CAREWATCH (ISLE OF WIGHT)
Revenue,Community Wellbeing & Social Care,5105619415,14.08.2013,Elderly Frail Homecare,Charges from Independent Providers,551.76,CAREWATCH (ISLE OF WIGHT)
Revenue,Community Wellbeing & Social Care,5105619415,14.08.2013,Elderly Frail Homecare,Charges from Independent Providers,"1,009.14",CAREWATCH (ISLE OF WIGHT)
Revenue,Community Wellbeing & Social Care,5105619490,14.08.2013,Elderly Frail Homecare,Charges from Independent Providers,"1,038.18",CAREWATCH (ISLE OF WIGHT)
Revenue,Community Wellbeing & Social Care,5105619493,14.08.2013,Elderly Frail Homecare,Charges from Independent Providers,145.20,CAREWATCH (ISLE OF WIGHT)
Revenue,Community Wellbeing & Social Care,5105619437,14.08.2013,Elderly Frail Homecare,Charges from Independent Providers,145.20,CAREWATCH (ISLE OF WIGHT)
Revenue,Community Wellbeing & Social Care,5105619438,14.08.2013,Elderly Frail Homecare,Charges from Independent Providers,87.12,CAREWATCH (ISLE OF WIGHT)
Revenue,Community Wellbeing & Social Care,5105619439,14.08.2013,Elderly Frail Homecare,Charges from Independent Providers,813.12,CAREWATCH (ISLE OF WIGHT)
Revenue,Community Wellbeing & Social Care,5105619440,14.08.2013,Elderly Frail Homecare,Charges from Independent Providers,7.26,CAREWATCH (ISLE OF WIGHT)
Revenue,Community Wellbeing & Social Care,5105619379,14.08.2013,Elderly Frail Homecare,Charges from Independent Providers,203.28,CAREWATCH (ISLE OF WIGHT)
Revenue,Community Wellbeing & Social Care,5105619444,14.08.2013,Elderly Frail Homecare,Charges from Independent Providers,87.12,CAREWATCH (ISLE OF WIGHT)
Revenue,Community Wellbeing & Social Care,5105619444,14.08.2013,Elderly Frail Homecare,Charges from Independent Providers,428.34,CAREWATCH (ISLE OF WIGHT)
Revenue,Community Wellbeing & Social Care,5105619417,14.08.2013,Elderly Frail Homecare,Charges from Independent Providers,"1,626.24",CAREWATCH (ISLE OF WIGHT)
Revenue,Community Wellbeing & Social Care,5105619442,14.08.2013,Elderly Frail Homecare,Charges from Independent Providers,217.80,CAREWATCH (ISLE OF WIGHT)
Revenue,Community Wellbeing & Social Care,5105619448,14.08.2013,Elderly Frail Homecare,Charges from Independent Providers,203.28,CAREWATCH (ISLE OF WIGHT)
Revenue,Community Wellbeing & Social Care,5105619385,14.08.2013,Elderly Frail Homecare,Charges from Independent Providers,813.12,CAREWATCH (ISLE OF WIGHT)
Revenue,Community Wellbeing & Social Care,5105619386,14.08.2013,Elderly Frail Homecare,Charges from Independent Providers,914.76,CAREWATCH (ISLE OF WIGHT)
Revenue,Community Wellbeing & Social Care,5105619387,14.08.2013,Elderly Frail Homecare,Charges from Independent Providers,381.15,CAREWATCH (ISLE OF WIGHT)
Revenue,Community Wellbeing & Social Care,5105619388,14.08.2013,Elderly Frail Homecare,Charges from Independent Providers,203.28,CAREWATCH (ISLE OF WIGHT)
Revenue,Community Wellbeing & Social Care,5105619391,14.08.2013,Elderly Frail Homecare,Charges from Independent Providers,638.88,CAREWATCH (ISLE OF WIGHT)
Revenue,Community Wellbeing & Social Care,5105619392,14.08.2013,Elderly Frail Homecare,Charges from Independent Providers,813.12,CAREWATCH (ISLE OF WIGHT)
Revenue,Community Wellbeing & Social Care,5105619393,14.08.2013,Elderly Frail Homecare,Charges from Independent Providers,406.56,CAREWATCH (ISLE OF WIGHT)
Revenue,Community Wellbeing & Social Care,5105619394,14.08.2013,Elderly Frail Homecare,Charges from Independent Providers,174.24,CAREWATCH (ISLE OF WIGHT)
Revenue,Community Wellbeing & Social Care,5105619395,14.08.2013,Elderly Frail Homecare,Charges from Independent Providers,500.94,CAREWATCH (ISLE OF WIGHT)
Revenue,Community Wellbeing & Social Care,5105619397,14.08.2013,Elderly Frail Homecare,Charges from Independent Providers,"1,219.68",CAREWATCH (ISLE OF WIGHT)
Revenue,Community Wellbeing & Social Care,5105619400,14.08.2013,Elderly Frail Homecare,Charges from Independent Providers,304.92,CAREWATCH (ISLE OF WIGHT)
Revenue,Community Wellbeing & Social Care,5105619401,14.08.2013,Elderly Frail Homecare,Charges from Independent Providers,217.80,CAREWATCH (ISLE OF WIGHT)
Revenue,Community Wellbeing & Social Care,5105619402,14.08.2013,Elderly Frail Homecare,Charges from Independent Providers,203.28,CAREWATCH (ISLE OF WIGHT)
Revenue,Community Wellbeing & Social Care,5105619403,14.08.2013,Elderly Frail Homecare,Charges from Independent Providers,304.92,CAREWATCH (ISLE OF WIGHT)
Revenue,Community Wellbeing & Social Care,5105619460,14.08.2013,Elderly Frail Homecare,Charges from Independent Providers,406.56,CAREWATCH (ISLE OF WIGHT)
Revenue,Community Wellbeing & Social Care,5105619461,14.08.2013,Elderly Frail Homecare,Charges from Independent Providers,203.28,CAREWATCH (ISLE OF WIGHT)
Revenue,Community Wellbeing & Social Care,5105619471,14.08.2013,Elderly Frail Homecare,Charges from Independent Providers,101.64,CAREWATCH (ISLE OF WIGHT)
Revenue,Community Wellbeing & Social Care,5105619419,14.08.2013,Elderly Frail Homecare,Charges from Independent Providers,609.84,CAREWATCH (ISLE OF WIGHT)
Revenue,Community Wellbeing & Social Care,5105619421,14.08.2013,Elderly Frail Homecare,Charges from Independent Providers,406.56,CAREWATCH (ISLE OF WIGHT)
Revenue,Community Wellbeing & Social Care,5105619422,14.08.2013,Elderly Frail Homecare,Charges from Independent Providers,914.76,CAREWATCH (ISLE OF WIGHT)
Revenue,Community Wellbeing & Social Care,5105619423,14.08.2013,Elderly Frail Homecare,Charges from Independent Providers,203.28,CAREWATCH (ISLE OF WIGHT)
Revenue,Community Wellbeing & Social Care,5105619424,14.08.2013,Elderly Frail Homecare,Charges from Independent Providers,813.12,CAREWATCH (ISLE OF WIGHT)
Revenue,Community Wellbeing & Social Care,5105619425,14.08.2013,Elderly Frail Homecare,Charges from Independent Providers,101.64,CAREWATCH (ISLE OF WIGHT)
Revenue,Community Wellbeing & Social Care,5105619425,14.08.2013,Elderly Frail Homecare,Charges from Independent Providers,127.05,CAREWATCH (ISLE OF WIGHT)
Revenue,Community Wellbeing & Social Care,5105619426,14.08.2013,Elderly Frail Homecare,Charges from Independent Providers,609.84,CAREWATCH (ISLE OF WIGHT)
Revenue,Community Wellbeing & Social Care,5105619427,14.08.2013,Elderly Frail Homecare,Charges from Independent Providers,"1,219.68",CAREWATCH (ISLE OF WIGHT)
Revenue,Community Wellbeing & Social Care,5105619429,14.08.2013,Elderly Frail Homecare,Charges from Independent Providers,268.62,CAREWATCH (ISLE OF WIGHT)
Revenue,Community Wellbeing & Social Care,5105619429,14.08.2013,Elderly Frail Homecare,Charges from Independent Providers,36.30,CAREWATCH (ISLE OF WIGHT)
Revenue,Community Wellbeing & Social Care,5105619429,14.08.2013,Elderly Frail Homecare,Charges from Independent Providers,980.10,CAREWATCH (ISLE OF WIGHT)
Revenue,Community Wellbeing & Social Care,5105619435,14.08.2013,Elderly Frail Homecare,Charges from Independent Providers,123.42,CAREWATCH (ISLE OF WIGHT)
Revenue,Community Wellbeing & Social Care,5105619435,14.08.2013,Elderly Frail Homecare,Charges from Independent Providers,58.08,CAREWATCH (ISLE OF WIGHT)
Revenue,Community Wellbeing & Social Care,5105619436,14.08.2013,Elderly Frail Homecare,Charges from Independent Providers,29.04,CAREWATCH (ISLE OF WIGHT)
Revenue,Community Wellbeing & Social Care,5105619488,14.08.2013,Elderly Frail Homecare,Charges from Independent Providers,178.02,CAREWATCH (ISLE OF WIGHT)
Revenue,Community Wellbeing & Social Care,5105619489,14.08.2013,Elderly Frail Homecare,Charges from Independent Providers,199.65,CAREWATCH (ISLE OF WIGHT)
Revenue,Community Wellbeing & Social Care,5105619485,14.08.2013,Elderly Frail Homecare,Charges from Independent Providers,21.78,CAREWATCH (ISLE OF WIGHT)
Revenue,Community Wellbeing & Social Care,5105619434,14.08.2013,Elderly Frail Homecare,Charges from Independent Providers,406.56,CAREWATCH (ISLE OF WIGHT)
Revenue,Community Wellbeing & Social Care,5105619454,14.08.2013,Elderly Frail Homecare,Charges from Independent Providers,72.60,CAREWATCH (ISLE OF WIGHT)
Revenue,Community Wellbeing & Social Care,5105619454,14.08.2013,Elderly Frail Homecare,Charges from Independent Providers,147.00,CAREWATCH (ISLE OF WIGHT)
Revenue,Community Wellbeing & Social Care,5105619455,14.08.2013,Elderly Frail Homecare,Charges from Independent Providers,87.12,CAREWATCH (ISLE OF WIGHT)
Revenue,Community Wellbeing & Social Care,5105619456,14.08.2013,Elderly Frail Homecare,Charges from Independent Providers,174.24,CAREWATCH (ISLE OF WIGHT)
Revenue,Community Wellbeing & Social Care,5105619430,14.08.2013,Elderly Frail Homecare,Charges from Independent Providers,435.60,CAREWATCH (ISLE OF WIGHT)
Revenue,Community Wellbeing & Social Care,5105619452,14.08.2013,Elderly Frail Homecare,Charges from Independent Providers,101.64,CAREWATCH (ISLE OF WIGHT)
Revenue,Community Wellbeing & Social Care,5105619452,14.08.2013,Elderly Frail Homecare,Charges from Independent Providers,152.46,CAREWATCH (ISLE OF WIGHT)
Revenue,Community Wellbeing & Social Care,5105619462,14.08.2013,Elderly Frail Homecare,Charges from Independent Providers,101.64,CAREWATCH (ISLE OF WIGHT)
Revenue,Community Wellbeing & Social Care,5105619462,14.08.2013,Elderly Frail Homecare,Charges from Independent Providers,929.28,CAREWATCH (ISLE OF WIGHT)
Revenue,Community Wellbeing & Social Care,5105619463,14.08.2013,Elderly Frail Homecare,Charges from Independent Providers,"1,281.39",CAREWATCH (ISLE OF WIGHT)
Revenue,Community Wellbeing & Social Care,5105619482,14.08.2013,Elderly Frail Homecare,Charges from Independent Providers,31.50,CAREWATCH (ISLE OF WIGHT)
Revenue,Community Wellbeing & Social Care,5105619464,14.08.2013,Elderly Frail Homecare,Charges from Independent Providers,406.56,CAREWATCH (ISLE OF WIGHT)
Revenue,Community Wellbeing & Social Care,5105619465,14.08.2013,Elderly Frail Homecare,Charges from Independent Providers,406.56,CAREWATCH (ISLE OF WIGHT)
Revenue,Community Wellbeing & Social Care,5105619459,14.08.2013,Elderly Frail Homecare,Charges from Independent Providers,203.28,CAREWATCH (ISLE OF WIGHT)
Revenue,Community Wellbeing & Social Care,5105619459,14.08.2013,Elderly Frail Homecare,Charges from Independent Providers,254.10,CAREWATCH (ISLE OF WIGHT)
Revenue,Community Wellbeing & Social Care,5105619459,14.08.2013,Elderly Frail Homecare,Charges from Independent Providers,203.28,CAREWATCH (ISLE OF WIGHT)
Revenue,Community Wellbeing & Social Care,5105619459,14.08.2013,Elderly Frail Homecare,Charges from Independent Providers,203.28,CAREWATCH (ISLE OF WIGHT)
Revenue,Community Wellbeing & Social Care,5105619459,14.08.2013,Elderly Frail Homecare,Charges from Independent Providers,406.56,CAREWATCH (ISLE OF WIGHT)
Revenue,Community Wellbeing & Social Care,5105619460,14.08.2013,Elderly Frail Homecare,Charges from Independent Providers,196.02,CAREWATCH (ISLE OF WIGHT)
Revenue,Community Wellbeing & Social Care,5105619477,14.08.2013,Elderly Frail Homecare,Charges from Independent Providers,304.92,CAREWATCH (ISLE OF WIGHT)
Revenue,Community Wellbeing & Social Care,5105619478,14.08.2013,Elderly Frail Homecare,Charges from Independent Providers,304.92,CAREWATCH (ISLE OF WIGHT)
Revenue,Community Wellbeing & Social Care,5105619475,14.08.2013,Elderly Frail Homecare,Charges from Independent Providers,544.50,CAREWATCH (ISLE OF WIGHT)
Revenue,Community Wellbeing & Social Care,5105619475,14.08.2013,Elderly Frail Homecare,Charges from Independent Providers,152.46,CAREWATCH (ISLE OF WIGHT)
Revenue,Community Wellbeing & Social Care,5105619476,14.08.2013,Elderly Frail Homecare,Charges from Independent Providers,50.82,CAREWATCH (ISLE OF WIGHT)
Revenue,Community Wellbeing & Social Care,5105619476,14.08.2013,Elderly Frail Homecare,Charges from Independent Providers,203.28,CAREWATCH (ISLE OF WIGHT)
Revenue,Community Wellbeing & Social Care,5105619480,14.08.2013,Elderly Frail Homecare,Charges from Independent Providers,101.64,CAREWATCH (ISLE OF WIGHT)
Revenue,Community Wellbeing & Social Care,5105619480,14.08.2013,Elderly Frail Homecare,Charges from Independent Providers,246.84,CAREWATCH (ISLE OF WIGHT)
Revenue,Community Wellbeing & Social Care,5105619486,14.08.2013,Elderly Frail Homecare,Charges from Independent Providers,101.64,CAREWATCH (ISLE OF WIGHT)
Revenue,Community Wellbeing & Social Care,5105619486,14.08.2013,Elderly Frail Homecare,Charges from Independent Providers,254.10,CAREWATCH (ISLE OF WIGHT)
Revenue,Community Wellbeing & Social Care,5105619487,14.08.2013,Elderly Frail Homecare,Charges from Independent Providers,203.28,CAREWATCH (ISLE OF WIGHT)
Revenue,Community Wellbeing & Social Care,5105619487,14.08.2013,Elderly Frail Homecare,Charges from Independent Providers,159.72,CAREWATCH (ISLE OF WIGHT)
Revenue,Community Wellbeing & Social Care,5105619487,14.08.2013,Elderly Frail Homecare,Charges from Independent Providers,254.10,CAREWATCH (ISLE OF WIGHT)
Revenue,Community Wellbeing & Social Care,5105619487,14.08.2013,Elderly Frail Homecare,Charges from Independent Providers,203.28,CAREWATCH (ISLE OF WIGHT)
Revenue,Community Wellbeing & Social Care,5105617369,07.08.2013,Elderly Frail Homecare,Charges from Independent Providers,497.00,CAREWATCH (ISLE OF WIGHT)
Revenue,Community Wellbeing & Social Care,5105619495,14.08.2013,Elderly Frail Homecare,Professional Service,178.02,CAREWATCH (ISLE OF WIGHT)
Revenue,Community Wellbeing & Social Care,5105621590,23.08.2013,Elderly Mentally Ill Homecare,Charges from Independent Providers,203.28,CAREWATCH (ISLE OF WIGHT)
Revenue,Community Wellbeing & Social Care,5105619433,14.08.2013,Elderly Mentally Ill Homecare,Charges from Independent Providers,602.58,CAREWATCH (ISLE OF WIGHT)
Revenue,Community Wellbeing & Social Care,5105619483,14.08.2013,Elderly Mentally Ill Homecare,Charges from Independent Providers,203.28,CAREWATCH (ISLE OF WIGHT)
Revenue,Community Wellbeing & Social Care,5105619484,14.08.2013,Elderly Mentally Ill Homecare,Charges from Independent Providers,914.76,CAREWATCH (ISLE OF WIGHT)
Revenue,Community Wellbeing & Social Care,5105619445,14.08.2013,Elderly Mentally Ill Homecare,Charges from Independent Providers,450.12,CAREWATCH (ISLE OF WIGHT)
Revenue,Community Wellbeing & Social Care,5105619446,14.08.2013,Elderly Mentally Ill Homecare,Charges from Independent Providers,406.56,CAREWATCH (ISLE OF WIGHT)
Revenue,Community Wellbeing & Social Care,5105619446,14.08.2013,Elderly Mentally Ill Homecare,Charges from Independent Providers,392.04,CAREWATCH (ISLE OF WIGHT)
Revenue,Community Wellbeing & Social Care,5105619446,14.08.2013,Elderly Mentally Ill Homecare,Charges from Independent Providers,493.68,CAREWATCH (ISLE OF WIGHT)
Revenue,Community Wellbeing & Social Care,5105619446,14.08.2013,Elderly Mentally Ill Homecare,Charges from Independent Providers,333.96,CAREWATCH (ISLE OF WIGHT)
Revenue,Community Wellbeing & Social Care,5105619441,14.08.2013,Elderly Mentally Ill Homecare,Charges from Independent Providers,675.18,CAREWATCH (ISLE OF WIGHT)
Revenue,Community Wellbeing & Social Care,5105619384,14.08.2013,Elderly Mentally Ill Homecare,Charges from Independent Providers,631.62,CAREWATCH (ISLE OF WIGHT)
Revenue,Community Wellbeing & Social Care,5105619384,14.08.2013,Elderly Mentally Ill Homecare,Charges from Independent Providers,609.84,CAREWATCH (ISLE OF WIGHT)
Revenue,Community Wellbeing & Social Care,5105619409,14.08.2013,Elderly Mentally Ill Homecare,Charges from Independent Providers,101.64,CAREWATCH (ISLE OF WIGHT)
Revenue,Community Wellbeing & Social Care,5105620604,21.08.2013,Elderly Mentally Ill Homecare,Charges from Independent Providers,203.28,CAREWATCH (ISLE OF WIGHT)
Revenue,Community Wellbeing & Social Care,5105620604,21.08.2013,Elderly Mentally Ill Homecare,Charges from Independent Providers,304.92,CAREWATCH (ISLE OF WIGHT)
Revenue,Community Wellbeing & Social Care,5105619468,14.08.2013,Elderly Mentally Ill Homecare,Regular Respite Care,29.04,CAREWATCH (ISLE OF WIGHT)
Revenue,Community Wellbeing & Social Care,5105619473,14.08.2013,Elderly Mentally Ill Homecare,Regular Respite Care,87.12,CAREWATCH (ISLE OF WIGHT)
Revenue,Community Wellbeing & Social Care,5105619473,14.08.2013,Elderly Mentally Ill Homecare,Regular Respite Care,116.16,CAREWATCH (ISLE OF WIGHT)
Revenue,Community Wellbeing & Social Care,5105619380,14.08.2013,Elderly Mentally Ill Homecare,Regular Respite Care,116.16,CAREWATCH (ISLE OF WIGHT)
Revenue,Community Wellbeing & Social Care,5105619491,14.08.2013,Elderly Mentally Ill Homecare,Regular Respite Care,87.12,CAREWATCH (ISLE OF WIGHT)
Revenue,Community Wellbeing & Social Care,5105619428,14.08.2013,Mental Health Homecare,Charges from Independent Providers,116.16,CAREWATCH (ISLE OF WIGHT)
Revenue,Community Wellbeing & Social Care,5105619428,14.08.2013,Mental Health Homecare,Charges from Independent Providers,116.16,CAREWATCH (ISLE OF WIGHT)
Revenue,Community Wellbeing & Social Care,5105619389,14.08.2013,Mental Health Homecare,Charges from Independent Providers,174.24,CAREWATCH (ISLE OF WIGHT)
Revenue,Community Wellbeing & Social Care,5105619383,14.08.2013,Mental Health Homecare,Charges from Independent Providers,87.12,CAREWATCH (ISLE OF WIGHT)
Revenue,Community Wellbeing & Social Care,5105620600,21.08.2013,Mental Health Homecare,Charges from Independent Providers,290.40,CAREWATCH (ISLE OF WIGHT)
Revenue,Community Wellbeing & Social Care,5105619413,14.08.2013,Physical Disability Homecare,Charges from Independent Providers,304.92,CAREWATCH (ISLE OF WIGHT)
Revenue,Community Wellbeing & Social Care,5105619390,14.08.2013,Physical Disability Homecare,Charges from Independent Providers,726.00,CAREWATCH (ISLE OF WIGHT)
Revenue,Community Wellbeing & Social Care,5105619398,14.08.2013,Physical Disability Homecare,Charges from Independent Providers,290.40,CAREWATCH (ISLE OF WIGHT)
Revenue,Community Wellbeing & Social Care,5105619399,14.08.2013,Physical Disability Homecare,Charges from Independent Providers,50.82,CAREWATCH (ISLE OF WIGHT)
Revenue,Community Wellbeing & Social Care,5105619399,14.08.2013,Physical Disability Homecare,Charges from Independent Providers,"1,103.52",CAREWATCH (ISLE OF WIGHT)
Revenue,Community Wellbeing & Social Care,5105620598,21.08.2013,Physical Disability Homecare,Charges from Independent Providers,"1,263.24",CAREWATCH (ISLE OF WIGHT)
Revenue,Community Wellbeing & Social Care,5105619458,14.08.2013,Physical Disability Homecare,Charges from Independent Providers,290.40,CAREWATCH (ISLE OF WIGHT)
Revenue,Community Wellbeing & Social Care,5105619481,14.08.2013,Physical Disability Homecare,Charges from Independent Providers,"2,018.28",CAREWATCH (ISLE OF WIGHT)
Revenue,Community Wellbeing & Social Care,5105619431,14.08.2013,Physical Disability Homecare,Charges from Independent Providers,"1,016.40",CAREWATCH (ISLE OF WIGHT)
Revenue,Community Wellbeing & Social Care,5105619447,14.08.2013,Physical Disability Homecare,Charges from Independent Providers,"1,009.14",CAREWATCH (ISLE OF WIGHT)
Revenue,Community Wellbeing & Social Care,5105619443,14.08.2013,Physical Disability Homecare,Charges from Independent Providers,406.56,CAREWATCH (ISLE OF WIGHT)
Revenue,Community Wellbeing & Social Care,5105619449,14.08.2013,Physical Disability Homecare,Charges from Independent Providers,72.60,CAREWATCH (ISLE OF WIGHT)
Revenue,Community Wellbeing & Social Care,5105619494,14.08.2013,Physical Disability Homecare,Charges from Independent Providers,392.04,CAREWATCH (ISLE OF WIGHT)
Revenue,Community Wellbeing & Social Care,5105619418,14.08.2013,Dementia Homecare,Charges from Independent Providers,29.04,CAREWATCH (ISLE OF WIGHT)
Revenue,Community Wellbeing & Social Care,5105619396,14.08.2013,Dementia Homecare,Charges from Independent Providers,"1,176.12",CAREWATCH (ISLE OF WIGHT)
Revenue,Community Wellbeing & Social Care,5105620603,21.08.2013,Dementia Homecare,Regular Respite Care,174.24,CAREWATCH (ISLE OF WIGHT)
Revenue,Community Wellbeing & Social Care,5105619466,14.08.2013,Elderly Frail Managed Accounts,Regular Respite Care,87.12,CAREWATCH (ISLE OF WIGHT)
Revenue,Community Wellbeing & Social Care,5105620601,21.08.2013,Elderly Frail Managed Accounts,Charges from Independent Providers,232.32,CAREWATCH (ISLE OF WIGHT)
Revenue,Community Wellbeing & Social Care,5105619451,14.08.2013,Elderly Mentally Ill Other Care,Charges from Independent Providers,"1,068.12",CAREWATCH (ISLE OF WIGHT)
Revenue,Childrens Services,5105617379,07.08.2013,Section 17: Children Young Adults Disabilities,Charges from Independent Providers,145.20,CAREWATCH (ISLE OF WIGHT)
Revenue,Childrens Services,5105617378,07.08.2013,Section 17: Children Young Adults Disabilities,Charges from Independent Providers,130.68,CAREWATCH (ISLE OF WIGHT)
Revenue,Childrens Services,5105622897,30.08.2013,Section 17: Children Young Adults Disabilities,Charges from Independent Providers,72.60,CAREWATCH (ISLE OF WIGHT)
Revenue,Childrens Services,5105622896,30.08.2013,Section 17: Children Young Adults Disabilities,Payment to Private Contractors,58.08,CAREWATCH (ISLE OF WIGHT)
Revenue,Childrens Services,5105617375,07.08.2013,Agency Domiciliary Care,Professional Service,"1,045.44",CAREWATCH (ISLE OF WIGHT)
Revenue,Childrens Services,5105617376,07.08.2013,Agency Domiciliary Care,Professional Service,987.36,CAREWATCH (ISLE OF WIGHT)
Revenue,Childrens Services,5105617370,07.08.2013,Agency Domiciliary Care,Professional Service,123.04,CAREWATCH (ISLE OF WIGHT)
Revenue,Childrens Services,5105617371,07.08.2013,Agency Domiciliary Care,Professional Service,123.04,CAREWATCH (ISLE OF WIGHT)
Revenue,Childrens Services,5105622892,30.08.2013,Agency Domiciliary Care,Professional Service,"1,621.26",CAREWATCH (ISLE OF WIGHT)
Revenue,Childrens Services,5105622893,30.08.2013,Agency Domiciliary Care,Professional Service,928.40,CAREWATCH (ISLE OF WIGHT)
Revenue,Childrens Services,5105622887,30.08.2013,Agency Domiciliary Care,Professional Service,123.04,CAREWATCH (ISLE OF WIGHT)
Revenue,Childrens Services,5105622888,30.08.2013,Agency Domiciliary Care,Professional Service,135.26,CAREWATCH (ISLE OF WIGHT)
Revenue,Childrens Services,5105617372,07.08.2013,Agency Domiciliary Care,Charges from Independent Providers,430.64,CAREWATCH (ISLE OF WIGHT)
Revenue,Childrens Services,5105617373,07.08.2013,Agency Domiciliary Care,Charges from Independent Providers,283.20,CAREWATCH (ISLE OF WIGHT)
Revenue,Childrens Services,5105617374,07.08.2013,Agency Domiciliary Care,Charges from Independent Providers,421.08,CAREWATCH (ISLE OF WIGHT)
Revenue,Childrens Services,5105617377,07.08.2013,Agency Domiciliary Care,Charges from Independent Providers,276.84,CAREWATCH (ISLE OF WIGHT)
Revenue,Childrens Services,5105622894,30.08.2013,Agency Domiciliary Care,Charges from Independent Providers,184.56,CAREWATCH (ISLE OF WIGHT)
Revenue,Childrens Services,5105622889,30.08.2013,Agency Domiciliary Care,Charges from Independent Providers,322.98,CAREWATCH (ISLE OF WIGHT)
Revenue,Childrens Services,5105622890,30.08.2013,Agency Domiciliary Care,Charges from Independent Providers,283.20,CAREWATCH (ISLE OF WIGHT)
Revenue,Childrens Services,5105622891,30.08.2013,Agency Domiciliary Care,Charges from Independent Providers,246.84,CAREWATCH (ISLE OF WIGHT)
Revenue,Childrens Services,5105617380,07.08.2013,Support for Looked After Children,Charges from Independent Providers,206.91,CAREWATCH (ISLE OF WIGHT)
Revenue,Community Wellbeing & Social Care,5105622581,30.08.2013,Contraception,Payment to Private Contractors,"2,595.00",CARISBROOKE HEALTH CENTRE
Revenue,Community Wellbeing & Social Care,5105622581,30.08.2013,NHS Health Check Programme,Payment to Private Contractors,672.00,CARISBROOKE HEALTH CENTRE
Revenue,Community Wellbeing & Social Care,5105622581,30.08.2013,STI Tests & Treatment,Payment to Private Contractors,20.00,CARISBROOKE HEALTH CENTRE
Revenue,Community Wellbeing & Social Care,5105622581,30.08.2013,Stop Smoking Services & Interventions,Payment to Private Contractors,80.00,CARISBROOKE HEALTH CENTRE
Revenue,Childrens Services,5105617512,21.08.2013,Children Young Adults Disability units,Agency staff,19.13,CARITAS RECRUITMENT LIMITED
Revenue,Childrens Services,5105621248,23.08.2013,LAC Units 5-7,Agency staff,"1,665.00",CARITAS RECRUITMENT LIMITED
Revenue,Childrens Services,5105616912,21.08.2013,LAC Units 5-7,Agency staff,"1,665.00",CARITAS RECRUITMENT LIMITED
Revenue,Childrens Services,5105616912,21.08.2013,LAC Units 5-7,Agency staff,50.40,CARITAS RECRUITMENT LIMITED
Revenue,Childrens Services,5105616913,21.08.2013,LAC Units 5-7,Agency staff,-44.80,CARITAS RECRUITMENT LIMITED
Revenue,Childrens Services,5105622230,28.08.2013,LAC Units 5-7,Agency staff,"1,665.00",CARITAS RECRUITMENT LIMITED
Revenue,Childrens Services,5105620625,21.08.2013,LAC Units 5-7,Agency staff,"3,330.00",CARITAS RECRUITMENT LIMITED
Revenue,Childrens Services,5105620625,21.08.2013,LAC Units 5-7,Agency staff,150.30,CARITAS RECRUITMENT LIMITED
Revenue,Childrens Services,5105620795,21.08.2013,LAC Units 5-7,Agency staff,"1,890.00",CARITAS RECRUITMENT LIMITED
Revenue,Childrens Services,5105620795,21.08.2013,LAC Units 5-7,Agency staff,21.78,CARITAS RECRUITMENT LIMITED
Revenue,Childrens Services,5105619253,21.08.2013,LAC Units 5-7,Agency staff,"1,665.00",CARITAS RECRUITMENT LIMITED
Revenue,Childrens Services,5105619553,21.08.2013,LAC Units 5-7,Agency staff,"1,912.50",CARITAS RECRUITMENT LIMITED
Revenue,Childrens Services,5105619553,21.08.2013,LAC Units 5-7,Agency staff,299.38,CARITAS RECRUITMENT LIMITED
Revenue,Childrens Services,5105619253,21.08.2013,LAC Units 5-7,Agency staff,44.80,CARITAS RECRUITMENT LIMITED
Revenue,Childrens Services,5105622821,30.08.2013,LAC Units 5-7,Agency staff,"1,665.00",CARITAS RECRUITMENT LIMITED
Revenue,Childrens Services,5105622821,30.08.2013,LAC Units 5-7,Agency staff,225.00,CARITAS RECRUITMENT LIMITED
Revenue,Childrens Services,5105619566,21.08.2013,Service Manager - Safeguarding,Agency staff,"3,600.00",CARITAS RECRUITMENT LIMITED
Revenue,Childrens Services,5105617699,09.08.2013,Service Manager - Safeguarding,Agency staff,"10,800.00",CARITAS RECRUITMENT LIMITED
Revenue,Childrens Services,5105622327,28.08.2013,Service Manager - Safeguarding,Agency staff,"3,600.00",CARITAS RECRUITMENT LIMITED
Revenue,Childrens Services,5105615549,02.08.2013,Service Manager - Safeguarding,Agency staff,"3,600.00",CARITAS RECRUITMENT LIMITED
Revenue,Resources,5105621606,23.08.2013,Local Welfare Assistance Scheme,Sundry Office Expenses,416.67,CARPETS ETC
Revenue,Community Wellbeing & Social Care,5105617583,07.08.2013,DINO ISLE Sandown Museum Stocks,Order Settlement,486.09,CASA GRANDE LIMITED
Revenue,Childrens Services,5105617227,02.08.2013,Agency Placements,Charges from Independent Providers,"1,635.43",CASTLE HOMES LTD
Revenue,Childrens Services,5105617228,02.08.2013,Agency Placements,Charges from Independent Providers,"16,354.29",CASTLE HOMES LTD
Revenue,Childrens Services,5105617656,07.08.2013,Agency Placements,Charges from Independent Providers,"9,267.43",CASTLE HOMES LTD
Revenue,Childrens Services,5105618285,09.08.2013,Youth- Newport,Property Services - Building maintenance,38.00,CATER WIGHT
Revenue,Economy & Environment,5105620643,21.08.2013,IW Cycling Festival,Printing Costs,"2,243.00",CEDAR GROUP
Revenue,Economy & Environment,5105620643,21.08.2013,IW Cycling Festival,Printing Costs,55.00,CEDAR GROUP
Revenue,Economy & Environment,5105620643,21.08.2013,IW Cycling Festival,Printing Costs,25.00,CEDAR GROUP
Revenue,Community Wellbeing & Social Care,5105620547,21.08.2013,Mental Health Residential Care,Charges from Independent Providers,"2,014.03",CENTRAL BEDFORDSHIRE COUNCIL
Revenue,Community Wellbeing & Social Care,5105622314,30.08.2013,Mental Health Residential Care,Charges from Independent Providers,974.53,CENTRAL BEDFORDSHIRE COUNCIL
Revenue,Community Wellbeing & Social Care,5105621607,23.08.2013,Commissioning Management Individual Support,Vehicle Maintenance Costs,138.00,CHAMELEON CODEWING LTD
Revenue,Community Wellbeing & Social Care,5105621607,23.08.2013,Homecare Reablement,Vehicle Maintenance Costs,138.00,CHAMELEON CODEWING LTD
